Organisation Name,Organisation Code,Unique Ref No,Effective Date,Directorate  where expenditure incurred,Supplier name ,Payment Date,Net Amount,Purpose of Spend,Procurement Classification (Higher Level),Procurement Classification (Lower Level),Capital/Revenue
Walsall Council,http://opendatacommunities.org/id/metropolitan-district-council/walsall,WC82-1,31/07/2017,Childrens,247 CARS (WILLENHALL) LIMITED,26/07/2017,"1,170.00",60500-GENERAL MATERIALS,PUPIL REFERAL UNIT EXCLUSIONS,Supplies & Services,Revenue
Walsall Council,http://opendatacommunities.org/id/metropolitan-district-council/walsall,WC82-2,31/07/2017,Childrens,247 CARS (WILLENHALL) LIMITED,06/07/2017,"4,756.00",52000-WITH DRIVER-HIRE OF VEHICLES,SCHOOL TRANSPORT,Transport,Revenue
Walsall Council,http://opendatacommunities.org/id/metropolitan-district-council/walsall,WC82-3,31/07/2017,Childrens,247 CARS (WILLENHALL) LIMITED,24/07/2017,"4,928.40",52000-WITH DRIVER-HIRE OF VEHICLES,SCHOOL TRANSPORT,Transport,Revenue
Walsall Council,http://opendatacommunities.org/id/metropolitan-district-council/walsall,WC82-4,31/07/2017,Childrens,29 BEDFORD ROW CHAMBERS,24/07/2017,"4,500.00",73014-LEGAL FEES-PRIV CONTRACTOR FEES,GENERAL MANAGEMENT SUPPORT (INC LEGAL),Third Party Payments,Revenue
Walsall Council,http://opendatacommunities.org/id/metropolitan-district-council/walsall,WC82-5,31/07/2017,Change and Governance,3C TECHNOLOGY LTD,04/07/2017,"1,032.00",63800-COMPUTER EQUIPMENT AND SUPPLIES,SIT-INFRASTRUCTURE,Supplies & Services,Revenue
Walsall Council,http://opendatacommunities.org/id/metropolitan-district-council/walsall,WC82-6,31/07/2017,Change and Governance,4 SIGHT EYECARE CENTRE 002,03/07/2017,916.67,63000-PROFESSIONAL FEES AND SERVICES,HR DIRECT SERVICES,Supplies & Services,Revenue
Walsall Council,http://opendatacommunities.org/id/metropolitan-district-council/walsall,WC82-7,31/07/2017,Childrens,5 CARE SERVICES LTD,19/07/2017,"1,144.00",63000-PROFESSIONAL FEES AND SERVICES,DIRECTLY COMMISSIONED NURSING SERVICES,Supplies & Services,Revenue
Walsall Council,http://opendatacommunities.org/id/metropolitan-district-council/walsall,WC82-8,31/07/2017,Childrens,5 CARE SERVICES LTD,19/07/2017,"1,391.00",63000-PROFESSIONAL FEES AND SERVICES,DIRECTLY COMMISSIONED NURSING SERVICES,Supplies & Services,Revenue
Walsall Council,http://opendatacommunities.org/id/metropolitan-district-council/walsall,WC82-9,31/07/2017,Childrens,5 CARE SERVICES LTD,19/07/2017,"1,729.00",63000-PROFESSIONAL FEES AND SERVICES,DIRECTLY COMMISSIONED NURSING SERVICES,Supplies & Services,Revenue
Walsall Council,http://opendatacommunities.org/id/metropolitan-district-council/walsall,WC82-10,31/07/2017,Adult Social Care,5 CARE SERVICES LTD,21/07/2017,"41,533.57",73372-DOMICILIARY CARE,OP COMMISSIONING,Third Party Payments,Revenue
Walsall Council,http://opendatacommunities.org/id/metropolitan-district-council/walsall,WC82-11,31/07/2017,Economy & Environment,A D T FIRE AND SECURITY PLC,13/07/2017,211,60500-GENERAL MATERIALS,ARBORETUM VISITOR CENTRE,Supplies & Services,Revenue
Walsall Council,http://opendatacommunities.org/id/metropolitan-district-council/walsall,WC82-12,31/07/2017,Change and Governance,A D T FIRE AND SECURITY PLC,17/07/2017,238.87,73002-SECURITY-PRIV CONTRACTOR FEES,CENTRALISED MAINTENANCE,Third Party Payments,Revenue
Walsall Council,http://opendatacommunities.org/id/metropolitan-district-council/walsall,WC82-13,31/07/2017,Change and Governance,A D T FIRE AND SECURITY PLC,17/07/2017,257.46,73002-SECURITY-PRIV CONTRACTOR FEES,CENTRALISED MAINTENANCE,Third Party Payments,Revenue
Walsall Council,http://opendatacommunities.org/id/metropolitan-district-council/walsall,WC82-14,31/07/2017,Change and Governance,A D T FIRE AND SECURITY PLC,17/07/2017,376.99,73002-SECURITY-PRIV CONTRACTOR FEES,CENTRALISED MAINTENANCE,Third Party Payments,Revenue
Walsall Council,http://opendatacommunities.org/id/metropolitan-district-council/walsall,WC82-15,31/07/2017,Change and Governance,A D T FIRE AND SECURITY PLC,17/07/2017,387.99,73002-SECURITY-PRIV CONTRACTOR FEES,CENTRALISED MAINTENANCE,Third Party Payments,Revenue
Walsall Council,http://opendatacommunities.org/id/metropolitan-district-council/walsall,WC82-16,31/07/2017,Change and Governance,A D T FIRE AND SECURITY PLC,17/07/2017,428,73002-SECURITY-PRIV CONTRACTOR FEES,CENTRALISED MAINTENANCE,Third Party Payments,Revenue
Walsall Council,http://opendatacommunities.org/id/metropolitan-district-council/walsall,WC82-17,31/07/2017,Change and Governance,A D T FIRE AND SECURITY PLC,17/07/2017,433.54,73002-SECURITY-PRIV CONTRACTOR FEES,CENTRALISED MAINTENANCE,Third Party Payments,Revenue
Walsall Council,http://opendatacommunities.org/id/metropolitan-district-council/walsall,WC82-18,31/07/2017,Change and Governance,A D T FIRE AND SECURITY PLC,17/07/2017,500.04,73002-SECURITY-PRIV CONTRACTOR FEES,CENTRALISED MAINTENANCE,Third Party Payments,Revenue
Walsall Council,http://opendatacommunities.org/id/metropolitan-district-council/walsall,WC82-19,31/07/2017,Change and Governance,A D T FIRE AND SECURITY PLC,17/07/2017,774.9,73002-SECURITY-PRIV CONTRACTOR FEES,CENTRALISED MAINTENANCE,Third Party Payments,Revenue
Walsall Council,http://opendatacommunities.org/id/metropolitan-district-council/walsall,WC82-20,31/07/2017,Economy & Environment,A D T FIRE AND SECURITY PLC,13/07/2017,816.83,"40000-REPAIRS,ALTERATIONS & MAINTENANCE-PREM",ARBORETUM HLF,Premises,Revenue
Walsall Council,http://opendatacommunities.org/id/metropolitan-district-council/walsall,WC82-21,31/07/2017,Economy & Environment,A D T FIRE AND SECURITY PLC,13/07/2017,821.31,"40000-REPAIRS,ALTERATIONS & MAINTENANCE-PREM",ARBORETUM HLF,Premises,Revenue
Walsall Council,http://opendatacommunities.org/id/metropolitan-district-council/walsall,WC82-22,31/07/2017,Change and Governance,A D T FIRE AND SECURITY PLC,17/07/2017,"1,148.60",73002-SECURITY-PRIV CONTRACTOR FEES,CENTRALISED MAINTENANCE,Third Party Payments,Revenue
Walsall Council,http://opendatacommunities.org/id/metropolitan-district-council/walsall,WC82-23,31/07/2017,Adult Social Care,A F BLAKEMORE & SON LTD,17/07/2017,233.09,61002-DRY FOODS-PROVISIONS,BROADWAY NORTH RECOVERY COLLEGE,Supplies & Services,Revenue
Walsall Council,http://opendatacommunities.org/id/metropolitan-district-council/walsall,WC82-24,31/07/2017,Economy & Environment,A F BLAKEMORE & SON LTD,06/07/2017,244.6,61002-DRY FOODS-PROVISIONS,BLOXWICH LEISURE CENTRE,Supplies & Services,Revenue
Walsall Council,http://opendatacommunities.org/id/metropolitan-district-council/walsall,WC82-25,31/07/2017,Change and Governance,A F BLAKEMORE & SON LTD,06/07/2017,251.37,61016-FOOD AND BEVERAGES-PROVISIONS,WALSALL TOWN HALL,Supplies & Services,Revenue
Walsall Council,http://opendatacommunities.org/id/metropolitan-district-council/walsall,WC82-26,31/07/2017,Economy & Environment,A F BLAKEMORE & SON LTD,14/07/2017,254.06,61002-DRY FOODS-PROVISIONS,BLOXWICH LEISURE CENTRE,Supplies & Services,Revenue
Walsall Council,http://opendatacommunities.org/id/metropolitan-district-council/walsall,WC82-27,31/07/2017,Economy & Environment,A F BLAKEMORE & SON LTD,19/07/2017,273.45,61008-CONFECTIONERY/SNACKS-PROVISIONS,DARLASTON LEISURE CENTRE,Supplies & Services,Revenue
Walsall Council,http://opendatacommunities.org/id/metropolitan-district-council/walsall,WC82-28,31/07/2017,Economy & Environment,A F BLAKEMORE & SON LTD,19/07/2017,273.47,61008-CONFECTIONERY/SNACKS-PROVISIONS,WALSALL GALA CENTRE,Supplies & Services,Revenue
Walsall Council,http://opendatacommunities.org/id/metropolitan-district-council/walsall,WC82-29,31/07/2017,Economy & Environment,A F BLAKEMORE & SON LTD,06/07/2017,282.59,61006-FRUIT & VEGETABLES OTHER-PROVISIONS,OAK PARK,Supplies & Services,Revenue
Walsall Council,http://opendatacommunities.org/id/metropolitan-district-council/walsall,WC82-30,31/07/2017,Economy & Environment,A F BLAKEMORE & SON LTD,06/07/2017,284.38,61006-FRUIT & VEGETABLES OTHER-PROVISIONS,OAK PARK,Supplies & Services,Revenue
Walsall Council,http://opendatacommunities.org/id/metropolitan-district-council/walsall,WC82-31,31/07/2017,Economy & Environment,A F BLAKEMORE & SON LTD,19/07/2017,357.08,61018-DRINKS-PROVISIONS,WALSALL GALA CENTRE,Supplies & Services,Revenue
Walsall Council,http://opendatacommunities.org/id/metropolitan-district-council/walsall,WC82-32,31/07/2017,Economy & Environment,A F BLAKEMORE & SON LTD,01/07/2017,412.65,61006-FRUIT & VEGETABLES OTHER-PROVISIONS,OAK PARK,Supplies & Services,Revenue
Walsall Council,http://opendatacommunities.org/id/metropolitan-district-council/walsall,WC82-33,31/07/2017,Adult Social Care,A F BLAKEMORE & SON LTD,06/07/2017,428.65,61016-FOOD AND BEVERAGES-PROVISIONS,GOSCOTE,Supplies & Services,Revenue
Walsall Council,http://opendatacommunities.org/id/metropolitan-district-council/walsall,WC82-34,31/07/2017,Economy & Environment,A F BLAKEMORE & SON LTD,19/07/2017,454.7,61018-DRINKS-PROVISIONS,DARLASTON LEISURE CENTRE,Supplies & Services,Revenue
Walsall Council,http://opendatacommunities.org/id/metropolitan-district-council/walsall,WC82-35,31/07/2017,Change and Governance,A F BLAKEMORE & SON LTD,06/07/2017,478.77,61016-FOOD AND BEVERAGES-PROVISIONS,WALSALL TOWN HALL,Supplies & Services,Revenue
Walsall Council,http://opendatacommunities.org/id/metropolitan-district-council/walsall,WC82-36,31/07/2017,Adult Social Care,A F BLAKEMORE & SON LTD,06/07/2017,559.71,61016-FOOD AND BEVERAGES-PROVISIONS,REABLEMENT TEAM - HOLLY BANK,Supplies & Services,Revenue
Walsall Council,http://opendatacommunities.org/id/metropolitan-district-council/walsall,WC82-37,31/07/2017,Adult Social Care,A F BLAKEMORE & SON LTD,04/07/2017,672,61016-FOOD AND BEVERAGES-PROVISIONS,REABLEMENT TEAM - HOLLY BANK,Supplies & Services,Revenue
Walsall Council,http://opendatacommunities.org/id/metropolitan-district-council/walsall,WC82-38,31/07/2017,Economy & Environment,A F BLAKEMORE & SON LTD,06/07/2017,692.84,61001-FROZEN FOODS-PROVISIONS,BLOXWICH LEISURE CENTRE,Supplies & Services,Revenue
Walsall Council,http://opendatacommunities.org/id/metropolitan-district-council/walsall,WC82-39,31/07/2017,Economy & Environment,A F BLAKEMORE & SON LTD,25/07/2017,811.39,61002-DRY FOODS-PROVISIONS,BLOXWICH LEISURE CENTRE,Supplies & Services,Revenue
Walsall Council,http://opendatacommunities.org/id/metropolitan-district-council/walsall,WC82-40,31/07/2017,Economy & Environment,A F BLAKEMORE & SON LTD,26/07/2017,864.58,61008-CONFECTIONERY/SNACKS-PROVISIONS,OAK PARK,Supplies & Services,Revenue
Walsall Council,http://opendatacommunities.org/id/metropolitan-district-council/walsall,WC82-41,31/07/2017,Economy & Environment,A F BLAKEMORE & SON LTD,03/07/2017,989.76,61002-DRY FOODS-PROVISIONS,BLOXWICH LEISURE CENTRE,Supplies & Services,Revenue
Walsall Council,http://opendatacommunities.org/id/metropolitan-district-council/walsall,WC82-42,31/07/2017,Economy & Environment,A F BLAKEMORE & SON LTD,01/07/2017,"1,348.68",61008-CONFECTIONERY/SNACKS-PROVISIONS,OAK PARK,Supplies & Services,Revenue
Walsall Council,http://opendatacommunities.org/id/metropolitan-district-council/walsall,WC82-43,31/07/2017,Economy & Environment,A KARIMS CHUCKERY PHARMACY,03/07/2017,762.96,63000-PROFESSIONAL FEES AND SERVICES,HEALTH CHECKS,Supplies & Services,Revenue
Walsall Council,http://opendatacommunities.org/id/metropolitan-district-council/walsall,WC82-44,31/07/2017,Childrens,REDACTED,11/07/2017,378,76422-DIRECT PAYMENTS TO SOCIAL SERVICES CLIENTS,FAMILY SUPPORT - DIRECT PAYMENTS,Transfer Payments,Revenue
Walsall Council,http://opendatacommunities.org/id/metropolitan-district-council/walsall,WC82-45,31/07/2017,Adult Social Care,ABBEY COURT NURSING & RESIDEN,11/07/2017,"1,786.40",73373-RESIDENTIAL & NURSING CARE PLACEMENTS,OP COMMISSIONING,Third Party Payments,Revenue
Walsall Council,http://opendatacommunities.org/id/metropolitan-district-council/walsall,WC82-46,31/07/2017,Adult Social Care,ABBEY COURT NURSING & RESIDEN,11/07/2017,"1,878.91",73373-RESIDENTIAL & NURSING CARE PLACEMENTS,OP COMMISSIONING,Third Party Payments,Revenue
Walsall Council,http://opendatacommunities.org/id/metropolitan-district-council/walsall,WC82-47,31/07/2017,Adult Social Care,ABBEY COURT NURSING & RESIDEN,11/07/2017,"2,144.62",73373-RESIDENTIAL & NURSING CARE PLACEMENTS,OP COMMISSIONING,Third Party Payments,Revenue
Walsall Council,http://opendatacommunities.org/id/metropolitan-district-council/walsall,WC82-48,31/07/2017,Adult Social Care,ABBEY HEALTHCARE HOMES LTD,11/07/2017,"1,699.16",73373-RESIDENTIAL & NURSING CARE PLACEMENTS,PD COMMISSIONING,Third Party Payments,Revenue
Walsall Council,http://opendatacommunities.org/id/metropolitan-district-council/walsall,WC82-49,31/07/2017,Adult Social Care,ABBEY HEALTHCARE HOMES LTD,11/07/2017,"1,699.16",73373-RESIDENTIAL & NURSING CARE PLACEMENTS,PD COMMISSIONING,Third Party Payments,Revenue
Walsall Council,http://opendatacommunities.org/id/metropolitan-district-council/walsall,WC82-50,31/07/2017,Adult Social Care,ABBEY HEALTHCARE HOMES LTD,11/07/2017,"2,294.08",73373-RESIDENTIAL & NURSING CARE PLACEMENTS,PD COMMISSIONING,Third Party Payments,Revenue
Walsall Council,http://opendatacommunities.org/id/metropolitan-district-council/walsall,WC82-51,31/07/2017,Adult Social Care,ABBEY HEALTHCARE HOMES LTD,11/07/2017,"2,294.08",73373-RESIDENTIAL & NURSING CARE PLACEMENTS,PD COMMISSIONING,Third Party Payments,Revenue
Walsall Council,http://opendatacommunities.org/id/metropolitan-district-council/walsall,WC82-52,31/07/2017,Childrens,ABC DAY NURSERY (WILLENHALL) LIMITED,01/07/2017,300,63120-CRECHE FACILITIES-SERVICES-FEES,SAFEGUARDING & FAMILY SUPPORT,Supplies & Services,Revenue
Walsall Council,http://opendatacommunities.org/id/metropolitan-district-council/walsall,WC82-53,31/07/2017,Childrens,ABC DAY NURSERY (WILLENHALL) LIMITED,12/07/2017,300,63120-CRECHE FACILITIES-SERVICES-FEES,SAFEGUARDING & FAMILY SUPPORT,Supplies & Services,Revenue
Walsall Council,http://opendatacommunities.org/id/metropolitan-district-council/walsall,WC82-54,31/07/2017,Childrens,ABC DAY NURSERY (WILLENHALL) LIMITED,10/07/2017,930.15,66505-OTHER-GRANTS TO OTHER ORGS,EARLY YEARS - 3 YR OLDS,Third Party Payments,Revenue
Walsall Council,http://opendatacommunities.org/id/metropolitan-district-council/walsall,WC82-55,31/07/2017,Childrens,ABC DAY NURSERY (WILLENHALL) LIMITED,05/07/2017,"5,517.40",66505-OTHER-GRANTS TO OTHER ORGS,EARLY YEARS - 2 YR OLDS,Third Party Payments,Revenue
Walsall Council,http://opendatacommunities.org/id/metropolitan-district-council/walsall,WC82-56,31/07/2017,Childrens,ABC DAY NURSERY (WILLENHALL) LIMITED,05/07/2017,"17,628.00",66505-OTHER-GRANTS TO OTHER ORGS,EARLY YEARS - 3 YR OLDS,Third Party Payments,Revenue
Walsall Council,http://opendatacommunities.org/id/metropolitan-district-council/walsall,WC82-57,31/07/2017,Childrens,ABC FOSTERING,18/07/2017,"2,635.20",74037-INDEPENDENT FOSTER CARE-OTH AGENCY PROVISION,EXTERNAL FOSTER CARE PROVISION,Third Party Payments,Revenue
Walsall Council,http://opendatacommunities.org/id/metropolitan-district-council/walsall,WC82-58,31/07/2017,Childrens,ABC FOSTERING,18/07/2017,"2,811.43",74037-INDEPENDENT FOSTER CARE-OTH AGENCY PROVISION,EXTERNAL FOSTER CARE PROVISION,Third Party Payments,Revenue
Walsall Council,http://opendatacommunities.org/id/metropolitan-district-council/walsall,WC82-59,31/07/2017,Childrens,ABC FOSTERING,18/07/2017,"2,880.00",74037-INDEPENDENT FOSTER CARE-OTH AGENCY PROVISION,EXTERNAL FOSTER CARE PROVISION,Third Party Payments,Revenue
Walsall Council,http://opendatacommunities.org/id/metropolitan-district-council/walsall,WC82-60,31/07/2017,Childrens,ABC FOSTERING,18/07/2017,"3,042.00",74037-INDEPENDENT FOSTER CARE-OTH AGENCY PROVISION,EXTERNAL FOSTER CARE PROVISION,Third Party Payments,Revenue
Walsall Council,http://opendatacommunities.org/id/metropolitan-district-council/walsall,WC82-61,31/07/2017,Childrens,ABC FOSTERING,18/07/2017,"3,182.40",74037-INDEPENDENT FOSTER CARE-OTH AGENCY PROVISION,EXTERNAL FOSTER CARE PROVISION,Third Party Payments,Revenue
Walsall Council,http://opendatacommunities.org/id/metropolitan-district-council/walsall,WC82-62,31/07/2017,Adult Social Care,REDACTED,11/07/2017,"1,557.68",76422-DIRECT PAYMENTS TO SOCIAL SERVICES CLIENTS,LD COMMISSIONING,Transfer Payments,Revenue
Walsall Council,http://opendatacommunities.org/id/metropolitan-district-council/walsall,WC82-63,31/07/2017,Adult Social Care,REDACTED,11/07/2017,"2,357.99",76422-DIRECT PAYMENTS TO SOCIAL SERVICES CLIENTS,LD COMMISSIONING,Transfer Payments,Revenue
Walsall Council,http://opendatacommunities.org/id/metropolitan-district-council/walsall,WC82-64,31/07/2017,Childrens,ABLEWELL CARS,11/07/2017,"1,060.00",52000-WITH DRIVER-HIRE OF VEHICLES,SCHOOL TRANSPORT,Transport,Revenue
Walsall Council,http://opendatacommunities.org/id/metropolitan-district-council/walsall,WC82-65,31/07/2017,Economy & Environment,ACAINN LTD,12/07/2017,"5,300.00",34305-AGENCY STAFF-EMPLOYEES,ALCOHOL & DRUGS MISUSE,Employees,Revenue
Walsall Council,http://opendatacommunities.org/id/metropolitan-district-council/walsall,WC82-66,31/07/2017,Adult Social Care,ACCORD HOUSING ASSOCIATION LTD#135,12/07/2017,259.7,73374-SUPPORTED & OTHER ACCOMMODATION,MH COMMISSIONING,Third Party Payments,Revenue
Walsall Council,http://opendatacommunities.org/id/metropolitan-district-council/walsall,WC82-67,31/07/2017,Adult Social Care,ACCORD HOUSING ASSOCIATION LTD#135,12/07/2017,319.06,73374-SUPPORTED & OTHER ACCOMMODATION,MH COMMISSIONING,Third Party Payments,Revenue
Walsall Council,http://opendatacommunities.org/id/metropolitan-district-council/walsall,WC82-68,31/07/2017,Adult Social Care,ACCORD HOUSING ASSOCIATION LTD#135,14/07/2017,330.56,73374-SUPPORTED & OTHER ACCOMMODATION,MH COMMISSIONING,Third Party Payments,Revenue
Walsall Council,http://opendatacommunities.org/id/metropolitan-district-council/walsall,WC82-69,31/07/2017,Childrens,ACCORD HOUSING ASSOCIATION LTD#135,06/07/2017,458.75,43000-RENTS,SAFEGUARDING & FAMILY SUPPORT,Premises,Revenue
Walsall Council,http://opendatacommunities.org/id/metropolitan-district-council/walsall,WC82-70,31/07/2017,Childrens,ACCORD HOUSING ASSOCIATION LTD#135,06/07/2017,458.75,43000-RENTS,SAFEGUARDING & FAMILY SUPPORT,Premises,Revenue
Walsall Council,http://opendatacommunities.org/id/metropolitan-district-council/walsall,WC82-71,31/07/2017,Adult Social Care,ACCORD HOUSING ASSOCIATION LTD#135,12/07/2017,578.25,73374-SUPPORTED & OTHER ACCOMMODATION,LD COMMISSIONING,Third Party Payments,Revenue
Walsall Council,http://opendatacommunities.org/id/metropolitan-district-council/walsall,WC82-72,31/07/2017,Adult Social Care,ACCORD HOUSING ASSOCIATION LTD#135,12/07/2017,680.04,73374-SUPPORTED & OTHER ACCOMMODATION,MH COMMISSIONING,Third Party Payments,Revenue
Walsall Council,http://opendatacommunities.org/id/metropolitan-district-council/walsall,WC82-73,31/07/2017,Adult Social Care,ACCORD HOUSING ASSOCIATION LTD#135,12/07/2017,747.75,73374-SUPPORTED & OTHER ACCOMMODATION,MH COMMISSIONING,Third Party Payments,Revenue
Walsall Council,http://opendatacommunities.org/id/metropolitan-district-council/walsall,WC82-74,31/07/2017,Adult Social Care,ACCORD HOUSING ASSOCIATION LTD#135,12/07/2017,755.6,73374-SUPPORTED & OTHER ACCOMMODATION,MH COMMISSIONING,Third Party Payments,Revenue
Walsall Council,http://opendatacommunities.org/id/metropolitan-district-council/walsall,WC82-75,31/07/2017,Adult Social Care,ACCORD HOUSING ASSOCIATION LTD#135,12/07/2017,771.68,73374-SUPPORTED & OTHER ACCOMMODATION,OP COMMISSIONING,Third Party Payments,Revenue
Walsall Council,http://opendatacommunities.org/id/metropolitan-district-council/walsall,WC82-76,31/07/2017,Adult Social Care,ACCORD HOUSING ASSOCIATION LTD#135,10/07/2017,793.36,73374-SUPPORTED & OTHER ACCOMMODATION,MH COMMISSIONING,Third Party Payments,Revenue
Walsall Council,http://opendatacommunities.org/id/metropolitan-district-council/walsall,WC82-77,31/07/2017,Adult Social Care,ACCORD HOUSING ASSOCIATION LTD#135,21/07/2017,826.4,73374-SUPPORTED & OTHER ACCOMMODATION,MH COMMISSIONING,Third Party Payments,Revenue
Walsall Council,http://opendatacommunities.org/id/metropolitan-district-council/walsall,WC82-78,31/07/2017,Adult Social Care,ACCORD HOUSING ASSOCIATION LTD#135,12/07/2017,"1,086.20",73374-SUPPORTED & OTHER ACCOMMODATION,MH COMMISSIONING,Third Party Payments,Revenue
Walsall Council,http://opendatacommunities.org/id/metropolitan-district-council/walsall,WC82-79,31/07/2017,Adult Social Care,ACCORD HOUSING ASSOCIATION LTD#135,12/07/2017,"1,298.65",73374-SUPPORTED & OTHER ACCOMMODATION,MH COMMISSIONING,Third Party Payments,Revenue
Walsall Council,http://opendatacommunities.org/id/metropolitan-district-council/walsall,WC82-80,31/07/2017,Adult Social Care,ACCORD HOUSING ASSOCIATION LTD#135,12/07/2017,"1,416.75",73374-SUPPORTED & OTHER ACCOMMODATION,MH COMMISSIONING,Third Party Payments,Revenue
Walsall Council,http://opendatacommunities.org/id/metropolitan-district-council/walsall,WC82-81,31/07/2017,Adult Social Care,ACCORD HOUSING ASSOCIATION LTD#135,12/07/2017,"1,652.85",73374-SUPPORTED & OTHER ACCOMMODATION,MH COMMISSIONING,Third Party Payments,Revenue
Walsall Council,http://opendatacommunities.org/id/metropolitan-district-council/walsall,WC82-82,31/07/2017,Adult Social Care,ACCORD HOUSING ASSOCIATION LTD#135,12/07/2017,"1,676.45",73374-SUPPORTED & OTHER ACCOMMODATION,MH COMMISSIONING,Third Party Payments,Revenue
Walsall Council,http://opendatacommunities.org/id/metropolitan-district-council/walsall,WC82-83,31/07/2017,Change and Governance,ACCORD HOUSING ASSOCIATION LTD#135,01/07/2017,"1,826.70",43000-RENTS,SYRIAN REFUGEE PROJECT,Premises,Revenue
Walsall Council,http://opendatacommunities.org/id/metropolitan-district-council/walsall,WC82-84,31/07/2017,Adult Social Care,ACCORD HOUSING ASSOCIATION LTD#135,12/07/2017,"1,841.75",73374-SUPPORTED & OTHER ACCOMMODATION,MH COMMISSIONING,Third Party Payments,Revenue
Walsall Council,http://opendatacommunities.org/id/metropolitan-district-council/walsall,WC82-85,31/07/2017,Adult Social Care,ACCORD HOUSING ASSOCIATION LTD#135,12/07/2017,"1,959.80",73374-SUPPORTED & OTHER ACCOMMODATION,MH COMMISSIONING,Third Party Payments,Revenue
Walsall Council,http://opendatacommunities.org/id/metropolitan-district-council/walsall,WC82-86,31/07/2017,Adult Social Care,ACCORD HOUSING ASSOCIATION LTD#135,21/07/2017,"3,614.00",70000-SOCIAL SERVICES-FEES TO VOLUNTARY BODIES,COMPLEX NEEDS CONTRACTS/SLA's,Third Party Payments,Revenue
Walsall Council,http://opendatacommunities.org/id/metropolitan-district-council/walsall,WC82-87,31/07/2017,Adult Social Care,ACCORD HOUSING ASSOCIATION LTD#135,21/07/2017,"4,030.00",70000-SOCIAL SERVICES-FEES TO VOLUNTARY BODIES,COMPLEX NEEDS CONTRACTS/SLA's,Third Party Payments,Revenue
Walsall Council,http://opendatacommunities.org/id/metropolitan-district-council/walsall,WC82-88,31/07/2017,Adult Social Care,ACCORD HOUSING ASSOCIATION LTD#135,04/07/2017,"4,284.72",73373-RESIDENTIAL & NURSING CARE PLACEMENTS,LD COMMISSIONING,Third Party Payments,Revenue
Walsall Council,http://opendatacommunities.org/id/metropolitan-district-council/walsall,WC82-89,31/07/2017,Adult Social Care,ACCORD HOUSING ASSOCIATION LTD#135,04/07/2017,"4,285.72",73373-RESIDENTIAL & NURSING CARE PLACEMENTS,LD COMMISSIONING,Third Party Payments,Revenue
Walsall Council,http://opendatacommunities.org/id/metropolitan-district-council/walsall,WC82-90,31/07/2017,Adult Social Care,ACCORD HOUSING ASSOCIATION LTD#135,18/07/2017,"5,560.80",73373-RESIDENTIAL & NURSING CARE PLACEMENTS,LD COMMISSIONING,Third Party Payments,Revenue
Walsall Council,http://opendatacommunities.org/id/metropolitan-district-council/walsall,WC82-91,31/07/2017,Adult Social Care,ACCORD HOUSING ASSOCIATION LTD#135,04/07/2017,"5,981.48",73373-RESIDENTIAL & NURSING CARE PLACEMENTS,LD COMMISSIONING,Third Party Payments,Revenue
Walsall Council,http://opendatacommunities.org/id/metropolitan-district-council/walsall,WC82-92,31/07/2017,Adult Social Care,ACCORD HOUSING ASSOCIATION LTD#135,04/07/2017,"5,981.48",73373-RESIDENTIAL & NURSING CARE PLACEMENTS,LD COMMISSIONING,Third Party Payments,Revenue
Walsall Council,http://opendatacommunities.org/id/metropolitan-district-council/walsall,WC82-93,31/07/2017,Adult Social Care,ACCORD HOUSING ASSOCIATION LTD#135,04/07/2017,"5,981.48",73373-RESIDENTIAL & NURSING CARE PLACEMENTS,LD COMMISSIONING,Third Party Payments,Revenue
Walsall Council,http://opendatacommunities.org/id/metropolitan-district-council/walsall,WC82-94,31/07/2017,Childrens,ACCORD HOUSING ASSOCIATION LTD#135,01/07/2017,"6,655.50",63102-CONSULTANTS FEES - CORPORATE,TOXIC TRIO,Supplies & Services,Revenue
Walsall Council,http://opendatacommunities.org/id/metropolitan-district-council/walsall,WC82-95,31/07/2017,Adult Social Care,ACCORD HOUSING ASSOCIATION LTD#135,01/07/2017,"47,217.50",73365-BLOCK GROSS-SUPPORTING PEOPLE,OLDER PEOPLES CONTRACTS/SLA,Third Party Payments,Revenue
Walsall Council,http://opendatacommunities.org/id/metropolitan-district-council/walsall,WC82-96,31/07/2017,Economy & Environment,ACCORD HOUSING ASSOCIATION LTD#135,01/07/2017,"165,577.52",66500-GRANTS TO OTHER ORGS,CITY DEAL WELFARE PILOT,Third Party Payments,Revenue
Walsall Council,http://opendatacommunities.org/id/metropolitan-district-council/walsall,WC82-97,31/07/2017,Adult Social Care,ACE CARE AGENCY,17/07/2017,385.58,73372-DOMICILIARY CARE,OP COMMISSIONING,Third Party Payments,Revenue
Walsall Council,http://opendatacommunities.org/id/metropolitan-district-council/walsall,WC82-98,31/07/2017,Adult Social Care,ACE CARE AGENCY,17/07/2017,571.84,73372-DOMICILIARY CARE,OP COMMISSIONING,Third Party Payments,Revenue
Walsall Council,http://opendatacommunities.org/id/metropolitan-district-council/walsall,WC82-99,31/07/2017,Adult Social Care,ACE CARE AGENCY,17/07/2017,607.05,73372-DOMICILIARY CARE,MH COMMISSIONING,Third Party Payments,Revenue
Walsall Council,http://opendatacommunities.org/id/metropolitan-district-council/walsall,WC82-100,31/07/2017,Adult Social Care,ACE CARE AGENCY,17/07/2017,689,73372-DOMICILIARY CARE,OP COMMISSIONING,Third Party Payments,Revenue
Walsall Council,http://opendatacommunities.org/id/metropolitan-district-council/walsall,WC82-101,31/07/2017,Adult Social Care,ACE CARE AGENCY,17/07/2017,819,73372-DOMICILIARY CARE,OP COMMISSIONING,Third Party Payments,Revenue
Walsall Council,http://opendatacommunities.org/id/metropolitan-district-council/walsall,WC82-102,31/07/2017,Adult Social Care,ACE CARE AGENCY,07/07/2017,828.75,73372-DOMICILIARY CARE,OP COMMISSIONING,Third Party Payments,Revenue
Walsall Council,http://opendatacommunities.org/id/metropolitan-district-council/walsall,WC82-103,31/07/2017,Childrens,ACE RADIO CARS,10/07/2017,"1,854.78",52000-WITH DRIVER-HIRE OF VEHICLES,SCHOOL TRANSPORT,Transport,Revenue
Walsall Council,http://opendatacommunities.org/id/metropolitan-district-council/walsall,WC82-104,31/07/2017,Childrens,ACKERS ADVENTURE,07/07/2017,600,63000-PROFESSIONAL FEES AND SERVICES,"AREA 4 PLECK, PALFREY, PADDOCK & ST MATT",Supplies & Services,Revenue
Walsall Council,http://opendatacommunities.org/id/metropolitan-district-council/walsall,WC82-105,31/07/2017,Childrens,ACORN CARE & EDUCATION LTD (SALES),26/07/2017,"12,650.00",66502-TOP UP FUNDING -GRANTS TO SCHOOLS,INDEPENDENT PROVIDERS - SPECIAL & AP,Third Party Payments,Revenue
Walsall Council,http://opendatacommunities.org/id/metropolitan-district-council/walsall,WC82-106,31/07/2017,Adult Social Care,ACORN REST HOME,04/07/2017,"1,620.00",73373-RESIDENTIAL & NURSING CARE PLACEMENTS,OP COMMISSIONING,Third Party Payments,Revenue
Walsall Council,http://opendatacommunities.org/id/metropolitan-district-council/walsall,WC82-107,31/07/2017,Childrens,ACORNS CHILDRENS HOSPICE TRUST,01/07/2017,750,63000-PROFESSIONAL FEES AND SERVICES,DIRECTLY COMMISSIONED NURSING SERVICES,Supplies & Services,Revenue
Walsall Council,http://opendatacommunities.org/id/metropolitan-district-council/walsall,WC82-108,31/07/2017,Childrens,ACPAS LIMITED,04/07/2017,722,73014-LEGAL FEES-PRIV CONTRACTOR FEES,GENERAL MANAGEMENT SUPPORT (INC LEGAL),Third Party Payments,Revenue
Walsall Council,http://opendatacommunities.org/id/metropolitan-district-council/walsall,WC82-109,31/07/2017,Economy & Environment,ACTION DIGITAL MEDIA LTD,19/07/2017,225,"62521-INTERPRETATION,TRANSLATION & HUMAN AIDS TO TRANSCRIPTION",EXHIBITIONS - SPECIAL PROJECTS/PARTNERSHIPS,Supplies & Services,Revenue
Walsall Council,http://opendatacommunities.org/id/metropolitan-district-council/walsall,WC82-110,31/07/2017,Childrens,ACTION FOR CHILDREN,03/07/2017,"9,000.00",73025-PROFESSIONAL SERVICES-PRIV CONTRACTOR & OTHER AGENCIES,ADOPTION TEAM,Third Party Payments,Revenue
Walsall Council,http://opendatacommunities.org/id/metropolitan-district-council/walsall,WC82-111,31/07/2017,Economy & Environment,ACTION MIDLANDS LTD,24/07/2017,150,63000-PROFESSIONAL FEES AND SERVICES,YEI (IMPACT) PROGRAMME,Supplies & Services,Revenue
Walsall Council,http://opendatacommunities.org/id/metropolitan-district-council/walsall,WC82-112,31/07/2017,Economy & Environment,ACTION MIDLANDS LTD,24/07/2017,150,63000-PROFESSIONAL FEES AND SERVICES,YEI ESF FUNDING,Supplies & Services,Revenue
Walsall Council,http://opendatacommunities.org/id/metropolitan-district-council/walsall,WC82-113,31/07/2017,Economy & Environment,ACTION MIDLANDS LTD,26/07/2017,150,63000-PROFESSIONAL FEES AND SERVICES,YEI (IMPACT) PROGRAMME,Supplies & Services,Revenue
Walsall Council,http://opendatacommunities.org/id/metropolitan-district-council/walsall,WC82-114,31/07/2017,Economy & Environment,ACTION MIDLANDS LTD,26/07/2017,150,63000-PROFESSIONAL FEES AND SERVICES,YEI ESF FUNDING,Supplies & Services,Revenue
Walsall Council,http://opendatacommunities.org/id/metropolitan-district-council/walsall,WC82-115,31/07/2017,Economy & Environment,ACTION MIDLANDS LTD,26/07/2017,300,63000-PROFESSIONAL FEES AND SERVICES,YEI (IMPACT) PROGRAMME,Supplies & Services,Revenue
Walsall Council,http://opendatacommunities.org/id/metropolitan-district-council/walsall,WC82-116,31/07/2017,Economy & Environment,ACTION MIDLANDS LTD,26/07/2017,300,63000-PROFESSIONAL FEES AND SERVICES,YEI ESF FUNDING,Supplies & Services,Revenue
Walsall Council,http://opendatacommunities.org/id/metropolitan-district-council/walsall,WC82-117,31/07/2017,Economy & Environment,ACTION MIDLANDS LTD,21/07/2017,450,63000-PROFESSIONAL FEES AND SERVICES,YEI (IMPACT) PROGRAMME,Supplies & Services,Revenue
Walsall Council,http://opendatacommunities.org/id/metropolitan-district-council/walsall,WC82-118,31/07/2017,Economy & Environment,ACTION MIDLANDS LTD,21/07/2017,450,63000-PROFESSIONAL FEES AND SERVICES,YEI ESF FUNDING,Supplies & Services,Revenue
Walsall Council,http://opendatacommunities.org/id/metropolitan-district-council/walsall,WC82-119,31/07/2017,Economy & Environment,ACTION MIDLANDS LTD,06/07/2017,600,63000-PROFESSIONAL FEES AND SERVICES,YEI ESF FUNDING,Supplies & Services,Revenue
Walsall Council,http://opendatacommunities.org/id/metropolitan-district-council/walsall,WC82-120,31/07/2017,Adult Social Care,ACTION ON HEARING LOSS,19/07/2017,594,73374-SUPPORTED & OTHER ACCOMMODATION,MH COMMISSIONING,Third Party Payments,Revenue
Walsall Council,http://opendatacommunities.org/id/metropolitan-district-council/walsall,WC82-121,31/07/2017,Adult Social Care,ACTION ON HEARING LOSS,19/07/2017,594.01,73374-SUPPORTED & OTHER ACCOMMODATION,MH COMMISSIONING,Third Party Payments,Revenue
Walsall Council,http://opendatacommunities.org/id/metropolitan-district-council/walsall,WC82-122,31/07/2017,Adult Social Care,ACTION ON HEARING LOSS,19/07/2017,783.75,73374-SUPPORTED & OTHER ACCOMMODATION,MH COMMISSIONING,Third Party Payments,Revenue
Walsall Council,http://opendatacommunities.org/id/metropolitan-district-council/walsall,WC82-123,31/07/2017,Adult Social Care,ACTION ON HEARING LOSS,20/07/2017,948.75,73374-SUPPORTED & OTHER ACCOMMODATION,MH COMMISSIONING,Third Party Payments,Revenue
Walsall Council,http://opendatacommunities.org/id/metropolitan-district-council/walsall,WC82-124,31/07/2017,Adult Social Care,ACTION ON HEARING LOSS,20/07/2017,990,73374-SUPPORTED & OTHER ACCOMMODATION,MH COMMISSIONING,Third Party Payments,Revenue
Walsall Council,http://opendatacommunities.org/id/metropolitan-district-council/walsall,WC82-125,31/07/2017,Childrens,ACTIVATING CREATIVE TALENT CIC,20/07/2017,"7,489.29",66500-GRANTS TO OTHER ORGS,TARGETED YOUTH WORK - COMMISSIONED,Third Party Payments,Revenue
Walsall Council,http://opendatacommunities.org/id/metropolitan-district-council/walsall,WC82-126,31/07/2017,Adult Social Care,ACTON BANKS LTD,01/07/2017,252.12,34305-AGENCY STAFF-EMPLOYEES,GOSCOTE,Employees,Revenue
Walsall Council,http://opendatacommunities.org/id/metropolitan-district-council/walsall,WC82-127,31/07/2017,Adult Social Care,ACTON BANKS LTD,04/07/2017,515.7,34305-AGENCY STAFF-EMPLOYEES,GOSCOTE,Employees,Revenue
Walsall Council,http://opendatacommunities.org/id/metropolitan-district-council/walsall,WC82-128,31/07/2017,Adult Social Care,ACTON BANKS LTD,01/07/2017,653.22,34305-AGENCY STAFF-EMPLOYEES,GOSCOTE,Employees,Revenue
Walsall Council,http://opendatacommunities.org/id/metropolitan-district-council/walsall,WC82-129,31/07/2017,Adult Social Care,ACTON BANKS LTD,12/07/2017,845.18,34305-AGENCY STAFF-EMPLOYEES,GOSCOTE,Employees,Revenue
Walsall Council,http://opendatacommunities.org/id/metropolitan-district-council/walsall,WC82-130,31/07/2017,Adult Social Care,ACTON BANKS LTD,04/07/2017,"1,207.80",73025-PROFESSIONAL SERVICES-PRIV CONTRACTOR & OTHER AGENCIES,REABLEMENT TEAM - HOLLY BANK,Third Party Payments,Revenue
Walsall Council,http://opendatacommunities.org/id/metropolitan-district-council/walsall,WC82-131,31/07/2017,Adult Social Care,ACTON BANKS LTD,20/07/2017,"1,406.76",73025-PROFESSIONAL SERVICES-PRIV CONTRACTOR & OTHER AGENCIES,REABLEMENT TEAM - HOLLY BANK,Third Party Payments,Revenue
Walsall Council,http://opendatacommunities.org/id/metropolitan-district-council/walsall,WC82-132,31/07/2017,Adult Social Care,ACTON BANKS LTD,20/07/2017,"1,954.65",73025-PROFESSIONAL SERVICES-PRIV CONTRACTOR & OTHER AGENCIES,REABLEMENT TEAM - HOLLY BANK,Third Party Payments,Revenue
Walsall Council,http://opendatacommunities.org/id/metropolitan-district-council/walsall,WC82-133,31/07/2017,Adult Social Care,ACTON BANKS LTD,01/07/2017,"3,390.77",73025-PROFESSIONAL SERVICES-PRIV CONTRACTOR & OTHER AGENCIES,REABLEMENT TEAM - HOLLY BANK,Third Party Payments,Revenue
Walsall Council,http://opendatacommunities.org/id/metropolitan-district-council/walsall,WC82-134,31/07/2017,Economy & Environment,ACTS OF RANDOM CARING CIC,04/07/2017,"4,960.80",66500-GRANTS TO OTHER ORGS,ESF COMMUNITY GRANTS,Third Party Payments,Revenue
Walsall Council,http://opendatacommunities.org/id/metropolitan-district-council/walsall,WC82-135,31/07/2017,Adult Social Care,REDACTED,11/07/2017,"1,871.64",76422-DIRECT PAYMENTS TO SOCIAL SERVICES CLIENTS,OP COMMISSIONING,Transfer Payments,Revenue
Walsall Council,http://opendatacommunities.org/id/metropolitan-district-council/walsall,WC82-136,31/07/2017,Change and Governance,ADA BUILDERS & JOINERS,03/07/2017,"21,880.00",01045-PRIVATE GRANTS,CFR 826 DISABLED FACILITIES GRANTS (SOCIAL SERVICES),Capital,Capital
Walsall Council,http://opendatacommunities.org/id/metropolitan-district-council/walsall,WC82-137,31/07/2017,Adult Social Care,REDACTED,11/07/2017,486,76422-DIRECT PAYMENTS TO SOCIAL SERVICES CLIENTS,LD COMMISSIONING,Transfer Payments,Revenue
Walsall Council,http://opendatacommunities.org/id/metropolitan-district-council/walsall,WC82-138,31/07/2017,Adult Social Care,REDACTED,11/07/2017,964,76422-DIRECT PAYMENTS TO SOCIAL SERVICES CLIENTS,OP COMMISSIONING,Transfer Payments,Revenue
Walsall Council,http://opendatacommunities.org/id/metropolitan-district-council/walsall,WC82-139,31/07/2017,Childrens,ADMIRAL SELF STORAGE LTD,06/07/2017,228.78,63000-PROFESSIONAL FEES AND SERVICES,PLACEMENTS & RESOURCES TEAM,Supplies & Services,Revenue
Walsall Council,http://opendatacommunities.org/id/metropolitan-district-council/walsall,WC82-140,31/07/2017,Childrens,REDACTED,03/07/2017,333.12,74510-RESIDENTS ORDERS,ADOPTION ALLOWANCES,Third Party Payments,Revenue
Walsall Council,http://opendatacommunities.org/id/metropolitan-district-council/walsall,WC82-141,31/07/2017,Childrens,REDACTED,03/07/2017,361.12,74510-RESIDENTS ORDERS,ADOPTION ALLOWANCES,Third Party Payments,Revenue
Walsall Council,http://opendatacommunities.org/id/metropolitan-district-council/walsall,WC82-142,31/07/2017,Adult Social Care,ADVANCE HEALTH CARE (UK) LTD,04/07/2017,273,73019-PSE'S-PRIV CONTRACTOR FEES,TRANSITIONAL CARE SUPPORT TEAM,Third Party Payments,Revenue
Walsall Council,http://opendatacommunities.org/id/metropolitan-district-council/walsall,WC82-143,31/07/2017,Adult Social Care,ADVANCE HEALTH CARE (UK) LTD,05/07/2017,273,73019-PSE'S-PRIV CONTRACTOR FEES,TRANSITIONAL CARE SUPPORT TEAM,Third Party Payments,Revenue
Walsall Council,http://opendatacommunities.org/id/metropolitan-district-council/walsall,WC82-144,31/07/2017,Adult Social Care,ADVANCE HEALTH CARE (UK) LTD,12/07/2017,273,73019-PSE'S-PRIV CONTRACTOR FEES,TRANSITIONAL CARE SUPPORT TEAM,Third Party Payments,Revenue
Walsall Council,http://opendatacommunities.org/id/metropolitan-district-council/walsall,WC82-145,31/07/2017,Adult Social Care,ADVANCE HEALTH CARE (UK) LTD,12/07/2017,273,73019-PSE'S-PRIV CONTRACTOR FEES,TRANSITIONAL CARE SUPPORT TEAM,Third Party Payments,Revenue
Walsall Council,http://opendatacommunities.org/id/metropolitan-district-council/walsall,WC82-146,31/07/2017,Adult Social Care,ADVANCE HEALTH CARE (UK) LTD,12/07/2017,273,73019-PSE'S-PRIV CONTRACTOR FEES,TRANSITIONAL CARE SUPPORT TEAM,Third Party Payments,Revenue
Walsall Council,http://opendatacommunities.org/id/metropolitan-district-council/walsall,WC82-147,31/07/2017,Adult Social Care,ADVANCE HEALTH CARE (UK) LTD,24/07/2017,353.7,73025-PROFESSIONAL SERVICES-PRIV CONTRACTOR & OTHER AGENCIES,ACM MANAGEMENT TEAM,Third Party Payments,Revenue
Walsall Council,http://opendatacommunities.org/id/metropolitan-district-council/walsall,WC82-148,31/07/2017,Adult Social Care,ADVANCE HEALTH CARE (UK) LTD,24/07/2017,393,73025-PROFESSIONAL SERVICES-PRIV CONTRACTOR & OTHER AGENCIES,ACM MANAGEMENT TEAM,Third Party Payments,Revenue
Walsall Council,http://opendatacommunities.org/id/metropolitan-district-council/walsall,WC82-149,31/07/2017,Adult Social Care,ADVANCE HEALTH CARE (UK) LTD,07/07/2017,432.36,73025-PROFESSIONAL SERVICES-PRIV CONTRACTOR & OTHER AGENCIES,ACM MANAGEMENT TEAM,Third Party Payments,Revenue
Walsall Council,http://opendatacommunities.org/id/metropolitan-district-council/walsall,WC82-150,31/07/2017,Adult Social Care,ADVANCE HEALTH CARE (UK) LTD,24/07/2017,943.2,73025-PROFESSIONAL SERVICES-PRIV CONTRACTOR & OTHER AGENCIES,ACM MANAGEMENT TEAM,Third Party Payments,Revenue
Walsall Council,http://opendatacommunities.org/id/metropolitan-district-council/walsall,WC82-151,31/07/2017,Adult Social Care,ADVANCE HEALTH CARE (UK) LTD,04/07/2017,"1,149.53",73025-PROFESSIONAL SERVICES-PRIV CONTRACTOR & OTHER AGENCIES,COMMUNITY INTERMEDIATE CARE,Third Party Payments,Revenue
Walsall Council,http://opendatacommunities.org/id/metropolitan-district-council/walsall,WC82-152,31/07/2017,Adult Social Care,ADVANCE HEALTH CARE (UK) LTD,12/07/2017,"4,257.50",73025-PROFESSIONAL SERVICES-PRIV CONTRACTOR & OTHER AGENCIES,COMMUNITY INTERMEDIATE CARE,Third Party Payments,Revenue
Walsall Council,http://opendatacommunities.org/id/metropolitan-district-council/walsall,WC82-153,31/07/2017,Adult Social Care,ADVANCE HEALTH CARE (UK) LTD,24/07/2017,"4,702.90",73025-PROFESSIONAL SERVICES-PRIV CONTRACTOR & OTHER AGENCIES,COMMUNITY INTERMEDIATE CARE,Third Party Payments,Revenue
Walsall Council,http://opendatacommunities.org/id/metropolitan-district-council/walsall,WC82-154,31/07/2017,Adult Social Care,ADVANCE HEALTH CARE (UK) LTD,21/07/2017,"5,852.43",73025-PROFESSIONAL SERVICES-PRIV CONTRACTOR & OTHER AGENCIES,COMMUNITY INTERMEDIATE CARE,Third Party Payments,Revenue
Walsall Council,http://opendatacommunities.org/id/metropolitan-district-council/walsall,WC82-155,31/07/2017,Adult Social Care,ADVANCE HEALTH CARE (UK) LTD,21/07/2017,"80,532.99",73372-DOMICILIARY CARE,OP COMMISSIONING,Third Party Payments,Revenue
Walsall Council,http://opendatacommunities.org/id/metropolitan-district-council/walsall,WC82-156,31/07/2017,Change and Governance,ADVANCED DIGITAL IMAGING,19/07/2017,635.2,60500-GENERAL MATERIALS,PRINTING SERVICES,Supplies & Services,Revenue
Walsall Council,http://opendatacommunities.org/id/metropolitan-district-council/walsall,WC82-157,31/07/2017,Childrens,ADVENTURELAND DAY NURSERY,05/07/2017,"4,495.60",66505-OTHER-GRANTS TO OTHER ORGS,EARLY YEARS - 2 YR OLDS,Third Party Payments,Revenue
Walsall Council,http://opendatacommunities.org/id/metropolitan-district-council/walsall,WC82-158,31/07/2017,Childrens,ADVENTURELAND DAY NURSERY,05/07/2017,"7,644.00",66505-OTHER-GRANTS TO OTHER ORGS,EARLY YEARS - 3 YR OLDS,Third Party Payments,Revenue
Walsall Council,http://opendatacommunities.org/id/metropolitan-district-council/walsall,WC82-159,31/07/2017,Economy & Environment,AEBI SCHMIDT UK LIMITED,21/07/2017,"5,196.60",60514-MATERIALS TO STORES,FLEET PARTS STOCK ACCOUNT,Supplies & Services,Revenue
Walsall Council,http://opendatacommunities.org/id/metropolitan-district-council/walsall,WC82-160,31/07/2017,Economy & Environment,AECOM LIMITED,03/07/2017,"5,075.15",01001-OTHER CONSULTANTS FEES,CFR 876 DARLASTON DSDA,Capital,Capital
Walsall Council,http://opendatacommunities.org/id/metropolitan-district-council/walsall,WC82-161,31/07/2017,Economy & Environment,AFGHAN COMMUNITY & WELFARE CENTRE,31/07/2017,"4,935.00",66500-GRANTS TO OTHER ORGS,ESF COMMUNITY GRANTS,Third Party Payments,Revenue
Walsall Council,http://opendatacommunities.org/id/metropolitan-district-council/walsall,WC82-162,31/07/2017,Economy & Environment,AGILE APPLICATIONS LIMITED,12/07/2017,"26,084.28",63800-COMPUTER EQUIPMENT AND SUPPLIES,LLPG ICT PROJECT COSTS,Supplies & Services,Revenue
Walsall Council,http://opendatacommunities.org/id/metropolitan-district-council/walsall,WC82-163,31/07/2017,Adult Social Care,REDACTED,11/07/2017,"1,882.00",76422-DIRECT PAYMENTS TO SOCIAL SERVICES CLIENTS,LD COMMISSIONING,Transfer Payments,Revenue
Walsall Council,http://opendatacommunities.org/id/metropolitan-district-council/walsall,WC82-164,31/07/2017,Adult Social Care,REDACTED,11/07/2017,914.2,76422-DIRECT PAYMENTS TO SOCIAL SERVICES CLIENTS,OP COMMISSIONING,Transfer Payments,Revenue
Walsall Council,http://opendatacommunities.org/id/metropolitan-district-council/walsall,WC82-165,31/07/2017,Childrens,AJK TRAVEL,12/07/2017,"25,564.58",52000-WITH DRIVER-HIRE OF VEHICLES,SCHOOL TRANSPORT,Transport,Revenue
Walsall Council,http://opendatacommunities.org/id/metropolitan-district-council/walsall,WC82-166,31/07/2017,Economy & Environment,REDACTED,03/07/2017,250,62527-VISUAL ARTS,GARMAN RYAN,Supplies & Services,Revenue
Walsall Council,http://opendatacommunities.org/id/metropolitan-district-council/walsall,WC82-167,31/07/2017,Childrens,ALBRIGHTON CARE LTD,18/07/2017,"9,980.00",74036-EXTERNAL RESIDENTIAL CARE-OTH AGENCY PROVISION,INDEPENDENT RESIDENTIAL HOMES,Third Party Payments,Revenue
Walsall Council,http://opendatacommunities.org/id/metropolitan-district-council/walsall,WC82-168,31/07/2017,Economy & Environment,ALDERBROOK HEALTHCARE LTD,20/07/2017,871.2,63000-PROFESSIONAL FEES AND SERVICES,CORONERS SERVICE,Supplies & Services,Revenue
Walsall Council,http://opendatacommunities.org/id/metropolitan-district-council/walsall,WC82-169,31/07/2017,Economy & Environment,ALDERBROOK HEALTHCARE LTD,20/07/2017,"1,109.00",63000-PROFESSIONAL FEES AND SERVICES,CORONERS SERVICE,Supplies & Services,Revenue
Walsall Council,http://opendatacommunities.org/id/metropolitan-district-council/walsall,WC82-170,31/07/2017,Economy & Environment,ALDERBROOK HEALTHCARE LTD,20/07/2017,"1,530.40",63000-PROFESSIONAL FEES AND SERVICES,CORONERS SERVICE,Supplies & Services,Revenue
Walsall Council,http://opendatacommunities.org/id/metropolitan-district-council/walsall,WC82-171,31/07/2017,Economy & Environment,ALDERBROOK HEALTHCARE LTD,20/07/2017,"1,593.00",63000-PROFESSIONAL FEES AND SERVICES,CORONERS SERVICE,Supplies & Services,Revenue
Walsall Council,http://opendatacommunities.org/id/metropolitan-district-council/walsall,WC82-172,31/07/2017,Economy & Environment,ALDERBROOK HEALTHCARE LTD,20/07/2017,"2,063.50",63000-PROFESSIONAL FEES AND SERVICES,CORONERS SERVICE,Supplies & Services,Revenue
Walsall Council,http://opendatacommunities.org/id/metropolitan-district-council/walsall,WC82-173,31/07/2017,Economy & Environment,ALDERBROOK HEALTHCARE LTD,20/07/2017,"3,194.95",63000-PROFESSIONAL FEES AND SERVICES,CORONERS SERVICE,Supplies & Services,Revenue
Walsall Council,http://opendatacommunities.org/id/metropolitan-district-council/walsall,WC82-174,31/07/2017,Adult Social Care,ALDERGROVE MANOR LTD,11/07/2017,"1,839.68",73373-RESIDENTIAL & NURSING CARE PLACEMENTS,MH COMMISSIONING,Third Party Payments,Revenue
Walsall Council,http://opendatacommunities.org/id/metropolitan-district-council/walsall,WC82-175,31/07/2017,Adult Social Care,REDACTED,11/07/2017,"1,204.00",76422-DIRECT PAYMENTS TO SOCIAL SERVICES CLIENTS,PD COMMISSIONING,Transfer Payments,Revenue
Walsall Council,http://opendatacommunities.org/id/metropolitan-district-council/walsall,WC82-176,31/07/2017,Adult Social Care,ALEXANDRA HOUSE CARE SERVICES LTD T/A STONEBRIDGE NURSING HOME,18/07/2017,"7,117.44",73373-RESIDENTIAL & NURSING CARE PLACEMENTS,LD COMMISSIONING,Third Party Payments,Revenue
Walsall Council,http://opendatacommunities.org/id/metropolitan-district-council/walsall,WC82-177,31/07/2017,Childrens,REDACTED,11/07/2017,582.66,76422-DIRECT PAYMENTS TO SOCIAL SERVICES CLIENTS,FAMILY SUPPORT - DIRECT PAYMENTS,Transfer Payments,Revenue
Walsall Council,http://opendatacommunities.org/id/metropolitan-district-council/walsall,WC82-178,31/07/2017,Childrens,ALFORD PRIMARY SCHOOL,25/07/2017,300,77300-ISB-FORMULA ALLOCATION,OUT OF BOROUGH SCHOOLS,Transfer Payments,Revenue
Walsall Council,http://opendatacommunities.org/id/metropolitan-district-council/walsall,WC82-179,31/07/2017,Adult Social Care,REDACTED,11/07/2017,898,76422-DIRECT PAYMENTS TO SOCIAL SERVICES CLIENTS,PD COMMISSIONING,Transfer Payments,Revenue
Walsall Council,http://opendatacommunities.org/id/metropolitan-district-council/walsall,WC82-180,31/07/2017,Adult Social Care,REDACTED,11/07/2017,612,76422-DIRECT PAYMENTS TO SOCIAL SERVICES CLIENTS,OP COMMISSIONING,Transfer Payments,Revenue
Walsall Council,http://opendatacommunities.org/id/metropolitan-district-council/walsall,WC82-181,31/07/2017,Adult Social Care,REDACTED,20/07/2017,926.23,73374-SUPPORTED & OTHER ACCOMMODATION,LD COMMISSIONING,Third Party Payments,Revenue
Walsall Council,http://opendatacommunities.org/id/metropolitan-district-council/walsall,WC82-182,31/07/2017,Adult Social Care,REDACTED,20/07/2017,"1,251.64",73374-SUPPORTED & OTHER ACCOMMODATION,LD COMMISSIONING,Third Party Payments,Revenue
Walsall Council,http://opendatacommunities.org/id/metropolitan-district-council/walsall,WC82-183,31/07/2017,Adult Social Care,REDACTED,20/07/2017,"1,251.64",73374-SUPPORTED & OTHER ACCOMMODATION,LD COMMISSIONING,Third Party Payments,Revenue
Walsall Council,http://opendatacommunities.org/id/metropolitan-district-council/walsall,WC82-184,31/07/2017,Childrens,REDACTED,05/07/2017,780,66505-OTHER-GRANTS TO OTHER ORGS,EARLY YEARS - 3 YR OLDS,Third Party Payments,Revenue
Walsall Council,http://opendatacommunities.org/id/metropolitan-district-council/walsall,WC82-185,31/07/2017,Childrens,REDACTED,03/07/2017,81.63,74501-MAINTENANCE ALLOWANCE-FOSTER CARERS,FAMILY & FRIENDS FOSTER CARE PROVISION,Transfer Payments,Revenue
Walsall Council,http://opendatacommunities.org/id/metropolitan-district-council/walsall,WC82-186,31/07/2017,Childrens,REDACTED,03/07/2017,285.72,74504-HOLIDAY/CHRISTMAS ALLOWANCE-FOSTER CARERS,FAMILY & FRIENDS FOSTER CARE PROVISION,Transfer Payments,Revenue
Walsall Council,http://opendatacommunities.org/id/metropolitan-district-council/walsall,WC82-187,31/07/2017,Childrens,REDACTED,03/07/2017,418.84,74509-SPECIAL GUARDIANSHIP ORDERS,ADOPTION ALLOWANCES,Transfer Payments,Revenue
Walsall Council,http://opendatacommunities.org/id/metropolitan-district-council/walsall,WC82-188,31/07/2017,Childrens,REDACTED,03/07/2017,552.96,74510-RESIDENTS ORDERS,ADOPTION ALLOWANCES,Third Party Payments,Revenue
Walsall Council,http://opendatacommunities.org/id/metropolitan-district-council/walsall,WC82-189,31/07/2017,Childrens,ALL SAINTS NATIONAL ACADEMY #1,25/07/2017,300,77300-ISB-FORMULA ALLOCATION,OUT OF BOROUGH SCHOOLS,Transfer Payments,Revenue
Walsall Council,http://opendatacommunities.org/id/metropolitan-district-council/walsall,WC82-190,31/07/2017,Childrens,ALLEYNE'S ACADEMY,25/07/2017,300,77300-ISB-FORMULA ALLOCATION,OUT OF BOROUGH SCHOOLS,Transfer Payments,Revenue
Walsall Council,http://opendatacommunities.org/id/metropolitan-district-council/walsall,WC82-191,31/07/2017,Adult Social Care,ALMA COURT,14/07/2017,"2,700.00",73374-SUPPORTED & OTHER ACCOMMODATION,OP COMMISSIONING,Third Party Payments,Revenue
Walsall Council,http://opendatacommunities.org/id/metropolitan-district-council/walsall,WC82-192,31/07/2017,Adult Social Care,ALMA COURT,18/07/2017,"6,316.87",73373-RESIDENTIAL & NURSING CARE PLACEMENTS,MH COMMISSIONING,Third Party Payments,Revenue
Walsall Council,http://opendatacommunities.org/id/metropolitan-district-council/walsall,WC82-193,31/07/2017,Economy & Environment,ALMOZENE NURSERY & CHILDRENS CENTRE,26/07/2017,172.5,63000-PROFESSIONAL FEES AND SERVICES,YEI (IMPACT) PROGRAMME,Supplies & Services,Revenue
Walsall Council,http://opendatacommunities.org/id/metropolitan-district-council/walsall,WC82-194,31/07/2017,Economy & Environment,ALMOZENE NURSERY & CHILDRENS CENTRE,26/07/2017,172.5,63000-PROFESSIONAL FEES AND SERVICES,YEI ESF FUNDING,Supplies & Services,Revenue
Walsall Council,http://opendatacommunities.org/id/metropolitan-district-council/walsall,WC82-195,31/07/2017,Economy & Environment,ALMOZENE NURSERY & CHILDRENS CENTRE,26/07/2017,296.5,63000-PROFESSIONAL FEES AND SERVICES,YEI (IMPACT) PROGRAMME,Supplies & Services,Revenue
Walsall Council,http://opendatacommunities.org/id/metropolitan-district-council/walsall,WC82-196,31/07/2017,Economy & Environment,ALMOZENE NURSERY & CHILDRENS CENTRE,26/07/2017,296.5,63000-PROFESSIONAL FEES AND SERVICES,YEI ESF FUNDING,Supplies & Services,Revenue
Walsall Council,http://opendatacommunities.org/id/metropolitan-district-council/walsall,WC82-197,31/07/2017,Childrens,ALMOZENE NURSERY & CHILDRENS CENTRE,10/07/2017,310.05,66505-OTHER-GRANTS TO OTHER ORGS,EARLY YEARS - 3 YR OLDS,Third Party Payments,Revenue
Walsall Council,http://opendatacommunities.org/id/metropolitan-district-council/walsall,WC82-198,31/07/2017,Childrens,ALMOZENE NURSERY & CHILDRENS CENTRE,05/07/2017,"1,021.80",66505-OTHER-GRANTS TO OTHER ORGS,EARLY YEARS - 2 YR OLDS,Third Party Payments,Revenue
Walsall Council,http://opendatacommunities.org/id/metropolitan-district-council/walsall,WC82-199,31/07/2017,Childrens,ALMOZENE NURSERY & CHILDRENS CENTRE,05/07/2017,"4,056.00",66505-OTHER-GRANTS TO OTHER ORGS,EARLY YEARS - 3 YR OLDS,Third Party Payments,Revenue
Walsall Council,http://opendatacommunities.org/id/metropolitan-district-council/walsall,WC82-200,31/07/2017,Adult Social Care,ALPHA HEALTH CARE LTD,11/07/2017,"1,620.00",73373-RESIDENTIAL & NURSING CARE PLACEMENTS,OP COMMISSIONING,Third Party Payments,Revenue
Walsall Council,http://opendatacommunities.org/id/metropolitan-district-council/walsall,WC82-201,31/07/2017,Adult Social Care,ALPHA HEALTH CARE LTD,11/07/2017,"1,620.00",73373-RESIDENTIAL & NURSING CARE PLACEMENTS,OP COMMISSIONING,Third Party Payments,Revenue
Walsall Council,http://opendatacommunities.org/id/metropolitan-district-council/walsall,WC82-202,31/07/2017,Adult Social Care,ALPHA HEALTH CARE LTD,11/07/2017,"1,620.00",73373-RESIDENTIAL & NURSING CARE PLACEMENTS,OP COMMISSIONING,Third Party Payments,Revenue
Walsall Council,http://opendatacommunities.org/id/metropolitan-district-council/walsall,WC82-203,31/07/2017,Adult Social Care,ALPHA HEALTH CARE LTD,11/07/2017,"1,620.00",73373-RESIDENTIAL & NURSING CARE PLACEMENTS,OP COMMISSIONING,Third Party Payments,Revenue
Walsall Council,http://opendatacommunities.org/id/metropolitan-district-council/walsall,WC82-204,31/07/2017,Adult Social Care,ALPHA HEALTH CARE LTD,11/07/2017,"1,649.80",73373-RESIDENTIAL & NURSING CARE PLACEMENTS,OP COMMISSIONING,Third Party Payments,Revenue
Walsall Council,http://opendatacommunities.org/id/metropolitan-district-council/walsall,WC82-205,31/07/2017,Adult Social Care,ALPHA HEALTH CARE LTD,11/07/2017,"1,649.80",73373-RESIDENTIAL & NURSING CARE PLACEMENTS,OP COMMISSIONING,Third Party Payments,Revenue
Walsall Council,http://opendatacommunities.org/id/metropolitan-district-council/walsall,WC82-206,31/07/2017,Adult Social Care,ALPHA HEALTH CARE LTD,11/07/2017,"1,649.80",73373-RESIDENTIAL & NURSING CARE PLACEMENTS,OP COMMISSIONING,Third Party Payments,Revenue
Walsall Council,http://opendatacommunities.org/id/metropolitan-district-council/walsall,WC82-207,31/07/2017,Adult Social Care,ALPHA HEALTH CARE LTD,11/07/2017,"1,649.80",73373-RESIDENTIAL & NURSING CARE PLACEMENTS,OP COMMISSIONING,Third Party Payments,Revenue
Walsall Council,http://opendatacommunities.org/id/metropolitan-district-council/walsall,WC82-208,31/07/2017,Adult Social Care,ALPHA HEALTH CARE LTD,11/07/2017,"1,649.80",73373-RESIDENTIAL & NURSING CARE PLACEMENTS,MH COMMISSIONING,Third Party Payments,Revenue
Walsall Council,http://opendatacommunities.org/id/metropolitan-district-council/walsall,WC82-209,31/07/2017,Adult Social Care,ALPHA HEALTH CARE LTD,11/07/2017,"1,649.80",73373-RESIDENTIAL & NURSING CARE PLACEMENTS,OP COMMISSIONING,Third Party Payments,Revenue
Walsall Council,http://opendatacommunities.org/id/metropolitan-district-council/walsall,WC82-210,31/07/2017,Adult Social Care,ALPHA HEALTH CARE LTD,11/07/2017,"1,649.80",73373-RESIDENTIAL & NURSING CARE PLACEMENTS,MH COMMISSIONING,Third Party Payments,Revenue
Walsall Council,http://opendatacommunities.org/id/metropolitan-district-council/walsall,WC82-211,31/07/2017,Adult Social Care,ALPHA HEALTH CARE LTD,11/07/2017,"1,649.80",73373-RESIDENTIAL & NURSING CARE PLACEMENTS,OP COMMISSIONING,Third Party Payments,Revenue
Walsall Council,http://opendatacommunities.org/id/metropolitan-district-council/walsall,WC82-212,31/07/2017,Adult Social Care,ALPHA HEALTH CARE LTD,11/07/2017,"1,800.00",73373-RESIDENTIAL & NURSING CARE PLACEMENTS,OP COMMISSIONING,Third Party Payments,Revenue
Walsall Council,http://opendatacommunities.org/id/metropolitan-district-council/walsall,WC82-213,31/07/2017,Adult Social Care,ALPHA HEALTH CARE LTD,11/07/2017,"1,800.00",73373-RESIDENTIAL & NURSING CARE PLACEMENTS,OP COMMISSIONING,Third Party Payments,Revenue
Walsall Council,http://opendatacommunities.org/id/metropolitan-district-council/walsall,WC82-214,31/07/2017,Adult Social Care,ALPHA HEALTH CARE LTD,11/07/2017,"1,800.00",73373-RESIDENTIAL & NURSING CARE PLACEMENTS,MH COMMISSIONING,Third Party Payments,Revenue
Walsall Council,http://opendatacommunities.org/id/metropolitan-district-council/walsall,WC82-215,31/07/2017,Adult Social Care,ALPHA HEALTH CARE LTD,11/07/2017,"2,095.00",73373-RESIDENTIAL & NURSING CARE PLACEMENTS,OP COMMISSIONING,Third Party Payments,Revenue
Walsall Council,http://opendatacommunities.org/id/metropolitan-district-council/walsall,WC82-216,31/07/2017,Adult Social Care,ALPHA HEALTH CARE LTD,11/07/2017,"2,095.00",73373-RESIDENTIAL & NURSING CARE PLACEMENTS,OP COMMISSIONING,Third Party Payments,Revenue
Walsall Council,http://opendatacommunities.org/id/metropolitan-district-council/walsall,WC82-217,31/07/2017,Adult Social Care,ALPHA HEALTH CARE LTD,11/07/2017,"2,095.00",73373-RESIDENTIAL & NURSING CARE PLACEMENTS,OP COMMISSIONING,Third Party Payments,Revenue
Walsall Council,http://opendatacommunities.org/id/metropolitan-district-council/walsall,WC82-218,31/07/2017,Adult Social Care,ALPHA HEALTH CARE LTD,11/07/2017,"2,175.00",73373-RESIDENTIAL & NURSING CARE PLACEMENTS,OP COMMISSIONING,Third Party Payments,Revenue
Walsall Council,http://opendatacommunities.org/id/metropolitan-district-council/walsall,WC82-219,31/07/2017,Adult Social Care,ALPHA HEALTH CARE LTD,11/07/2017,"2,175.00",73373-RESIDENTIAL & NURSING CARE PLACEMENTS,OP COMMISSIONING,Third Party Payments,Revenue
Walsall Council,http://opendatacommunities.org/id/metropolitan-district-council/walsall,WC82-220,31/07/2017,Adult Social Care,ALPHA HEALTH CARE LTD,11/07/2017,"2,326.00",73373-RESIDENTIAL & NURSING CARE PLACEMENTS,MH COMMISSIONING,Third Party Payments,Revenue
Walsall Council,http://opendatacommunities.org/id/metropolitan-district-council/walsall,WC82-221,31/07/2017,Adult Social Care,ALPHA HEALTH CARE LTD,11/07/2017,"2,859.48",73373-RESIDENTIAL & NURSING CARE PLACEMENTS,MH COMMISSIONING,Third Party Payments,Revenue
Walsall Council,http://opendatacommunities.org/id/metropolitan-district-council/walsall,WC82-222,31/07/2017,Adult Social Care,ALPHA HEALTH CARE LTD,11/07/2017,"5,795.20",73373-RESIDENTIAL & NURSING CARE PLACEMENTS,MH COMMISSIONING,Third Party Payments,Revenue
Walsall Council,http://opendatacommunities.org/id/metropolitan-district-council/walsall,WC82-223,31/07/2017,Adult Social Care,ALPHA HEALTH CARE LTD,11/07/2017,"5,800.00",73373-RESIDENTIAL & NURSING CARE PLACEMENTS,MH COMMISSIONING,Third Party Payments,Revenue
Walsall Council,http://opendatacommunities.org/id/metropolitan-district-council/walsall,WC82-224,31/07/2017,Adult Social Care,ALPHA HEALTH CARE LTD,11/07/2017,"5,800.00",73373-RESIDENTIAL & NURSING CARE PLACEMENTS,MH COMMISSIONING,Third Party Payments,Revenue
Walsall Council,http://opendatacommunities.org/id/metropolitan-district-council/walsall,WC82-225,31/07/2017,Adult Social Care,ALPHA HEALTH CARE LTD,11/07/2017,"5,800.00",73373-RESIDENTIAL & NURSING CARE PLACEMENTS,MH COMMISSIONING,Third Party Payments,Revenue
Walsall Council,http://opendatacommunities.org/id/metropolitan-district-council/walsall,WC82-226,31/07/2017,Adult Social Care,ALPHA HEALTH CARE LTD,11/07/2017,"7,300.00",73373-RESIDENTIAL & NURSING CARE PLACEMENTS,MH COMMISSIONING,Third Party Payments,Revenue
Walsall Council,http://opendatacommunities.org/id/metropolitan-district-council/walsall,WC82-227,31/07/2017,Childrens,ALPHABIOLABS,06/07/2017,312.5,73014-LEGAL FEES-PRIV CONTRACTOR FEES,GENERAL MANAGEMENT SUPPORT (INC LEGAL),Third Party Payments,Revenue
Walsall Council,http://opendatacommunities.org/id/metropolitan-district-council/walsall,WC82-228,31/07/2017,Childrens,ALPHABIOLABS,12/07/2017,412.5,73014-LEGAL FEES-PRIV CONTRACTOR FEES,GENERAL MANAGEMENT SUPPORT (INC LEGAL),Third Party Payments,Revenue
Walsall Council,http://opendatacommunities.org/id/metropolitan-district-council/walsall,WC82-229,31/07/2017,Childrens,ALPHABIOLABS,01/07/2017,465,73014-LEGAL FEES-PRIV CONTRACTOR FEES,GENERAL MANAGEMENT SUPPORT (INC LEGAL),Third Party Payments,Revenue
Walsall Council,http://opendatacommunities.org/id/metropolitan-district-council/walsall,WC82-230,31/07/2017,Childrens,ALPHABIOLABS,01/07/2017,465,73014-LEGAL FEES-PRIV CONTRACTOR FEES,GENERAL MANAGEMENT SUPPORT (INC LEGAL),Third Party Payments,Revenue
Walsall Council,http://opendatacommunities.org/id/metropolitan-district-council/walsall,WC82-231,31/07/2017,Childrens,ALPHABIOLABS,18/07/2017,495,63000-PROFESSIONAL FEES AND SERVICES,SAFEGUARDING & FAMILY SUPPORT,Supplies & Services,Revenue
Walsall Council,http://opendatacommunities.org/id/metropolitan-district-council/walsall,WC82-232,31/07/2017,Childrens,ALPHABIOLABS,06/07/2017,825,73014-LEGAL FEES-PRIV CONTRACTOR FEES,GENERAL MANAGEMENT SUPPORT (INC LEGAL),Third Party Payments,Revenue
Walsall Council,http://opendatacommunities.org/id/metropolitan-district-council/walsall,WC82-233,31/07/2017,Childrens,ALPHABIOLABS,12/07/2017,885,73014-LEGAL FEES-PRIV CONTRACTOR FEES,GENERAL MANAGEMENT SUPPORT (INC LEGAL),Third Party Payments,Revenue
Walsall Council,http://opendatacommunities.org/id/metropolitan-district-council/walsall,WC82-234,31/07/2017,Childrens,ALUMWELLIES NURSERY,10/07/2017,413.4,66505-OTHER-GRANTS TO OTHER ORGS,EARLY YEARS - 3 YR OLDS,Third Party Payments,Revenue
Walsall Council,http://opendatacommunities.org/id/metropolitan-district-council/walsall,WC82-235,31/07/2017,Childrens,ALUMWELLIES NURSERY,01/07/2017,640,77200-TRANSFER PAYMENTS-OTHER SCHOOLCHILDREN/STUDENT RELATED ITEMS,EARLY YEARS - SOCIAL INCLUSION FUND - 2 YR OLDS,Transfer Payments,Revenue
Walsall Council,http://opendatacommunities.org/id/metropolitan-district-council/walsall,WC82-236,31/07/2017,Childrens,ALUMWELLIES NURSERY,01/07/2017,640,77200-TRANSFER PAYMENTS-OTHER SCHOOLCHILDREN/STUDENT RELATED ITEMS,EARLY YEARS - SOCIAL INCLUSION FUND - 2 YR OLDS,Transfer Payments,Revenue
Walsall Council,http://opendatacommunities.org/id/metropolitan-district-council/walsall,WC82-237,31/07/2017,Childrens,ALUMWELLIES NURSERY,01/07/2017,640,77200-TRANSFER PAYMENTS-OTHER SCHOOLCHILDREN/STUDENT RELATED ITEMS,EARLY YEARS - SOCIAL INCLUSION FUND - 3/4 YR OLD,Transfer Payments,Revenue
Walsall Council,http://opendatacommunities.org/id/metropolitan-district-council/walsall,WC82-238,31/07/2017,Childrens,ALUMWELLIES NURSERY,01/07/2017,640,77200-TRANSFER PAYMENTS-OTHER SCHOOLCHILDREN/STUDENT RELATED ITEMS,EARLY YEARS - SOCIAL INCLUSION FUND - 3/4 YR OLD,Transfer Payments,Revenue
Walsall Council,http://opendatacommunities.org/id/metropolitan-district-council/walsall,WC82-239,31/07/2017,Childrens,ALUMWELLIES NURSERY,05/07/2017,"20,280.00",66505-OTHER-GRANTS TO OTHER ORGS,EARLY YEARS - 3 YR OLDS,Third Party Payments,Revenue
Walsall Council,http://opendatacommunities.org/id/metropolitan-district-council/walsall,WC82-240,31/07/2017,Childrens,AMAH NURSERIES LIMITED T/A BANANA MOON WALSALL,05/07/2017,"2,496.00",66505-OTHER-GRANTS TO OTHER ORGS,EARLY YEARS - 3 YR OLDS,Third Party Payments,Revenue
Walsall Council,http://opendatacommunities.org/id/metropolitan-district-council/walsall,WC82-241,31/07/2017,Childrens,AMAH NURSERIES LIMITED T/A BANANA MOON WALSALL,05/07/2017,"5,109.00",66505-OTHER-GRANTS TO OTHER ORGS,EARLY YEARS - 2 YR OLDS,Third Party Payments,Revenue
Walsall Council,http://opendatacommunities.org/id/metropolitan-district-council/walsall,WC82-242,31/07/2017,Childrens,REDACTED,03/07/2017,808.04,74009-ADOPTION ALLOWANCE,ADOPTION ALLOWANCES,Transfer Payments,Revenue
Walsall Council,http://opendatacommunities.org/id/metropolitan-district-council/walsall,WC82-243,31/07/2017,Childrens,REDACTED,17/07/2017,9.24,60006-NEW-FURNITURE & EQUIPMENT,INTERNAL FOSTER CARE PROVISION,Supplies & Services,Revenue
Walsall Council,http://opendatacommunities.org/id/metropolitan-district-council/walsall,WC82-244,31/07/2017,Childrens,REDACTED,17/07/2017,530.96,74508-INTERNAL FOSTER CARERS-CARER FEES,INTERNAL FOSTER CARE PROVISION,Transfer Payments,Revenue
Walsall Council,http://opendatacommunities.org/id/metropolitan-district-council/walsall,WC82-245,31/07/2017,Childrens,REDACTED,17/07/2017,650.92,74501-MAINTENANCE ALLOWANCE-FOSTER CARERS,INTERNAL FOSTER CARE PROVISION,Transfer Payments,Revenue
Walsall Council,http://opendatacommunities.org/id/metropolitan-district-council/walsall,WC82-246,31/07/2017,Childrens,REDACTED,11/07/2017,336.92,76422-DIRECT PAYMENTS TO SOCIAL SERVICES CLIENTS,FAMILY SUPPORT - DIRECT PAYMENTS,Transfer Payments,Revenue
Walsall Council,http://opendatacommunities.org/id/metropolitan-district-council/walsall,WC82-247,31/07/2017,Economy & Environment,AMEY LG LIMITED,12/07/2017,"3,819.18",63000-PROFESSIONAL FEES AND SERVICES,FESTIVE DECORATIONS,Supplies & Services,Revenue
Walsall Council,http://opendatacommunities.org/id/metropolitan-district-council/walsall,WC82-248,31/07/2017,Economy & Environment,AMEY LG LIMITED,26/07/2017,"16,796.11",73025-PROFESSIONAL SERVICES-PRIV CONTRACTOR & OTHER AGENCIES,TRAFFIC MANAGEMENT,Third Party Payments,Revenue
Walsall Council,http://opendatacommunities.org/id/metropolitan-district-council/walsall,WC82-249,31/07/2017,Childrens,AMG NURSING CARE SERVICES,12/07/2017,"1,110.72",63000-PROFESSIONAL FEES AND SERVICES,DIRECTLY COMMISSIONED NURSING SERVICES,Supplies & Services,Revenue
Walsall Council,http://opendatacommunities.org/id/metropolitan-district-council/walsall,WC82-250,31/07/2017,Childrens,AMG NURSING CARE SERVICES,12/07/2017,"2,274.48",63000-PROFESSIONAL FEES AND SERVICES,DIRECTLY COMMISSIONED NURSING SERVICES,Supplies & Services,Revenue
Walsall Council,http://opendatacommunities.org/id/metropolitan-district-council/walsall,WC82-251,31/07/2017,Childrens,AMG NURSING CARE SERVICES,12/07/2017,"2,340.40",63000-PROFESSIONAL FEES AND SERVICES,DIRECTLY COMMISSIONED NURSING SERVICES,Supplies & Services,Revenue
Walsall Council,http://opendatacommunities.org/id/metropolitan-district-council/walsall,WC82-252,31/07/2017,Childrens,AMG NURSING CARE SERVICES,06/07/2017,"2,644.72",63000-PROFESSIONAL FEES AND SERVICES,DIRECTLY COMMISSIONED NURSING SERVICES,Supplies & Services,Revenue
Walsall Council,http://opendatacommunities.org/id/metropolitan-district-council/walsall,WC82-253,31/07/2017,Childrens,AMG NURSING CARE SERVICES,12/07/2017,"2,644.72",63000-PROFESSIONAL FEES AND SERVICES,DIRECTLY COMMISSIONED NURSING SERVICES,Supplies & Services,Revenue
Walsall Council,http://opendatacommunities.org/id/metropolitan-district-council/walsall,WC82-254,31/07/2017,Adult Social Care,AMG NURSING CARE SERVICES,01/07/2017,"10,671.83",73374-SUPPORTED & OTHER ACCOMMODATION,OP COMMISSIONING,Third Party Payments,Revenue
Walsall Council,http://opendatacommunities.org/id/metropolitan-district-council/walsall,WC82-255,31/07/2017,Childrens,REDACTED,03/07/2017,9.24,60006-NEW-FURNITURE & EQUIPMENT,FAMILY & FRIENDS FOSTER CARE PROVISION,Supplies & Services,Revenue
Walsall Council,http://opendatacommunities.org/id/metropolitan-district-council/walsall,WC82-256,31/07/2017,Childrens,REDACTED,03/07/2017,345.24,74508-INTERNAL FOSTER CARERS-CARER FEES,FAMILY & FRIENDS FOSTER CARE PROVISION,Transfer Payments,Revenue
Walsall Council,http://opendatacommunities.org/id/metropolitan-district-council/walsall,WC82-257,31/07/2017,Childrens,REDACTED,03/07/2017,571.44,74501-MAINTENANCE ALLOWANCE-FOSTER CARERS,FAMILY & FRIENDS FOSTER CARE PROVISION,Transfer Payments,Revenue
Walsall Council,http://opendatacommunities.org/id/metropolitan-district-council/walsall,WC82-258,31/07/2017,Childrens,REDACTED,03/07/2017,425.08,74510-RESIDENTS ORDERS,ADOPTION ALLOWANCES,Third Party Payments,Revenue
Walsall Council,http://opendatacommunities.org/id/metropolitan-district-council/walsall,WC82-259,31/07/2017,Adult Social Care,REDACTED,11/07/2017,576,76422-DIRECT PAYMENTS TO SOCIAL SERVICES CLIENTS,OP COMMISSIONING,Transfer Payments,Revenue
Walsall Council,http://opendatacommunities.org/id/metropolitan-district-council/walsall,WC82-260,31/07/2017,Adult Social Care,ANCHOR,04/07/2017,771.43,73373-RESIDENTIAL & NURSING CARE PLACEMENTS,MH COMMISSIONING,Third Party Payments,Revenue
Walsall Council,http://opendatacommunities.org/id/metropolitan-district-council/walsall,WC82-261,31/07/2017,Adult Social Care,ANCHOR,04/07/2017,"1,028.57",73373-RESIDENTIAL & NURSING CARE PLACEMENTS,MH COMMISSIONING,Third Party Payments,Revenue
Walsall Council,http://opendatacommunities.org/id/metropolitan-district-council/walsall,WC82-262,31/07/2017,Adult Social Care,ANCHOR,04/07/2017,"1,620.00",73373-RESIDENTIAL & NURSING CARE PLACEMENTS,OP COMMISSIONING,Third Party Payments,Revenue
Walsall Council,http://opendatacommunities.org/id/metropolitan-district-council/walsall,WC82-263,31/07/2017,Adult Social Care,ANCHOR,04/07/2017,"1,620.00",73373-RESIDENTIAL & NURSING CARE PLACEMENTS,OP COMMISSIONING,Third Party Payments,Revenue
Walsall Council,http://opendatacommunities.org/id/metropolitan-district-council/walsall,WC82-264,31/07/2017,Adult Social Care,ANCHOR,04/07/2017,"1,620.00",73373-RESIDENTIAL & NURSING CARE PLACEMENTS,OP COMMISSIONING,Third Party Payments,Revenue
Walsall Council,http://opendatacommunities.org/id/metropolitan-district-council/walsall,WC82-265,31/07/2017,Adult Social Care,ANCHOR,04/07/2017,"1,800.00",73373-RESIDENTIAL & NURSING CARE PLACEMENTS,OP COMMISSIONING,Third Party Payments,Revenue
Walsall Council,http://opendatacommunities.org/id/metropolitan-district-council/walsall,WC82-266,31/07/2017,Adult Social Care,ANCHOR,04/07/2017,"1,800.00",73373-RESIDENTIAL & NURSING CARE PLACEMENTS,OP COMMISSIONING,Third Party Payments,Revenue
Walsall Council,http://opendatacommunities.org/id/metropolitan-district-council/walsall,WC82-267,31/07/2017,Adult Social Care,ANCHOR,04/07/2017,"1,800.00",73373-RESIDENTIAL & NURSING CARE PLACEMENTS,OP COMMISSIONING,Third Party Payments,Revenue
Walsall Council,http://opendatacommunities.org/id/metropolitan-district-council/walsall,WC82-268,31/07/2017,Adult Social Care,ANCHOR,04/07/2017,"1,800.00",73373-RESIDENTIAL & NURSING CARE PLACEMENTS,OP COMMISSIONING,Third Party Payments,Revenue
Walsall Council,http://opendatacommunities.org/id/metropolitan-district-council/walsall,WC82-269,31/07/2017,Adult Social Care,ANCHOR,04/07/2017,"1,800.00",73373-RESIDENTIAL & NURSING CARE PLACEMENTS,OP COMMISSIONING,Third Party Payments,Revenue
Walsall Council,http://opendatacommunities.org/id/metropolitan-district-council/walsall,WC82-270,31/07/2017,Adult Social Care,ANCHOR,04/07/2017,"1,800.00",73373-RESIDENTIAL & NURSING CARE PLACEMENTS,OP COMMISSIONING,Third Party Payments,Revenue
Walsall Council,http://opendatacommunities.org/id/metropolitan-district-council/walsall,WC82-271,31/07/2017,Adult Social Care,ANCHOR,04/07/2017,"1,800.00",73373-RESIDENTIAL & NURSING CARE PLACEMENTS,OP COMMISSIONING,Third Party Payments,Revenue
Walsall Council,http://opendatacommunities.org/id/metropolitan-district-council/walsall,WC82-272,31/07/2017,Adult Social Care,ANCHOR,04/07/2017,"1,800.00",73373-RESIDENTIAL & NURSING CARE PLACEMENTS,OP COMMISSIONING,Third Party Payments,Revenue
Walsall Council,http://opendatacommunities.org/id/metropolitan-district-council/walsall,WC82-273,31/07/2017,Adult Social Care,ANCHOR,04/07/2017,"1,800.00",73373-RESIDENTIAL & NURSING CARE PLACEMENTS,OP COMMISSIONING,Third Party Payments,Revenue
Walsall Council,http://opendatacommunities.org/id/metropolitan-district-council/walsall,WC82-274,31/07/2017,Adult Social Care,ANCHOR,04/07/2017,"1,800.00",73373-RESIDENTIAL & NURSING CARE PLACEMENTS,OP COMMISSIONING,Third Party Payments,Revenue
Walsall Council,http://opendatacommunities.org/id/metropolitan-district-council/walsall,WC82-275,31/07/2017,Adult Social Care,ANCHOR,04/07/2017,"1,800.00",73373-RESIDENTIAL & NURSING CARE PLACEMENTS,MH COMMISSIONING,Third Party Payments,Revenue
Walsall Council,http://opendatacommunities.org/id/metropolitan-district-council/walsall,WC82-276,31/07/2017,Adult Social Care,ANCHOR,04/07/2017,"1,800.00",73373-RESIDENTIAL & NURSING CARE PLACEMENTS,OP COMMISSIONING,Third Party Payments,Revenue
Walsall Council,http://opendatacommunities.org/id/metropolitan-district-council/walsall,WC82-277,31/07/2017,Adult Social Care,ANCHOR,04/07/2017,"1,800.00",73373-RESIDENTIAL & NURSING CARE PLACEMENTS,MH COMMISSIONING,Third Party Payments,Revenue
Walsall Council,http://opendatacommunities.org/id/metropolitan-district-council/walsall,WC82-278,31/07/2017,Adult Social Care,ANCHOR,04/07/2017,"1,800.00",73373-RESIDENTIAL & NURSING CARE PLACEMENTS,MH COMMISSIONING,Third Party Payments,Revenue
Walsall Council,http://opendatacommunities.org/id/metropolitan-district-council/walsall,WC82-279,31/07/2017,Adult Social Care,ANCHOR,04/07/2017,"1,800.00",73373-RESIDENTIAL & NURSING CARE PLACEMENTS,MH COMMISSIONING,Third Party Payments,Revenue
Walsall Council,http://opendatacommunities.org/id/metropolitan-district-council/walsall,WC82-280,31/07/2017,Adult Social Care,ANCHOR,18/07/2017,"1,800.00",73373-RESIDENTIAL & NURSING CARE PLACEMENTS,MH COMMISSIONING,Third Party Payments,Revenue
Walsall Council,http://opendatacommunities.org/id/metropolitan-district-council/walsall,WC82-281,31/07/2017,Adult Social Care,ANCHOR,18/07/2017,"2,080.00",73373-RESIDENTIAL & NURSING CARE PLACEMENTS,MH COMMISSIONING,Third Party Payments,Revenue
Walsall Council,http://opendatacommunities.org/id/metropolitan-district-council/walsall,WC82-282,31/07/2017,Childrens,REDACTED,17/07/2017,9.24,60006-NEW-FURNITURE & EQUIPMENT,INTERNAL FOSTER CARE PROVISION,Supplies & Services,Revenue
Walsall Council,http://opendatacommunities.org/id/metropolitan-district-council/walsall,WC82-283,31/07/2017,Childrens,REDACTED,17/07/2017,202.58,74504-HOLIDAY/CHRISTMAS ALLOWANCE-FOSTER CARERS,INTERNAL FOSTER CARE PROVISION,Transfer Payments,Revenue
Walsall Council,http://opendatacommunities.org/id/metropolitan-district-council/walsall,WC82-284,31/07/2017,Childrens,REDACTED,17/07/2017,810.32,74501-MAINTENANCE ALLOWANCE-FOSTER CARERS,INTERNAL FOSTER CARE PROVISION,Transfer Payments,Revenue
Walsall Council,http://opendatacommunities.org/id/metropolitan-district-council/walsall,WC82-285,31/07/2017,Childrens,REDACTED,17/07/2017,897.52,74508-INTERNAL FOSTER CARERS-CARER FEES,INTERNAL FOSTER CARE PROVISION,Transfer Payments,Revenue
Walsall Council,http://opendatacommunities.org/id/metropolitan-district-council/walsall,WC82-286,31/07/2017,Economy & Environment,REDACTED,25/07/2017,"2,000.00",62527-VISUAL ARTS,NAG - TEMPORARY EXHIBITIONS,Supplies & Services,Revenue
Walsall Council,http://opendatacommunities.org/id/metropolitan-district-council/walsall,WC82-287,31/07/2017,Childrens,ANGEL SOLUTIONS LTD,01/07/2017,"2,736.00",63114-OTHER FEES & LICENCES-SERVICES-FEES,WCS STATUTORY LICENCES,Supplies & Services,Revenue
Walsall Council,http://opendatacommunities.org/id/metropolitan-district-council/walsall,WC82-288,31/07/2017,Childrens,ANGEL SOLUTIONS LTD,01/07/2017,"9,500.00",63806-APPLICATIONS-COMPUTER,WCS STATUTORY LICENCES,Supplies & Services,Revenue
Walsall Council,http://opendatacommunities.org/id/metropolitan-district-council/walsall,WC82-289,31/07/2017,Childrens,REDACTED,03/07/2017,368.76,74509-SPECIAL GUARDIANSHIP ORDERS,ADOPTION ALLOWANCES,Transfer Payments,Revenue
Walsall Council,http://opendatacommunities.org/id/metropolitan-district-council/walsall,WC82-290,31/07/2017,Childrens,REDACTED,03/07/2017,368.76,74509-SPECIAL GUARDIANSHIP ORDERS,ADOPTION ALLOWANCES,Transfer Payments,Revenue
Walsall Council,http://opendatacommunities.org/id/metropolitan-district-council/walsall,WC82-291,31/07/2017,Childrens,REDACTED,03/07/2017,500.16,74509-SPECIAL GUARDIANSHIP ORDERS,ADOPTION ALLOWANCES,Transfer Payments,Revenue
Walsall Council,http://opendatacommunities.org/id/metropolitan-district-council/walsall,WC82-292,31/07/2017,Childrens,REDACTED,03/07/2017,312.04,74509-SPECIAL GUARDIANSHIP ORDERS,ADOPTION ALLOWANCES,Transfer Payments,Revenue
Walsall Council,http://opendatacommunities.org/id/metropolitan-district-council/walsall,WC82-293,31/07/2017,Adult Social Care,REDACTED,11/07/2017,344,76422-DIRECT PAYMENTS TO SOCIAL SERVICES CLIENTS,LD COMMISSIONING,Transfer Payments,Revenue
Walsall Council,http://opendatacommunities.org/id/metropolitan-district-council/walsall,WC82-294,31/07/2017,Adult Social Care,REDACTED,13/07/2017,311.6,73374-SUPPORTED & OTHER ACCOMMODATION,LD COMMISSIONING,Third Party Payments,Revenue
Walsall Council,http://opendatacommunities.org/id/metropolitan-district-council/walsall,WC82-295,31/07/2017,Adult Social Care,ANSON COURT RESIDENTIAL HOME,04/07/2017,"1,800.00",73373-RESIDENTIAL & NURSING CARE PLACEMENTS,OP COMMISSIONING,Third Party Payments,Revenue
Walsall Council,http://opendatacommunities.org/id/metropolitan-district-council/walsall,WC82-296,31/07/2017,Adult Social Care,ANSON COURT RESIDENTIAL HOME,04/07/2017,"1,800.00",73373-RESIDENTIAL & NURSING CARE PLACEMENTS,OP COMMISSIONING,Third Party Payments,Revenue
Walsall Council,http://opendatacommunities.org/id/metropolitan-district-council/walsall,WC82-297,31/07/2017,Adult Social Care,ANSON COURT RESIDENTIAL HOME,04/07/2017,"1,800.00",73373-RESIDENTIAL & NURSING CARE PLACEMENTS,MH COMMISSIONING,Third Party Payments,Revenue
Walsall Council,http://opendatacommunities.org/id/metropolitan-district-council/walsall,WC82-298,31/07/2017,Adult Social Care,ANSON COURT RESIDENTIAL HOME,04/07/2017,"1,800.00",73373-RESIDENTIAL & NURSING CARE PLACEMENTS,OP COMMISSIONING,Third Party Payments,Revenue
Walsall Council,http://opendatacommunities.org/id/metropolitan-district-council/walsall,WC82-299,31/07/2017,Adult Social Care,ANSON COURT RESIDENTIAL HOME,04/07/2017,"1,800.00",73373-RESIDENTIAL & NURSING CARE PLACEMENTS,OP COMMISSIONING,Third Party Payments,Revenue
Walsall Council,http://opendatacommunities.org/id/metropolitan-district-council/walsall,WC82-300,31/07/2017,Adult Social Care,ANSON COURT RESIDENTIAL HOME,04/07/2017,"1,800.00",73373-RESIDENTIAL & NURSING CARE PLACEMENTS,OP COMMISSIONING,Third Party Payments,Revenue
Walsall Council,http://opendatacommunities.org/id/metropolitan-district-council/walsall,WC82-301,31/07/2017,Adult Social Care,ANSON COURT RESIDENTIAL HOME,04/07/2017,"1,800.00",73373-RESIDENTIAL & NURSING CARE PLACEMENTS,OP COMMISSIONING,Third Party Payments,Revenue
Walsall Council,http://opendatacommunities.org/id/metropolitan-district-council/walsall,WC82-302,31/07/2017,Adult Social Care,ANSON COURT RESIDENTIAL HOME,04/07/2017,"1,800.00",73373-RESIDENTIAL & NURSING CARE PLACEMENTS,OP COMMISSIONING,Third Party Payments,Revenue
Walsall Council,http://opendatacommunities.org/id/metropolitan-district-council/walsall,WC82-303,31/07/2017,Adult Social Care,ANSON COURT RESIDENTIAL HOME,04/07/2017,"1,800.00",73373-RESIDENTIAL & NURSING CARE PLACEMENTS,MH COMMISSIONING,Third Party Payments,Revenue
Walsall Council,http://opendatacommunities.org/id/metropolitan-district-council/walsall,WC82-304,31/07/2017,Adult Social Care,ANSON COURT RESIDENTIAL HOME,04/07/2017,"1,800.00",73373-RESIDENTIAL & NURSING CARE PLACEMENTS,OP COMMISSIONING,Third Party Payments,Revenue
Walsall Council,http://opendatacommunities.org/id/metropolitan-district-council/walsall,WC82-305,31/07/2017,Adult Social Care,ANSON COURT RESIDENTIAL HOME,04/07/2017,"1,800.00",73373-RESIDENTIAL & NURSING CARE PLACEMENTS,OP COMMISSIONING,Third Party Payments,Revenue
Walsall Council,http://opendatacommunities.org/id/metropolitan-district-council/walsall,WC82-306,31/07/2017,Adult Social Care,ANSON COURT RESIDENTIAL HOME,04/07/2017,"1,800.00",73373-RESIDENTIAL & NURSING CARE PLACEMENTS,MH COMMISSIONING,Third Party Payments,Revenue
Walsall Council,http://opendatacommunities.org/id/metropolitan-district-council/walsall,WC82-307,31/07/2017,Adult Social Care,ANSON COURT RESIDENTIAL HOME,04/07/2017,"1,800.00",73373-RESIDENTIAL & NURSING CARE PLACEMENTS,OP COMMISSIONING,Third Party Payments,Revenue
Walsall Council,http://opendatacommunities.org/id/metropolitan-district-council/walsall,WC82-308,31/07/2017,Adult Social Care,ANSON COURT RESIDENTIAL HOME,04/07/2017,"1,800.00",73373-RESIDENTIAL & NURSING CARE PLACEMENTS,MH COMMISSIONING,Third Party Payments,Revenue
Walsall Council,http://opendatacommunities.org/id/metropolitan-district-council/walsall,WC82-309,31/07/2017,Adult Social Care,ANSON COURT RESIDENTIAL HOME,04/07/2017,"1,800.00",73373-RESIDENTIAL & NURSING CARE PLACEMENTS,OP COMMISSIONING,Third Party Payments,Revenue
Walsall Council,http://opendatacommunities.org/id/metropolitan-district-council/walsall,WC82-310,31/07/2017,Adult Social Care,ANSON COURT RESIDENTIAL HOME,04/07/2017,"1,800.00",73373-RESIDENTIAL & NURSING CARE PLACEMENTS,OP COMMISSIONING,Third Party Payments,Revenue
Walsall Council,http://opendatacommunities.org/id/metropolitan-district-council/walsall,WC82-311,31/07/2017,Adult Social Care,ANSON COURT RESIDENTIAL HOME,04/07/2017,"1,800.00",73373-RESIDENTIAL & NURSING CARE PLACEMENTS,OP COMMISSIONING,Third Party Payments,Revenue
Walsall Council,http://opendatacommunities.org/id/metropolitan-district-council/walsall,WC82-312,31/07/2017,Adult Social Care,ANSON COURT RESIDENTIAL HOME,04/07/2017,"1,800.00",73373-RESIDENTIAL & NURSING CARE PLACEMENTS,OP COMMISSIONING,Third Party Payments,Revenue
Walsall Council,http://opendatacommunities.org/id/metropolitan-district-council/walsall,WC82-313,31/07/2017,Adult Social Care,ANSON COURT RESIDENTIAL HOME,04/07/2017,"1,800.00",73373-RESIDENTIAL & NURSING CARE PLACEMENTS,OP COMMISSIONING,Third Party Payments,Revenue
Walsall Council,http://opendatacommunities.org/id/metropolitan-district-council/walsall,WC82-314,31/07/2017,Adult Social Care,ANSON COURT RESIDENTIAL HOME,04/07/2017,"1,800.00",73373-RESIDENTIAL & NURSING CARE PLACEMENTS,OP COMMISSIONING,Third Party Payments,Revenue
Walsall Council,http://opendatacommunities.org/id/metropolitan-district-council/walsall,WC82-315,31/07/2017,Adult Social Care,ANSON COURT RESIDENTIAL HOME,04/07/2017,"1,800.00",73373-RESIDENTIAL & NURSING CARE PLACEMENTS,OP COMMISSIONING,Third Party Payments,Revenue
Walsall Council,http://opendatacommunities.org/id/metropolitan-district-council/walsall,WC82-316,31/07/2017,Adult Social Care,ANSON COURT RESIDENTIAL HOME,04/07/2017,"1,800.00",73373-RESIDENTIAL & NURSING CARE PLACEMENTS,OP COMMISSIONING,Third Party Payments,Revenue
Walsall Council,http://opendatacommunities.org/id/metropolitan-district-council/walsall,WC82-317,31/07/2017,Adult Social Care,ANSON COURT RESIDENTIAL HOME,04/07/2017,"1,800.00",73373-RESIDENTIAL & NURSING CARE PLACEMENTS,OP COMMISSIONING,Third Party Payments,Revenue
Walsall Council,http://opendatacommunities.org/id/metropolitan-district-council/walsall,WC82-318,31/07/2017,Adult Social Care,ANSON COURT RESIDENTIAL HOME,04/07/2017,"1,880.00",73373-RESIDENTIAL & NURSING CARE PLACEMENTS,OP COMMISSIONING,Third Party Payments,Revenue
Walsall Council,http://opendatacommunities.org/id/metropolitan-district-council/walsall,WC82-319,31/07/2017,Adult Social Care,ANSON COURT RESIDENTIAL HOME,04/07/2017,"4,880.00",73373-RESIDENTIAL & NURSING CARE PLACEMENTS,MH COMMISSIONING,Third Party Payments,Revenue
Walsall Council,http://opendatacommunities.org/id/metropolitan-district-council/walsall,WC82-320,31/07/2017,Childrens,ANSON PRIMARY SCHOOL,25/07/2017,300,77300-ISB-FORMULA ALLOCATION,OUT OF BOROUGH SCHOOLS,Transfer Payments,Revenue
Walsall Council,http://opendatacommunities.org/id/metropolitan-district-council/walsall,WC82-321,31/07/2017,Childrens,REDACTED,03/07/2017,604,74510-RESIDENTS ORDERS,ADOPTION ALLOWANCES,Third Party Payments,Revenue
Walsall Council,http://opendatacommunities.org/id/metropolitan-district-council/walsall,WC82-322,31/07/2017,Childrens,REDACTED,03/07/2017,333.12,74509-SPECIAL GUARDIANSHIP ORDERS,ADOPTION ALLOWANCES,Transfer Payments,Revenue
Walsall Council,http://opendatacommunities.org/id/metropolitan-district-council/walsall,WC82-323,31/07/2017,Economy & Environment,APCOA PARKING SERVICES (UK) LTD,18/07/2017,"44,565.13",73025-PROFESSIONAL SERVICES-PRIV CONTRACTOR & OTHER AGENCIES,PARKING SERVICES OFF-STREET,Third Party Payments,Revenue
Walsall Council,http://opendatacommunities.org/id/metropolitan-district-council/walsall,WC82-324,31/07/2017,Economy & Environment,AQUA FORCE SPECIAL WASTE LTD,26/07/2017,250,73029-HAZARDOUS WASTE REMOVAL/DISPOSAL-PRIV CONTRACTOR FEES,WASTE DISPOSAL - RESIDUAL,Third Party Payments,Revenue
Walsall Council,http://opendatacommunities.org/id/metropolitan-district-council/walsall,WC82-325,31/07/2017,Economy & Environment,AQUALYMPIC,01/07/2017,270,34305-AGENCY STAFF-EMPLOYEES,OAK PARK,Employees,Revenue
Walsall Council,http://opendatacommunities.org/id/metropolitan-district-council/walsall,WC82-326,31/07/2017,Economy & Environment,AQUALYMPIC,10/07/2017,630,34305-AGENCY STAFF-EMPLOYEES,BLOXWICH LEISURE CENTRE,Employees,Revenue
Walsall Council,http://opendatacommunities.org/id/metropolitan-district-council/walsall,WC82-327,31/07/2017,Economy & Environment,AQUALYMPIC,01/07/2017,700,34305-AGENCY STAFF-EMPLOYEES,OAK PARK,Employees,Revenue
Walsall Council,http://opendatacommunities.org/id/metropolitan-district-council/walsall,WC82-328,31/07/2017,Economy & Environment,AQUALYMPIC,01/07/2017,852.5,34305-AGENCY STAFF-EMPLOYEES,OAK PARK,Employees,Revenue
Walsall Council,http://opendatacommunities.org/id/metropolitan-district-council/walsall,WC82-329,31/07/2017,Economy & Environment,AQUALYMPIC,01/07/2017,967.5,34305-AGENCY STAFF-EMPLOYEES,OAK PARK,Employees,Revenue
Walsall Council,http://opendatacommunities.org/id/metropolitan-district-council/walsall,WC82-330,31/07/2017,Economy & Environment,AQUALYMPIC,12/07/2017,"1,270.00",34305-AGENCY STAFF-EMPLOYEES,OAK PARK,Employees,Revenue
Walsall Council,http://opendatacommunities.org/id/metropolitan-district-council/walsall,WC82-331,31/07/2017,Economy & Environment,AQUALYMPIC,20/07/2017,"1,542.50",34305-AGENCY STAFF-EMPLOYEES,OAK PARK,Employees,Revenue
Walsall Council,http://opendatacommunities.org/id/metropolitan-district-council/walsall,WC82-332,31/07/2017,Adult Social Care,ARBORETUM NURSING HOME.,11/07/2017,"2,270.00",73373-RESIDENTIAL & NURSING CARE PLACEMENTS,PD COMMISSIONING,Third Party Payments,Revenue
Walsall Council,http://opendatacommunities.org/id/metropolitan-district-council/walsall,WC82-333,31/07/2017,Adult Social Care,ARBORETUM NURSING HOME.,11/07/2017,"2,270.00",73373-RESIDENTIAL & NURSING CARE PLACEMENTS,OP COMMISSIONING,Third Party Payments,Revenue
Walsall Council,http://opendatacommunities.org/id/metropolitan-district-council/walsall,WC82-334,31/07/2017,Adult Social Care,ARBORETUM NURSING HOME.,11/07/2017,"2,314.28",73373-RESIDENTIAL & NURSING CARE PLACEMENTS,OP COMMISSIONING,Third Party Payments,Revenue
Walsall Council,http://opendatacommunities.org/id/metropolitan-district-council/walsall,WC82-335,31/07/2017,Adult Social Care,ARBORETUM NURSING HOME.,18/07/2017,"2,328.76",73373-RESIDENTIAL & NURSING CARE PLACEMENTS,OP COMMISSIONING,Third Party Payments,Revenue
Walsall Council,http://opendatacommunities.org/id/metropolitan-district-council/walsall,WC82-336,31/07/2017,Adult Social Care,ARBORETUM NURSING HOME.,11/07/2017,"2,887.50",73373-RESIDENTIAL & NURSING CARE PLACEMENTS,OP COMMISSIONING,Third Party Payments,Revenue
Walsall Council,http://opendatacommunities.org/id/metropolitan-district-council/walsall,WC82-337,31/07/2017,Adult Social Care,ARBORETUM NURSING HOME.,11/07/2017,"2,937.50",73373-RESIDENTIAL & NURSING CARE PLACEMENTS,OP COMMISSIONING,Third Party Payments,Revenue
Walsall Council,http://opendatacommunities.org/id/metropolitan-district-council/walsall,WC82-338,31/07/2017,Adult Social Care,ARBORETUM NURSING HOME.,24/07/2017,"14,900.00",73019-PSE'S-PRIV CONTRACTOR FEES,TRANSITIONAL CARE SUPPORT TEAM,Third Party Payments,Revenue
Walsall Council,http://opendatacommunities.org/id/metropolitan-district-council/walsall,WC82-339,31/07/2017,Childrens,ARCHWAY ACADEMY,20/07/2017,"4,563.54",66502-TOP UP FUNDING -GRANTS TO SCHOOLS,INDEPENDENT PROVIDERS - SPECIAL & AP,Third Party Payments,Revenue
Walsall Council,http://opendatacommunities.org/id/metropolitan-district-council/walsall,WC82-340,31/07/2017,Adult Social Care,REDACTED,11/07/2017,400,76422-DIRECT PAYMENTS TO SOCIAL SERVICES CLIENTS,CARERS SERVICES,Transfer Payments,Revenue
Walsall Council,http://opendatacommunities.org/id/metropolitan-district-council/walsall,WC82-341,31/07/2017,Adult Social Care,ARK HOME HEALTHCARE LIMITED,11/07/2017,"23,705.89",73372-DOMICILIARY CARE,OP COMMISSIONING,Third Party Payments,Revenue
Walsall Council,http://opendatacommunities.org/id/metropolitan-district-council/walsall,WC82-342,31/07/2017,Adult Social Care,ARK HOME HEALTHCARE LIMITED,11/07/2017,"32,128.72",73372-DOMICILIARY CARE,OP COMMISSIONING,Third Party Payments,Revenue
Walsall Council,http://opendatacommunities.org/id/metropolitan-district-council/walsall,WC82-343,31/07/2017,Adult Social Care,ARK HOME HEALTHCARE LIMITED,11/07/2017,"34,604.83",73372-DOMICILIARY CARE,OP COMMISSIONING,Third Party Payments,Revenue
Walsall Council,http://opendatacommunities.org/id/metropolitan-district-council/walsall,WC82-344,31/07/2017,Childrens,ARNFIELD CARE LIMITED,18/07/2017,"15,616.00",74036-EXTERNAL RESIDENTIAL CARE-OTH AGENCY PROVISION,INDEPENDENT RESIDENTIAL HOMES,Third Party Payments,Revenue
Walsall Council,http://opendatacommunities.org/id/metropolitan-district-council/walsall,WC82-345,31/07/2017,Childrens,ARTHUR M GRIFFITHS & SON LTD,21/07/2017,"151,909.91",01006-SITE WORKS MAIN CONTRACTORS,CFR 929 FIBBERSLEY PRIMARY SIGNIFICANT ENLARGEMENT,Capital,Capital
Walsall Council,http://opendatacommunities.org/id/metropolitan-district-council/walsall,WC82-346,31/07/2017,Childrens,ARUNDALE PRIMARY SCHOOL,25/07/2017,300,77300-ISB-FORMULA ALLOCATION,OUT OF BOROUGH SCHOOLS,Transfer Payments,Revenue
Walsall Council,http://opendatacommunities.org/id/metropolitan-district-council/walsall,WC82-347,31/07/2017,Adult Social Care,ASH GRANGE CARE HOME,04/07/2017,"-1,442.06",73373-RESIDENTIAL & NURSING CARE PLACEMENTS,OP COMMISSIONING,Third Party Payments,Revenue
Walsall Council,http://opendatacommunities.org/id/metropolitan-district-council/walsall,WC82-348,31/07/2017,Adult Social Care,ASH GRANGE CARE HOME,04/07/2017,620.2,73373-RESIDENTIAL & NURSING CARE PLACEMENTS,OP COMMISSIONING,Third Party Payments,Revenue
Walsall Council,http://opendatacommunities.org/id/metropolitan-district-council/walsall,WC82-349,31/07/2017,Adult Social Care,ASH GRANGE CARE HOME,04/07/2017,636.43,73373-RESIDENTIAL & NURSING CARE PLACEMENTS,OP COMMISSIONING,Third Party Payments,Revenue
Walsall Council,http://opendatacommunities.org/id/metropolitan-district-council/walsall,WC82-350,31/07/2017,Adult Social Care,ASH GRANGE CARE HOME,18/07/2017,694.29,73373-RESIDENTIAL & NURSING CARE PLACEMENTS,OP COMMISSIONING,Third Party Payments,Revenue
Walsall Council,http://opendatacommunities.org/id/metropolitan-district-council/walsall,WC82-351,31/07/2017,Adult Social Care,ASH GRANGE CARE HOME,04/07/2017,"1,330.71",73373-RESIDENTIAL & NURSING CARE PLACEMENTS,OP COMMISSIONING,Third Party Payments,Revenue
Walsall Council,http://opendatacommunities.org/id/metropolitan-district-council/walsall,WC82-352,31/07/2017,Adult Social Care,ASH GRANGE CARE HOME,18/07/2017,"1,620.00",73373-RESIDENTIAL & NURSING CARE PLACEMENTS,OP COMMISSIONING,Third Party Payments,Revenue
Walsall Council,http://opendatacommunities.org/id/metropolitan-district-council/walsall,WC82-353,31/07/2017,Adult Social Care,ASH GRANGE CARE HOME,18/07/2017,"1,620.00",73373-RESIDENTIAL & NURSING CARE PLACEMENTS,OP COMMISSIONING,Third Party Payments,Revenue
Walsall Council,http://opendatacommunities.org/id/metropolitan-district-council/walsall,WC82-354,31/07/2017,Adult Social Care,ASH GRANGE CARE HOME,18/07/2017,"2,270.00",73373-RESIDENTIAL & NURSING CARE PLACEMENTS,OP COMMISSIONING,Third Party Payments,Revenue
Walsall Council,http://opendatacommunities.org/id/metropolitan-district-council/walsall,WC82-355,31/07/2017,Adult Social Care,ASH GRANGE CARE HOME,18/07/2017,"2,270.00",73373-RESIDENTIAL & NURSING CARE PLACEMENTS,OP COMMISSIONING,Third Party Payments,Revenue
Walsall Council,http://opendatacommunities.org/id/metropolitan-district-council/walsall,WC82-356,31/07/2017,Adult Social Care,ASH GRANGE CARE HOME,18/07/2017,"2,283.60",73373-RESIDENTIAL & NURSING CARE PLACEMENTS,OP COMMISSIONING,Third Party Payments,Revenue
Walsall Council,http://opendatacommunities.org/id/metropolitan-district-council/walsall,WC82-357,31/07/2017,Adult Social Care,ASH GRANGE CARE HOME,18/07/2017,"2,283.60",73373-RESIDENTIAL & NURSING CARE PLACEMENTS,OP COMMISSIONING,Third Party Payments,Revenue
Walsall Council,http://opendatacommunities.org/id/metropolitan-district-council/walsall,WC82-358,31/07/2017,Adult Social Care,ASH GRANGE CARE HOME,18/07/2017,"2,283.60",73373-RESIDENTIAL & NURSING CARE PLACEMENTS,OP COMMISSIONING,Third Party Payments,Revenue
Walsall Council,http://opendatacommunities.org/id/metropolitan-district-council/walsall,WC82-359,31/07/2017,Adult Social Care,ASH GRANGE CARE HOME,18/07/2017,"2,283.60",73373-RESIDENTIAL & NURSING CARE PLACEMENTS,OP COMMISSIONING,Third Party Payments,Revenue
Walsall Council,http://opendatacommunities.org/id/metropolitan-district-council/walsall,WC82-360,31/07/2017,Adult Social Care,ASH GRANGE CARE HOME,18/07/2017,"2,283.60",73373-RESIDENTIAL & NURSING CARE PLACEMENTS,MH COMMISSIONING,Third Party Payments,Revenue
Walsall Council,http://opendatacommunities.org/id/metropolitan-district-council/walsall,WC82-361,31/07/2017,Adult Social Care,ASH GRANGE CARE HOME,18/07/2017,"2,283.60",73373-RESIDENTIAL & NURSING CARE PLACEMENTS,OP COMMISSIONING,Third Party Payments,Revenue
Walsall Council,http://opendatacommunities.org/id/metropolitan-district-council/walsall,WC82-362,31/07/2017,Adult Social Care,ASH GRANGE CARE HOME,18/07/2017,"2,283.60",73373-RESIDENTIAL & NURSING CARE PLACEMENTS,OP COMMISSIONING,Third Party Payments,Revenue
Walsall Council,http://opendatacommunities.org/id/metropolitan-district-council/walsall,WC82-363,31/07/2017,Adult Social Care,ASH GRANGE CARE HOME,18/07/2017,"2,367.24",73373-RESIDENTIAL & NURSING CARE PLACEMENTS,OP COMMISSIONING,Third Party Payments,Revenue
Walsall Council,http://opendatacommunities.org/id/metropolitan-district-council/walsall,WC82-364,31/07/2017,Adult Social Care,ASH GRANGE CARE HOME,18/07/2017,"2,483.60",73373-RESIDENTIAL & NURSING CARE PLACEMENTS,OP COMMISSIONING,Third Party Payments,Revenue
Walsall Council,http://opendatacommunities.org/id/metropolitan-district-council/walsall,WC82-365,31/07/2017,Adult Social Care,ASH GRANGE CARE HOME,18/07/2017,"2,499.60",73373-RESIDENTIAL & NURSING CARE PLACEMENTS,MH COMMISSIONING,Third Party Payments,Revenue
Walsall Council,http://opendatacommunities.org/id/metropolitan-district-council/walsall,WC82-366,31/07/2017,Adult Social Care,ASH GRANGE CARE HOME,04/07/2017,"2,732.14",73373-RESIDENTIAL & NURSING CARE PLACEMENTS,OP COMMISSIONING,Third Party Payments,Revenue
Walsall Council,http://opendatacommunities.org/id/metropolitan-district-council/walsall,WC82-367,31/07/2017,Adult Social Care,ASH GRANGE CARE HOME,18/07/2017,"3,115.92",73373-RESIDENTIAL & NURSING CARE PLACEMENTS,PD COMMISSIONING,Third Party Payments,Revenue
Walsall Council,http://opendatacommunities.org/id/metropolitan-district-council/walsall,WC82-368,31/07/2017,Adult Social Care,ASHBOURNE LODGE,11/07/2017,"2,173.99",73373-RESIDENTIAL & NURSING CARE PLACEMENTS,OP COMMISSIONING,Third Party Payments,Revenue
Walsall Council,http://opendatacommunities.org/id/metropolitan-district-council/walsall,WC82-369,31/07/2017,Economy & Environment,ASKEWS AND HOLTS LIBRARY SERVICES LTD,17/07/2017,264.58,60501-LIBRARY BOOKS,LIBRARY STOCK AND PERFORMANCE,Supplies & Services,Revenue
Walsall Council,http://opendatacommunities.org/id/metropolitan-district-council/walsall,WC82-370,31/07/2017,Economy & Environment,ASKEWS AND HOLTS LIBRARY SERVICES LTD,17/07/2017,"1,630.69",60501-LIBRARY BOOKS,LIBRARY STOCK AND PERFORMANCE,Supplies & Services,Revenue
Walsall Council,http://opendatacommunities.org/id/metropolitan-district-council/walsall,WC82-371,31/07/2017,Adult Social Care,REDACTED,11/07/2017,756,76422-DIRECT PAYMENTS TO SOCIAL SERVICES CLIENTS,OP COMMISSIONING,Transfer Payments,Revenue
Walsall Council,http://opendatacommunities.org/id/metropolitan-district-council/walsall,WC82-372,31/07/2017,Childrens,ASPIRE PEOPLE LTD.,26/07/2017,730,34305-AGENCY STAFF-EMPLOYEES,VIRTUAL SCHOOL CENTRAL PUPIL PREMIUM,Employees,Revenue
Walsall Council,http://opendatacommunities.org/id/metropolitan-district-council/walsall,WC82-373,31/07/2017,Childrens,ASPIRE PEOPLE LTD.,24/07/2017,775,34305-AGENCY STAFF-EMPLOYEES,VIRTUAL SCHOOL CENTRAL PUPIL PREMIUM,Employees,Revenue
Walsall Council,http://opendatacommunities.org/id/metropolitan-district-council/walsall,WC82-374,31/07/2017,Childrens,ASPIRE PEOPLE LTD.,24/07/2017,775,34305-AGENCY STAFF-EMPLOYEES,VIRTUAL SCHOOL CENTRAL PUPIL PREMIUM,Employees,Revenue
Walsall Council,http://opendatacommunities.org/id/metropolitan-district-council/walsall,WC82-375,31/07/2017,Childrens,ASPIRE PEOPLE LTD.,24/07/2017,775,34305-AGENCY STAFF-EMPLOYEES,VIRTUAL SCHOOL CENTRAL PUPIL PREMIUM,Employees,Revenue
Walsall Council,http://opendatacommunities.org/id/metropolitan-district-council/walsall,WC82-376,31/07/2017,Childrens,ASTON UNIVERSITY ENGINEERING ACADEMY,25/07/2017,"25,000.00",66502-TOP UP FUNDING -GRANTS TO SCHOOLS,INDEPENDENT PROVIDERS - SPECIAL & AP,Third Party Payments,Revenue
Walsall Council,http://opendatacommunities.org/id/metropolitan-district-council/walsall,WC82-377,31/07/2017,Economy & Environment,ATHWAL NEWS LTD,17/07/2017,321.9,60501-LIBRARY BOOKS,LIBRARY STOCK AND PERFORMANCE,Supplies & Services,Revenue
Walsall Council,http://opendatacommunities.org/id/metropolitan-district-council/walsall,WC82-378,31/07/2017,Economy & Environment,ATKINS LIMITED,17/07/2017,"2,716.01",01001-OTHER CONSULTANTS FEES,CFR 1072 LEX - GROWTH DEAL,Capital,Capital
Walsall Council,http://opendatacommunities.org/id/metropolitan-district-council/walsall,WC82-379,31/07/2017,Economy & Environment,AUDIENCE SYSTEMS LTD,24/07/2017,"3,787.34",60008-MAINTENANCE-FURNITURE & EQUIPMENT,FOREST ARTS CENTRE,Supplies & Services,Revenue
Walsall Council,http://opendatacommunities.org/id/metropolitan-district-council/walsall,WC82-380,31/07/2017,Change and Governance,AUDITEL RENTAL & SERVICE LTD,12/07/2017,820,"40000-REPAIRS,ALTERATIONS & MAINTENANCE-PREM",CENTRALISED MAINTENANCE,Premises,Revenue
Walsall Council,http://opendatacommunities.org/id/metropolitan-district-council/walsall,WC82-381,31/07/2017,Change and Governance,AUDITEL RENTAL & SERVICE LTD,12/07/2017,"2,035.00","40000-REPAIRS,ALTERATIONS & MAINTENANCE-PREM",CENTRAL OFFICE ACCOMMODATION,Premises,Revenue
Walsall Council,http://opendatacommunities.org/id/metropolitan-district-council/walsall,WC82-382,31/07/2017,Childrens,AUDLEY PRIMARY SCHOOL,25/07/2017,400,77300-ISB-FORMULA ALLOCATION,OUT OF BOROUGH SCHOOLS,Transfer Payments,Revenue
Walsall Council,http://opendatacommunities.org/id/metropolitan-district-council/walsall,WC82-383,31/07/2017,Change and Governance,AURORA GRAPHICS & DISPLAYS LTD,10/07/2017,"1,369.00",62008-OUTWORK-PRINT ROOM,PRINTING SERVICES,Supplies & Services,Revenue
Walsall Council,http://opendatacommunities.org/id/metropolitan-district-council/walsall,WC82-384,31/07/2017,Adult Social Care,AUTISM WEST MIDLANDS,18/07/2017,"7,237.71",73373-RESIDENTIAL & NURSING CARE PLACEMENTS,LD COMMISSIONING,Third Party Payments,Revenue
Walsall Council,http://opendatacommunities.org/id/metropolitan-district-council/walsall,WC82-385,31/07/2017,Adult Social Care,AUTISM WEST MIDLANDS 001,18/07/2017,"4,838.06",73373-RESIDENTIAL & NURSING CARE PLACEMENTS,LD COMMISSIONING,Third Party Payments,Revenue
Walsall Council,http://opendatacommunities.org/id/metropolitan-district-council/walsall,WC82-386,31/07/2017,Adult Social Care,REDACTED,11/07/2017,989.04,76422-DIRECT PAYMENTS TO SOCIAL SERVICES CLIENTS,OP COMMISSIONING,Transfer Payments,Revenue
Walsall Council,http://opendatacommunities.org/id/metropolitan-district-council/walsall,WC82-387,31/07/2017,Childrens,AXCIS EDUCATION RECRUITMENT,24/07/2017,"1,031.00",66502-TOP UP FUNDING -GRANTS TO SCHOOLS,INDEPENDENT PROVIDERS - SPECIAL & AP,Third Party Payments,Revenue
Walsall Council,http://opendatacommunities.org/id/metropolitan-district-council/walsall,WC82-388,31/07/2017,Childrens,AXCIS EDUCATION RECRUITMENT,17/07/2017,"1,130.00",66502-TOP UP FUNDING -GRANTS TO SCHOOLS,INDEPENDENT PROVIDERS - SPECIAL & AP,Third Party Payments,Revenue
Walsall Council,http://opendatacommunities.org/id/metropolitan-district-council/walsall,WC82-389,31/07/2017,Childrens,AXCIS EDUCATION RECRUITMENT,03/07/2017,"1,227.00",66502-TOP UP FUNDING -GRANTS TO SCHOOLS,INDEPENDENT PROVIDERS - SPECIAL & AP,Third Party Payments,Revenue
Walsall Council,http://opendatacommunities.org/id/metropolitan-district-council/walsall,WC82-390,31/07/2017,Childrens,AXCIS EDUCATION RECRUITMENT,17/07/2017,"1,227.00",66502-TOP UP FUNDING -GRANTS TO SCHOOLS,INDEPENDENT PROVIDERS - SPECIAL & AP,Third Party Payments,Revenue
Walsall Council,http://opendatacommunities.org/id/metropolitan-district-council/walsall,WC82-391,31/07/2017,Economy & Environment,AXIELL LIMITED,13/07/2017,518,63000-PROFESSIONAL FEES AND SERVICES,LIBRARY DEVELOPMENT 1,Supplies & Services,Revenue
Walsall Council,http://opendatacommunities.org/id/metropolitan-district-council/walsall,WC82-392,31/07/2017,Economy & Environment,AXIELL LIMITED,21/07/2017,523.27,63000-PROFESSIONAL FEES AND SERVICES,LIBRARY STOCK AND PERFORMANCE,Supplies & Services,Revenue
Walsall Council,http://opendatacommunities.org/id/metropolitan-district-council/walsall,WC82-393,31/07/2017,Economy & Environment,AXIELL LIMITED,13/07/2017,560.9,63000-PROFESSIONAL FEES AND SERVICES,LIBRARY STOCK AND PERFORMANCE,Supplies & Services,Revenue
Walsall Council,http://opendatacommunities.org/id/metropolitan-district-council/walsall,WC82-394,31/07/2017,Economy & Environment,AXIELL LIMITED,01/07/2017,"16,736.61",63800-COMPUTER EQUIPMENT AND SUPPLIES,NETWORK SUPPORT,Supplies & Services,Revenue
Walsall Council,http://opendatacommunities.org/id/metropolitan-district-council/walsall,WC82-395,31/07/2017,Childrens,REDACTED,11/07/2017,"1,284.00",76422-DIRECT PAYMENTS TO SOCIAL SERVICES CLIENTS,FAMILY SUPPORT - DIRECT PAYMENTS,Transfer Payments,Revenue
Walsall Council,http://opendatacommunities.org/id/metropolitan-district-council/walsall,WC82-396,31/07/2017,Adult Social Care,REDACTED,11/07/2017,"2,808.00",76422-DIRECT PAYMENTS TO SOCIAL SERVICES CLIENTS,LD COMMISSIONING,Transfer Payments,Revenue
Walsall Council,http://opendatacommunities.org/id/metropolitan-district-council/walsall,WC82-397,31/07/2017,Economy & Environment,B & S CHAINS LTD,19/07/2017,759.5,60500-GENERAL MATERIALS,INFRASTRUCTURE MAINTENANCE,Supplies & Services,Revenue
Walsall Council,http://opendatacommunities.org/id/metropolitan-district-council/walsall,WC82-398,31/07/2017,Childrens,REDACTED,03/07/2017,492.88,74504-HOLIDAY/CHRISTMAS ALLOWANCE-FOSTER CARERS,FAMILY & FRIENDS FOSTER CARE PROVISION,Transfer Payments,Revenue
Walsall Council,http://opendatacommunities.org/id/metropolitan-district-council/walsall,WC82-399,31/07/2017,Childrens,REDACTED,03/07/2017,748.33,74506-TRAVEL-FOSTER CARERS,FAMILY & FRIENDS FOSTER CARE PROVISION,Transfer Payments,Revenue
Walsall Council,http://opendatacommunities.org/id/metropolitan-district-council/walsall,WC82-400,31/07/2017,Childrens,REDACTED,03/07/2017,985.76,74501-MAINTENANCE ALLOWANCE-FOSTER CARERS,FAMILY & FRIENDS FOSTER CARE PROVISION,Transfer Payments,Revenue
Walsall Council,http://opendatacommunities.org/id/metropolitan-district-council/walsall,WC82-401,31/07/2017,Change and Governance,B E FURNITURE LTD T/A B E EVENTHIRE,24/07/2017,608,60009-LEASING/HIRE/RENTAL-EQUIPMENT,ELECTORAL ADMINISTRATION,Supplies & Services,Revenue
Walsall Council,http://opendatacommunities.org/id/metropolitan-district-council/walsall,WC82-402,31/07/2017,Change and Governance,B E FURNITURE LTD T/A B E EVENTHIRE,04/07/2017,"4,480.65",60009-LEASING/HIRE/RENTAL-EQUIPMENT,ELECTORAL ADMINISTRATION,Supplies & Services,Revenue
Walsall Council,http://opendatacommunities.org/id/metropolitan-district-council/walsall,WC82-403,31/07/2017,Childrens,REDACTED,04/07/2017,464,76000-TRANSFER PAYMENTS - SOCIAL SERVICES CLIENTS,TRANSITION AND LEAVING CARE,Transfer Payments,Revenue
Walsall Council,http://opendatacommunities.org/id/metropolitan-district-council/walsall,WC82-404,31/07/2017,Childrens,REDACTED,04/07/2017,464,76000-TRANSFER PAYMENTS - SOCIAL SERVICES CLIENTS,TRANSITION AND LEAVING CARE,Transfer Payments,Revenue
Walsall Council,http://opendatacommunities.org/id/metropolitan-district-council/walsall,WC82-405,31/07/2017,Childrens,REDACTED,18/07/2017,464,76000-TRANSFER PAYMENTS - SOCIAL SERVICES CLIENTS,TRANSITION AND LEAVING CARE,Transfer Payments,Revenue
Walsall Council,http://opendatacommunities.org/id/metropolitan-district-council/walsall,WC82-406,31/07/2017,Childrens,REDACTED,18/07/2017,464,76000-TRANSFER PAYMENTS - SOCIAL SERVICES CLIENTS,TRANSITION AND LEAVING CARE,Transfer Payments,Revenue
Walsall Council,http://opendatacommunities.org/id/metropolitan-district-council/walsall,WC82-407,31/07/2017,Change and Governance,REDACTED,13/07/2017,"2,144.61",01045-PRIVATE GRANTS,CFR 826 DISABLED FACILITIES GRANTS (SOCIAL SERVICES),Capital,Capital
Walsall Council,http://opendatacommunities.org/id/metropolitan-district-council/walsall,WC82-408,31/07/2017,Economy & Environment,BAART HARRIES NEWALL,12/07/2017,600,63000-PROFESSIONAL FEES AND SERVICES,ASSET MANAGEMENT,Supplies & Services,Revenue
Walsall Council,http://opendatacommunities.org/id/metropolitan-district-council/walsall,WC82-409,31/07/2017,Economy & Environment,BAART HARRIES NEWALL,12/07/2017,600,63000-PROFESSIONAL FEES AND SERVICES,ASSET MANAGEMENT,Supplies & Services,Revenue
Walsall Council,http://opendatacommunities.org/id/metropolitan-district-council/walsall,WC82-410,31/07/2017,Childrens,BACK CARE SOLUTIONS LTD,03/07/2017,"1,173.00",60006-NEW-FURNITURE & EQUIPMENT,CHILDREN'S ADMIN,Supplies & Services,Revenue
Walsall Council,http://opendatacommunities.org/id/metropolitan-district-council/walsall,WC82-411,31/07/2017,Change and Governance,BADENOCH & CLARK 002,01/07/2017,"3,742.60",34305-AGENCY STAFF-EMPLOYEES,CORPORATE MANAGEMENT TEAM,Employees,Revenue
Walsall Council,http://opendatacommunities.org/id/metropolitan-district-council/walsall,WC82-412,31/07/2017,Change and Governance,BADENOCH & CLARK 002,12/07/2017,"4,678.25",34305-AGENCY STAFF-EMPLOYEES,CORPORATE MANAGEMENT TEAM,Employees,Revenue
Walsall Council,http://opendatacommunities.org/id/metropolitan-district-council/walsall,WC82-413,31/07/2017,Change and Governance,BADENOCH & CLARK 002,20/07/2017,"4,678.25",34305-AGENCY STAFF-EMPLOYEES,CORPORATE MANAGEMENT TEAM,Employees,Revenue
Walsall Council,http://opendatacommunities.org/id/metropolitan-district-council/walsall,WC82-414,31/07/2017,Economy & Environment,BAG SUPPLIES LTD,19/07/2017,230,60500-GENERAL MATERIALS,COUNTRYSIDE MANAGEMENT-OTHER,Supplies & Services,Revenue
Walsall Council,http://opendatacommunities.org/id/metropolitan-district-council/walsall,WC82-415,31/07/2017,Economy & Environment,BAKER HALL PARTNERSHIP,01/07/2017,876.5,63000-PROFESSIONAL FEES AND SERVICES,BUILDING CONTROL REVENUE FUNDED,Supplies & Services,Revenue
Walsall Council,http://opendatacommunities.org/id/metropolitan-district-council/walsall,WC82-416,31/07/2017,Adult Social Care,REDACTED,11/07/2017,480,76422-DIRECT PAYMENTS TO SOCIAL SERVICES CLIENTS,MH COMMISSIONING,Transfer Payments,Revenue
Walsall Council,http://opendatacommunities.org/id/metropolitan-district-council/walsall,WC82-417,31/07/2017,Adult Social Care,REDACTED,11/07/2017,324,76422-DIRECT PAYMENTS TO SOCIAL SERVICES CLIENTS,OP COMMISSIONING,Transfer Payments,Revenue
Walsall Council,http://opendatacommunities.org/id/metropolitan-district-council/walsall,WC82-418,31/07/2017,Adult Social Care,REDACTED,11/07/2017,"3,258.96",76422-DIRECT PAYMENTS TO SOCIAL SERVICES CLIENTS,LD COMMISSIONING,Transfer Payments,Revenue
Walsall Council,http://opendatacommunities.org/id/metropolitan-district-council/walsall,WC82-419,31/07/2017,Adult Social Care,REDACTED,11/07/2017,800,76422-DIRECT PAYMENTS TO SOCIAL SERVICES CLIENTS,OP COMMISSIONING,Transfer Payments,Revenue
Walsall Council,http://opendatacommunities.org/id/metropolitan-district-council/walsall,WC82-420,31/07/2017,Adult Social Care,REDACTED,11/07/2017,"1,582.86",76422-DIRECT PAYMENTS TO SOCIAL SERVICES CLIENTS,OP COMMISSIONING,Transfer Payments,Revenue
Walsall Council,http://opendatacommunities.org/id/metropolitan-district-council/walsall,WC82-421,31/07/2017,Childrens,REDACTED,03/07/2017,9.24,60006-NEW-FURNITURE & EQUIPMENT,FAMILY & FRIENDS FOSTER CARE PROVISION,Supplies & Services,Revenue
Walsall Council,http://opendatacommunities.org/id/metropolitan-district-council/walsall,WC82-422,31/07/2017,Childrens,REDACTED,03/07/2017,285.72,74504-HOLIDAY/CHRISTMAS ALLOWANCE-FOSTER CARERS,FAMILY & FRIENDS FOSTER CARE PROVISION,Transfer Payments,Revenue
Walsall Council,http://opendatacommunities.org/id/metropolitan-district-council/walsall,WC82-423,31/07/2017,Childrens,REDACTED,03/07/2017,345.24,74508-INTERNAL FOSTER CARERS-CARER FEES,FAMILY & FRIENDS FOSTER CARE PROVISION,Transfer Payments,Revenue
Walsall Council,http://opendatacommunities.org/id/metropolitan-district-council/walsall,WC82-424,31/07/2017,Childrens,REDACTED,03/07/2017,"1,259.72",74501-MAINTENANCE ALLOWANCE-FOSTER CARERS,FAMILY & FRIENDS FOSTER CARE PROVISION,Transfer Payments,Revenue
Walsall Council,http://opendatacommunities.org/id/metropolitan-district-council/walsall,WC82-425,31/07/2017,Adult Social Care,REDACTED,11/07/2017,849.64,76422-DIRECT PAYMENTS TO SOCIAL SERVICES CLIENTS,OP COMMISSIONING,Transfer Payments,Revenue
Walsall Council,http://opendatacommunities.org/id/metropolitan-district-council/walsall,WC82-426,31/07/2017,Economy & Environment,BARCHAM TREES PLC,20/07/2017,124,60500-GENERAL MATERIALS,ARBORETUM,Supplies & Services,Revenue
Walsall Council,http://opendatacommunities.org/id/metropolitan-district-council/walsall,WC82-427,31/07/2017,Economy & Environment,BARCHAM TREES PLC,20/07/2017,143,60500-GENERAL MATERIALS,ARBORETUM HLF,Supplies & Services,Revenue
Walsall Council,http://opendatacommunities.org/id/metropolitan-district-council/walsall,WC82-428,31/07/2017,Childrens,BARNARDOS SERVICES LTD,18/07/2017,"2,963.52",74037-INDEPENDENT FOSTER CARE-OTH AGENCY PROVISION,EXTERNAL FOSTER CARE PROVISION,Third Party Payments,Revenue
Walsall Council,http://opendatacommunities.org/id/metropolitan-district-council/walsall,WC82-429,31/07/2017,Childrens,BARNARDOS SERVICES LTD,04/07/2017,"4,884.00",63000-PROFESSIONAL FEES AND SERVICES,DIRECTLY COMMISSIONED NURSING SERVICES,Supplies & Services,Revenue
Walsall Council,http://opendatacommunities.org/id/metropolitan-district-council/walsall,WC82-430,31/07/2017,Childrens,BARR BEACON SCHOOL TRUST,25/07/2017,"2,540.00",77300-ISB-FORMULA ALLOCATION,BARR BEACON SCHOOL TRUST (ACADEMY),Transfer Payments,Revenue
Walsall Council,http://opendatacommunities.org/id/metropolitan-district-council/walsall,WC82-431,31/07/2017,Adult Social Care,REDACTED,11/07/2017,490.4,76422-DIRECT PAYMENTS TO SOCIAL SERVICES CLIENTS,OP COMMISSIONING,Transfer Payments,Revenue
Walsall Council,http://opendatacommunities.org/id/metropolitan-district-council/walsall,WC82-432,31/07/2017,Economy & Environment,BEADEN POWERLEC LIMITED,01/07/2017,520,60500-GENERAL MATERIALS,OAK PARK,Supplies & Services,Revenue
Walsall Council,http://opendatacommunities.org/id/metropolitan-district-council/walsall,WC82-433,31/07/2017,Economy & Environment,BEADEN POWERLEC LIMITED,01/07/2017,775,60500-GENERAL MATERIALS,BLOXWICH LEISURE CENTRE,Supplies & Services,Revenue
Walsall Council,http://opendatacommunities.org/id/metropolitan-district-council/walsall,WC82-434,31/07/2017,Childrens,REDACTED,17/07/2017,9.24,60006-NEW-FURNITURE & EQUIPMENT,INTERNAL FOSTER CARE PROVISION,Supplies & Services,Revenue
Walsall Council,http://opendatacommunities.org/id/metropolitan-district-council/walsall,WC82-435,31/07/2017,Childrens,REDACTED,17/07/2017,81.37,74503-BIRTHDAY ALLOWANCE-FOSTER CARERS,INTERNAL FOSTER CARE PROVISION,Transfer Payments,Revenue
Walsall Council,http://opendatacommunities.org/id/metropolitan-district-council/walsall,WC82-436,31/07/2017,Childrens,REDACTED,17/07/2017,98.15,74506-TRAVEL-FOSTER CARERS,INTERNAL FOSTER CARE PROVISION,Transfer Payments,Revenue
Walsall Council,http://opendatacommunities.org/id/metropolitan-district-council/walsall,WC82-437,31/07/2017,Childrens,REDACTED,17/07/2017,175,74505-SCHOOL UNIFORM/INITIAL TRAINING ALLOWANCE-FOSTER CARERS,INTERNAL FOSTER CARE PROVISION,Transfer Payments,Revenue
Walsall Council,http://opendatacommunities.org/id/metropolitan-district-council/walsall,WC82-438,31/07/2017,Childrens,REDACTED,17/07/2017,530.96,74508-INTERNAL FOSTER CARERS-CARER FEES,INTERNAL FOSTER CARE PROVISION,Transfer Payments,Revenue
Walsall Council,http://opendatacommunities.org/id/metropolitan-district-council/walsall,WC82-439,31/07/2017,Childrens,REDACTED,17/07/2017,906.64,74501-MAINTENANCE ALLOWANCE-FOSTER CARERS,INTERNAL FOSTER CARE PROVISION,Transfer Payments,Revenue
Walsall Council,http://opendatacommunities.org/id/metropolitan-district-council/walsall,WC82-440,31/07/2017,Economy & Environment,BEE TEE ALARMS LTD,17/07/2017,687.06,60500-GENERAL MATERIALS,INFRASTRUCTURE MAINTENANCE,Supplies & Services,Revenue
Walsall Council,http://opendatacommunities.org/id/metropolitan-district-council/walsall,WC82-441,31/07/2017,Childrens,REDACTED,17/07/2017,9.24,60006-NEW-FURNITURE & EQUIPMENT,INTERNAL FOSTER CARE PROVISION,Supplies & Services,Revenue
Walsall Council,http://opendatacommunities.org/id/metropolitan-district-council/walsall,WC82-442,31/07/2017,Childrens,REDACTED,17/07/2017,530.96,74508-INTERNAL FOSTER CARERS-CARER FEES,INTERNAL FOSTER CARE PROVISION,Transfer Payments,Revenue
Walsall Council,http://opendatacommunities.org/id/metropolitan-district-council/walsall,WC82-443,31/07/2017,Adult Social Care,REDACTED,11/07/2017,"2,310.00",76422-DIRECT PAYMENTS TO SOCIAL SERVICES CLIENTS,LD COMMISSIONING,Transfer Payments,Revenue
Walsall Council,http://opendatacommunities.org/id/metropolitan-district-council/walsall,WC82-444,31/07/2017,Childrens,BENTLEY CHILD CARE,01/07/2017,765,63120-CRECHE FACILITIES-SERVICES-FEES,BUDDY COSTS 0-5,Supplies & Services,Revenue
Walsall Council,http://opendatacommunities.org/id/metropolitan-district-council/walsall,WC82-445,31/07/2017,Childrens,BERRY GIFFORD LTD,14/07/2017,"8,667.60",76010-ACCOMMODATION AND RELATED COSTS-ASSISTANCE TO S/S CLIENTS,TRANSITION AND LEAVING CARE,Transfer Payments,Revenue
Walsall Council,http://opendatacommunities.org/id/metropolitan-district-council/walsall,WC82-446,31/07/2017,Holding Accounts,BERRYMANS LACE MAWER LLP,25/07/2017,"1,230.50",67001-MISC INSURANCES - PAYMENT OF CLAIMS,PUBLIC LIABILITY,Supplies & Services,Revenue
Walsall Council,http://opendatacommunities.org/id/metropolitan-district-council/walsall,WC82-447,31/07/2017,Adult Social Care,REDACTED,11/07/2017,912,76422-DIRECT PAYMENTS TO SOCIAL SERVICES CLIENTS,OP COMMISSIONING,Transfer Payments,Revenue
Walsall Council,http://opendatacommunities.org/id/metropolitan-district-council/walsall,WC82-448,31/07/2017,Childrens,REDACTED,17/07/2017,9.24,60006-NEW-FURNITURE & EQUIPMENT,INTERNAL FOSTER CARE PROVISION,Supplies & Services,Revenue
Walsall Council,http://opendatacommunities.org/id/metropolitan-district-council/walsall,WC82-449,31/07/2017,Childrens,REDACTED,17/07/2017,571.44,74501-MAINTENANCE ALLOWANCE-FOSTER CARERS,INTERNAL FOSTER CARE PROVISION,Transfer Payments,Revenue
Walsall Council,http://opendatacommunities.org/id/metropolitan-district-council/walsall,WC82-450,31/07/2017,Childrens,REDACTED,17/07/2017,611.18,74501-MAINTENANCE ALLOWANCE-FOSTER CARERS,INTERNAL FOSTER CARE PROVISION,Transfer Payments,Revenue
Walsall Council,http://opendatacommunities.org/id/metropolitan-district-council/walsall,WC82-451,31/07/2017,Childrens,REDACTED,17/07/2017,"1,436.08",74508-INTERNAL FOSTER CARERS-CARER FEES,INTERNAL FOSTER CARE PROVISION,Transfer Payments,Revenue
Walsall Council,http://opendatacommunities.org/id/metropolitan-district-council/walsall,WC82-452,31/07/2017,Adult Social Care,REDACTED,11/07/2017,968,76422-DIRECT PAYMENTS TO SOCIAL SERVICES CLIENTS,OP COMMISSIONING,Transfer Payments,Revenue
Walsall Council,http://opendatacommunities.org/id/metropolitan-district-council/walsall,WC82-453,31/07/2017,Adult Social Care,BESCOT LODGE RESIDENTIAL CARE HOME,11/07/2017,"1,793.57",73373-RESIDENTIAL & NURSING CARE PLACEMENTS,OP COMMISSIONING,Third Party Payments,Revenue
Walsall Council,http://opendatacommunities.org/id/metropolitan-district-council/walsall,WC82-454,31/07/2017,Adult Social Care,BESCOT LODGE RESIDENTIAL CARE HOME,11/07/2017,"1,793.57",73373-RESIDENTIAL & NURSING CARE PLACEMENTS,OP COMMISSIONING,Third Party Payments,Revenue
Walsall Council,http://opendatacommunities.org/id/metropolitan-district-council/walsall,WC82-455,31/07/2017,Adult Social Care,BESCOT LODGE RESIDENTIAL CARE HOME,11/07/2017,"1,793.58",73373-RESIDENTIAL & NURSING CARE PLACEMENTS,OP COMMISSIONING,Third Party Payments,Revenue
Walsall Council,http://opendatacommunities.org/id/metropolitan-district-council/walsall,WC82-456,31/07/2017,Adult Social Care,BESCOT LODGE RESIDENTIAL CARE HOME,11/07/2017,"1,992.86",73373-RESIDENTIAL & NURSING CARE PLACEMENTS,OP COMMISSIONING,Third Party Payments,Revenue
Walsall Council,http://opendatacommunities.org/id/metropolitan-district-council/walsall,WC82-457,31/07/2017,Adult Social Care,BESCOT LODGE RESIDENTIAL CARE HOME,11/07/2017,"1,992.86",73373-RESIDENTIAL & NURSING CARE PLACEMENTS,OP COMMISSIONING,Third Party Payments,Revenue
Walsall Council,http://opendatacommunities.org/id/metropolitan-district-council/walsall,WC82-458,31/07/2017,Adult Social Care,BESCOT LODGE RESIDENTIAL CARE HOME,11/07/2017,"1,992.86",73373-RESIDENTIAL & NURSING CARE PLACEMENTS,OP COMMISSIONING,Third Party Payments,Revenue
Walsall Council,http://opendatacommunities.org/id/metropolitan-district-council/walsall,WC82-459,31/07/2017,Adult Social Care,BETHPHAGE.,20/07/2017,650,73374-SUPPORTED & OTHER ACCOMMODATION,LD COMMISSIONING,Third Party Payments,Revenue
Walsall Council,http://opendatacommunities.org/id/metropolitan-district-council/walsall,WC82-460,31/07/2017,Adult Social Care,BETHPHAGE.,24/07/2017,"3,831.92",73374-SUPPORTED & OTHER ACCOMMODATION,LD COMMISSIONING,Third Party Payments,Revenue
Walsall Council,http://opendatacommunities.org/id/metropolitan-district-council/walsall,WC82-461,31/07/2017,Adult Social Care,REDACTED,11/07/2017,"1,248.52",76422-DIRECT PAYMENTS TO SOCIAL SERVICES CLIENTS,MH COMMISSIONING,Transfer Payments,Revenue
Walsall Council,http://opendatacommunities.org/id/metropolitan-district-council/walsall,WC82-462,31/07/2017,Adult Social Care,REDACTED,11/07/2017,"2,767.84",76422-DIRECT PAYMENTS TO SOCIAL SERVICES CLIENTS,OP COMMISSIONING,Transfer Payments,Revenue
Walsall Council,http://opendatacommunities.org/id/metropolitan-district-council/walsall,WC82-463,31/07/2017,Change and Governance,BFA SAFETY TRAINING,20/07/2017,295,30030-EXTERNAL TRAINING,HEALTH & SAFETY,Employees,Revenue
Walsall Council,http://opendatacommunities.org/id/metropolitan-district-council/walsall,WC82-464,31/07/2017,Change and Governance,BFA SAFETY TRAINING,20/07/2017,495,30030-EXTERNAL TRAINING,HEALTH & SAFETY,Employees,Revenue
Walsall Council,http://opendatacommunities.org/id/metropolitan-district-council/walsall,WC82-465,31/07/2017,Change and Governance,BFA SAFETY TRAINING,24/07/2017,495,30030-EXTERNAL TRAINING,HEALTH & SAFETY,Employees,Revenue
Walsall Council,http://opendatacommunities.org/id/metropolitan-district-council/walsall,WC82-466,31/07/2017,Economy & Environment,BICMP LTD,05/07/2017,"32,579.40",01045-PRIVATE GRANTS,CFR 1072 MUSIC INSTITUTE DEVELOPMENT STUDY,Capital,Capital
Walsall Council,http://opendatacommunities.org/id/metropolitan-district-council/walsall,WC82-467,31/07/2017,Economy & Environment,BIFFA WASTE SERVICES LTD,19/07/2017,198,73029-HAZARDOUS WASTE REMOVAL/DISPOSAL-PRIV CONTRACTOR FEES,WASTE DISPOSAL - RESIDUAL,Third Party Payments,Revenue
Walsall Council,http://opendatacommunities.org/id/metropolitan-district-council/walsall,WC82-468,31/07/2017,Economy & Environment,BIFFA WASTE SERVICES LTD,19/07/2017,297.91,73039-LANDFILL TAX-PRIV CONTRACTOR FEES,WASTE DISPOSAL - RESIDUAL,Third Party Payments,Revenue
Walsall Council,http://opendatacommunities.org/id/metropolitan-district-council/walsall,WC82-469,31/07/2017,Childrens,REDACTED,11/07/2017,487.72,76422-DIRECT PAYMENTS TO SOCIAL SERVICES CLIENTS,FAMILY SUPPORT - DIRECT PAYMENTS,Transfer Payments,Revenue
Walsall Council,http://opendatacommunities.org/id/metropolitan-district-council/walsall,WC82-470,31/07/2017,Childrens,REDACTED,11/07/2017,572,76422-DIRECT PAYMENTS TO SOCIAL SERVICES CLIENTS,FAMILY SUPPORT - DIRECT PAYMENTS,Transfer Payments,Revenue
Walsall Council,http://opendatacommunities.org/id/metropolitan-district-council/walsall,WC82-471,31/07/2017,Childrens,BIRCHILLS C OF E COMMUNITY ACADEMY,17/07/2017,"1,033.50",66505-OTHER-GRANTS TO OTHER ORGS,EARLY YEARS - 3 YR OLDS,Third Party Payments,Revenue
Walsall Council,http://opendatacommunities.org/id/metropolitan-district-council/walsall,WC82-472,31/07/2017,Childrens,BIRCHILLS C OF E COMMUNITY ACADEMY,25/07/2017,"1,800.00",77300-ISB-FORMULA ALLOCATION,BIRCHILLS CE COMMUNITY ACADEMY,Transfer Payments,Revenue
Walsall Council,http://opendatacommunities.org/id/metropolitan-district-council/walsall,WC82-473,31/07/2017,Childrens,BIRMINGHAM CITY COUNCIL,18/07/2017,"1,956.16",74037-INDEPENDENT FOSTER CARE-OTH AGENCY PROVISION,EXTERNAL FOSTER CARE PROVISION,Third Party Payments,Revenue
Walsall Council,http://opendatacommunities.org/id/metropolitan-district-council/walsall,WC82-474,31/07/2017,Childrens,BIRMINGHAM CITY COUNCIL,13/07/2017,"9,816.61",52000-WITH DRIVER-HIRE OF VEHICLES,SCHOOL TRANSPORT,Transport,Revenue
Walsall Council,http://opendatacommunities.org/id/metropolitan-district-council/walsall,WC82-475,31/07/2017,Change and Governance,BIRMINGHAM CITY COUNCIL,01/07/2017,"10,000.00",63000-PROFESSIONAL FEES AND SERVICES,CORPORATE EXPENSES,Supplies & Services,Revenue
Walsall Council,http://opendatacommunities.org/id/metropolitan-district-council/walsall,WC82-476,31/07/2017,Change and Governance,BIRMINGHAM TRAINING UNIT,03/07/2017,790,63000-PROFESSIONAL FEES AND SERVICES,WORKFORCE DEVELOPMENT,Supplies & Services,Revenue
Walsall Council,http://opendatacommunities.org/id/metropolitan-district-council/walsall,WC82-477,31/07/2017,Economy & Environment,BIRMINGHAM WOMENS AND CHILDRENS NHS FOUNDATION TRUST,19/07/2017,970,74000-OTHER AGENCY FEES,CORONERS SERVICE,Third Party Payments,Revenue
Walsall Council,http://opendatacommunities.org/id/metropolitan-district-council/walsall,WC82-478,31/07/2017,Economy & Environment,BLACK COUNTRY DANCE HUB,07/07/2017,"5,000.00",63000-PROFESSIONAL FEES AND SERVICES,FOREST ARTS CENTRE,Supplies & Services,Revenue
Walsall Council,http://opendatacommunities.org/id/metropolitan-district-council/walsall,WC82-479,31/07/2017,Adult Social Care,BLACK COUNTRY PARTNERSHIP NHS,20/07/2017,341.4,73375-IN PATIENT BEDS,LD COMMISSIONING,Third Party Payments,Revenue
Walsall Council,http://opendatacommunities.org/id/metropolitan-district-council/walsall,WC82-480,31/07/2017,Adult Social Care,BLACK COUNTRY PARTNERSHIP NHS,06/07/2017,"3,640.00",73375-IN PATIENT BEDS,BCPFT,Third Party Payments,Revenue
Walsall Council,http://opendatacommunities.org/id/metropolitan-district-council/walsall,WC82-481,31/07/2017,Adult Social Care,BLACK COUNTRY PARTNERSHIP NHS,06/07/2017,"5,640.00",73375-IN PATIENT BEDS,BCPFT,Third Party Payments,Revenue
Walsall Council,http://opendatacommunities.org/id/metropolitan-district-council/walsall,WC82-482,31/07/2017,Adult Social Care,BLACK COUNTRY PARTNERSHIP NHS,13/07/2017,"6,367.00",73375-IN PATIENT BEDS,LD COMMISSIONING,Third Party Payments,Revenue
Walsall Council,http://opendatacommunities.org/id/metropolitan-district-council/walsall,WC82-483,31/07/2017,Adult Social Care,BLACK COUNTRY PARTNERSHIP NHS,20/07/2017,"6,367.00",73375-IN PATIENT BEDS,LD COMMISSIONING,Third Party Payments,Revenue
Walsall Council,http://opendatacommunities.org/id/metropolitan-district-council/walsall,WC82-484,31/07/2017,Adult Social Care,BLACK COUNTRY PARTNERSHIP NHS,14/07/2017,"6,708.00",73375-IN PATIENT BEDS,LD COMMISSIONING,Third Party Payments,Revenue
Walsall Council,http://opendatacommunities.org/id/metropolitan-district-council/walsall,WC82-485,31/07/2017,Adult Social Care,BLACK COUNTRY PARTNERSHIP NHS,13/07/2017,"7,049.00",73375-IN PATIENT BEDS,LD COMMISSIONING,Third Party Payments,Revenue
Walsall Council,http://opendatacommunities.org/id/metropolitan-district-council/walsall,WC82-486,31/07/2017,Adult Social Care,BLACK COUNTRY PARTNERSHIP NHS,20/07/2017,"7,205.00",73375-IN PATIENT BEDS,LD COMMISSIONING,Third Party Payments,Revenue
Walsall Council,http://opendatacommunities.org/id/metropolitan-district-council/walsall,WC82-487,31/07/2017,Adult Social Care,BLACK COUNTRY PARTNERSHIP NHS,14/07/2017,"8,297.00",73375-IN PATIENT BEDS,LD COMMISSIONING,Third Party Payments,Revenue
Walsall Council,http://opendatacommunities.org/id/metropolitan-district-council/walsall,WC82-488,31/07/2017,Adult Social Care,BLACK COUNTRY PARTNERSHIP NHS,20/07/2017,"9,099.00",73375-IN PATIENT BEDS,BCPFT,Third Party Payments,Revenue
Walsall Council,http://opendatacommunities.org/id/metropolitan-district-council/walsall,WC82-489,31/07/2017,Adult Social Care,BLACK COUNTRY PARTNERSHIP NHS,06/07/2017,"9,824.00",73375-IN PATIENT BEDS,BCPFT,Third Party Payments,Revenue
Walsall Council,http://opendatacommunities.org/id/metropolitan-district-council/walsall,WC82-490,31/07/2017,Adult Social Care,BLACK COUNTRY PARTNERSHIP NHS,06/07/2017,"10,188.00",73375-IN PATIENT BEDS,BCPFT,Third Party Payments,Revenue
Walsall Council,http://opendatacommunities.org/id/metropolitan-district-council/walsall,WC82-491,31/07/2017,Adult Social Care,BLACK COUNTRY PARTNERSHIP NHS,13/07/2017,"13,245.00",73375-IN PATIENT BEDS,LD COMMISSIONING,Third Party Payments,Revenue
Walsall Council,http://opendatacommunities.org/id/metropolitan-district-council/walsall,WC82-492,31/07/2017,Adult Social Care,BLACK COUNTRY PARTNERSHIP NHS,13/07/2017,"14,560.00",73375-IN PATIENT BEDS,LD COMMISSIONING,Third Party Payments,Revenue
Walsall Council,http://opendatacommunities.org/id/metropolitan-district-council/walsall,WC82-493,31/07/2017,Adult Social Care,BLACK COUNTRY PARTNERSHIP NHS,13/07/2017,"16,100.00",73375-IN PATIENT BEDS,LD COMMISSIONING,Third Party Payments,Revenue
Walsall Council,http://opendatacommunities.org/id/metropolitan-district-council/walsall,WC82-494,31/07/2017,Adult Social Care,BLACK COUNTRY PARTNERSHIP NHS,13/07/2017,"16,100.00",73375-IN PATIENT BEDS,LD COMMISSIONING,Third Party Payments,Revenue
Walsall Council,http://opendatacommunities.org/id/metropolitan-district-council/walsall,WC82-495,31/07/2017,Adult Social Care,BLACK COUNTRY PARTNERSHIP NHS,13/07/2017,"16,120.00",73375-IN PATIENT BEDS,LD COMMISSIONING,Third Party Payments,Revenue
Walsall Council,http://opendatacommunities.org/id/metropolitan-district-council/walsall,WC82-496,31/07/2017,Adult Social Care,BLACK COUNTRY PARTNERSHIP NHS,14/07/2017,"16,120.00",73375-IN PATIENT BEDS,LD COMMISSIONING,Third Party Payments,Revenue
Walsall Council,http://opendatacommunities.org/id/metropolitan-district-council/walsall,WC82-497,31/07/2017,Adult Social Care,BLACK COUNTRY PARTNERSHIP NHS,13/07/2017,"16,378.00",73375-IN PATIENT BEDS,BCPFT,Third Party Payments,Revenue
Walsall Council,http://opendatacommunities.org/id/metropolitan-district-council/walsall,WC82-498,31/07/2017,Adult Social Care,BLACK COUNTRY PARTNERSHIP NHS,06/07/2017,"16,985.00",73375-IN PATIENT BEDS,BCPFT,Third Party Payments,Revenue
Walsall Council,http://opendatacommunities.org/id/metropolitan-district-council/walsall,WC82-499,31/07/2017,Adult Social Care,BLACK COUNTRY PARTNERSHIP NHS,06/07/2017,"16,985.00",73375-IN PATIENT BEDS,BCPFT,Third Party Payments,Revenue
Walsall Council,http://opendatacommunities.org/id/metropolitan-district-council/walsall,WC82-500,31/07/2017,Adult Social Care,BLACK COUNTRY PARTNERSHIP NHS,13/07/2017,"17,825.00",73375-IN PATIENT BEDS,LD COMMISSIONING,Third Party Payments,Revenue
Walsall Council,http://opendatacommunities.org/id/metropolitan-district-council/walsall,WC82-501,31/07/2017,Adult Social Care,BLACK COUNTRY PARTNERSHIP NHS,14/07/2017,"17,825.00",73375-IN PATIENT BEDS,LD COMMISSIONING,Third Party Payments,Revenue
Walsall Council,http://opendatacommunities.org/id/metropolitan-district-council/walsall,WC82-502,31/07/2017,Adult Social Care,BLACK COUNTRY PARTNERSHIP NHS,06/07/2017,"18,805.00",73375-IN PATIENT BEDS,BCPFT,Third Party Payments,Revenue
Walsall Council,http://opendatacommunities.org/id/metropolitan-district-council/walsall,WC82-503,31/07/2017,Adult Social Care,BLACK COUNTRY PARTNERSHIP NHS,13/07/2017,"18,805.00",73375-IN PATIENT BEDS,BCPFT,Third Party Payments,Revenue
Walsall Council,http://opendatacommunities.org/id/metropolitan-district-council/walsall,WC82-504,31/07/2017,Adult Social Care,BLACK COUNTRY PARTNERSHIP NHS,14/07/2017,"18,805.00",73375-IN PATIENT BEDS,BCPFT,Third Party Payments,Revenue
Walsall Council,http://opendatacommunities.org/id/metropolitan-district-council/walsall,WC82-505,31/07/2017,Childrens,BLACK COUNTRY WOMENS AID,14/07/2017,"22,904.25",63000-PROFESSIONAL FEES AND SERVICES,TOXIC TRIO,Supplies & Services,Revenue
Walsall Council,http://opendatacommunities.org/id/metropolitan-district-council/walsall,WC82-506,31/07/2017,Childrens,BLAKENALL HEATH JMI SCHOOL,03/07/2017,"98,229.32",77300-ISB-FORMULA ALLOCATION,BLAKENALL HEATH JUNIOR SCHOOL,Transfer Payments,Revenue
Walsall Council,http://opendatacommunities.org/id/metropolitan-district-council/walsall,WC82-507,31/07/2017,Childrens,BLOXWICH ACADEMY,25/07/2017,600,77300-ISB-FORMULA ALLOCATION,BLOXWICH ACADEMY,Transfer Payments,Revenue
Walsall Council,http://opendatacommunities.org/id/metropolitan-district-council/walsall,WC82-508,31/07/2017,Childrens,BLOXWICH ACADEMY,25/07/2017,600,77300-ISB-FORMULA ALLOCATION,BLOXWICH ACADEMY,Transfer Payments,Revenue
Walsall Council,http://opendatacommunities.org/id/metropolitan-district-council/walsall,WC82-509,31/07/2017,Childrens,BLOXWICH ACADEMY,17/07/2017,"1,860.30",66505-OTHER-GRANTS TO OTHER ORGS,EARLY YEARS - 3 YR OLDS,Third Party Payments,Revenue
Walsall Council,http://opendatacommunities.org/id/metropolitan-district-council/walsall,WC82-510,31/07/2017,Adult Social Care,BLOXWICH COMMUNITY PARTNERSHIP.,14/07/2017,279,73372-DOMICILIARY CARE,OP COMMISSIONING,Third Party Payments,Revenue
Walsall Council,http://opendatacommunities.org/id/metropolitan-district-council/walsall,WC82-511,31/07/2017,Childrens,BLOXWICH COMMUNITY PARTNERSHIP.,03/07/2017,"4,599.22",60500-GENERAL MATERIALS,PUPIL REFERAL UNIT EXCLUSIONS,Supplies & Services,Revenue
Walsall Council,http://opendatacommunities.org/id/metropolitan-district-council/walsall,WC82-512,31/07/2017,Childrens,BLOXWICH COMMUNITY PARTNERSHIP.,03/07/2017,"9,794.42",60500-GENERAL MATERIALS,PUPIL REFERAL UNIT EXCLUSIONS,Supplies & Services,Revenue
Walsall Council,http://opendatacommunities.org/id/metropolitan-district-council/walsall,WC82-513,31/07/2017,Childrens,BLOXWICH COMMUNITY PARTNERSHIP.,03/07/2017,"10,295.06",60500-GENERAL MATERIALS,PUPIL REFERAL UNIT EXCLUSIONS,Supplies & Services,Revenue
Walsall Council,http://opendatacommunities.org/id/metropolitan-district-council/walsall,WC82-514,31/07/2017,Childrens,BLOXWICH RADIO TAXIS,11/07/2017,800,52000-WITH DRIVER-HIRE OF VEHICLES,SCHOOL TRANSPORT,Transport,Revenue
Walsall Council,http://opendatacommunities.org/id/metropolitan-district-council/walsall,WC82-515,31/07/2017,Childrens,BLOXWICH RADIO TAXIS,11/07/2017,"1,200.00",52000-WITH DRIVER-HIRE OF VEHICLES,SCHOOL TRANSPORT,Transport,Revenue
Walsall Council,http://opendatacommunities.org/id/metropolitan-district-council/walsall,WC82-516,31/07/2017,Childrens,BLOXWICH RADIO TAXIS,11/07/2017,"1,600.00",52000-WITH DRIVER-HIRE OF VEHICLES,SCHOOL TRANSPORT,Transport,Revenue
Walsall Council,http://opendatacommunities.org/id/metropolitan-district-council/walsall,WC82-517,31/07/2017,Childrens,BLOXWICH RADIO TAXIS,11/07/2017,"1,600.00",52000-WITH DRIVER-HIRE OF VEHICLES,SCHOOL TRANSPORT,Transport,Revenue
Walsall Council,http://opendatacommunities.org/id/metropolitan-district-council/walsall,WC82-518,31/07/2017,Childrens,BLOXWICH RADIO TAXIS,11/07/2017,"1,680.00",52000-WITH DRIVER-HIRE OF VEHICLES,SCHOOL TRANSPORT,Transport,Revenue
Walsall Council,http://opendatacommunities.org/id/metropolitan-district-council/walsall,WC82-519,31/07/2017,Childrens,BLOXWICH RADIO TAXIS,11/07/2017,"1,840.00",52000-WITH DRIVER-HIRE OF VEHICLES,SCHOOL TRANSPORT,Transport,Revenue
Walsall Council,http://opendatacommunities.org/id/metropolitan-district-council/walsall,WC82-520,31/07/2017,Childrens,BLUE COAT CHURCH OF ENGLAND ACADEMY,25/07/2017,900,77300-ISB-FORMULA ALLOCATION,BLUE COAT CofE ACADEMY,Transfer Payments,Revenue
Walsall Council,http://opendatacommunities.org/id/metropolitan-district-council/walsall,WC82-521,31/07/2017,Childrens,BLUE GIRAFFE CHILDCARE,05/07/2017,"6,396.00",66505-OTHER-GRANTS TO OTHER ORGS,EARLY YEARS - 3 YR OLDS,Third Party Payments,Revenue
Walsall Council,http://opendatacommunities.org/id/metropolitan-district-council/walsall,WC82-522,31/07/2017,Childrens,BLUE GIRAFFE CHILDCARE,05/07/2017,"6,539.20",66505-OTHER-GRANTS TO OTHER ORGS,EARLY YEARS - 2 YR OLDS,Third Party Payments,Revenue
Walsall Council,http://opendatacommunities.org/id/metropolitan-district-council/walsall,WC82-523,31/07/2017,Economy & Environment,BME UNITED LTD,19/07/2017,"1,176.00",63253-PAYMENT TO CONTRACTOR,SMOKING CESSATION,Third Party Payments,Revenue
Walsall Council,http://opendatacommunities.org/id/metropolitan-district-council/walsall,WC82-524,31/07/2017,Economy & Environment,BME UNITED LTD,25/07/2017,"1,911.00",63253-PAYMENT TO CONTRACTOR,SMOKING CESSATION,Third Party Payments,Revenue
Walsall Council,http://opendatacommunities.org/id/metropolitan-district-council/walsall,WC82-525,31/07/2017,Economy & Environment,BME UNITED LTD,31/07/2017,"4,922.25",66500-GRANTS TO OTHER ORGS,ESF COMMUNITY GRANTS,Third Party Payments,Revenue
Walsall Council,http://opendatacommunities.org/id/metropolitan-district-council/walsall,WC82-526,31/07/2017,Economy & Environment,BME UNITED LTD,25/07/2017,"6,443.00",63253-PAYMENT TO CONTRACTOR,SMOKING CESSATION,Third Party Payments,Revenue
Walsall Council,http://opendatacommunities.org/id/metropolitan-district-council/walsall,WC82-527,31/07/2017,Economy & Environment,BOLINDA UK LTD,05/07/2017,460.65,60501-LIBRARY BOOKS,LIBRARY STOCK AND PERFORMANCE,Supplies & Services,Revenue
Walsall Council,http://opendatacommunities.org/id/metropolitan-district-council/walsall,WC82-528,31/07/2017,Economy & Environment,BOLTON GATE COMPANY LTD,01/07/2017,523.65,60008-MAINTENANCE-FURNITURE & EQUIPMENT,FOREST ARTS CENTRE,Supplies & Services,Revenue
Walsall Council,http://opendatacommunities.org/id/metropolitan-district-council/walsall,WC82-529,31/07/2017,Childrens,BOOK WINGS LTD,19/07/2017,811.8,30030-EXTERNAL TRAINING,SCHOOL READINESS,Employees,Revenue
Walsall Council,http://opendatacommunities.org/id/metropolitan-district-council/walsall,WC82-530,31/07/2017,Economy & Environment,BOOKS ASIA,01/07/2017,297.05,60501-LIBRARY BOOKS,LIBRARY STOCK AND PERFORMANCE,Supplies & Services,Revenue
Walsall Council,http://opendatacommunities.org/id/metropolitan-district-council/walsall,WC82-531,31/07/2017,Economy & Environment,BOOKS ASIA,01/07/2017,487.76,60501-LIBRARY BOOKS,LIBRARY STOCK AND PERFORMANCE,Supplies & Services,Revenue
Walsall Council,http://opendatacommunities.org/id/metropolitan-district-council/walsall,WC82-532,31/07/2017,Economy & Environment,BORNEO ST ALLOTMENT ASSOCIATION,10/07/2017,750,66500-GRANTS TO OTHER ORGS,CENTRAL SERVICES ALLOTMENTS,Third Party Payments,Revenue
Walsall Council,http://opendatacommunities.org/id/metropolitan-district-council/walsall,WC82-533,31/07/2017,Economy & Environment,BOS BUSINESS OFFICE SOLUTIONS CIC,24/07/2017,"4,999.92",66500-GRANTS TO OTHER ORGS,ESF COMMUNITY GRANTS,Third Party Payments,Revenue
Walsall Council,http://opendatacommunities.org/id/metropolitan-district-council/walsall,WC82-534,31/07/2017,Childrens,BOULTON TRAVEL LIMITED,12/07/2017,400,52000-WITH DRIVER-HIRE OF VEHICLES,SCHOOL TRANSPORT,Transport,Revenue
Walsall Council,http://opendatacommunities.org/id/metropolitan-district-council/walsall,WC82-535,31/07/2017,Childrens,BOULTON TRAVEL LIMITED,11/07/2017,"2,260.00",52000-WITH DRIVER-HIRE OF VEHICLES,SCHOOL TRANSPORT,Transport,Revenue
Walsall Council,http://opendatacommunities.org/id/metropolitan-district-council/walsall,WC82-536,31/07/2017,Childrens,BOULTON TRAVEL LIMITED,12/07/2017,"2,413.00",52000-WITH DRIVER-HIRE OF VEHICLES,SCHOOL TRANSPORT,Transport,Revenue
Walsall Council,http://opendatacommunities.org/id/metropolitan-district-council/walsall,WC82-537,31/07/2017,Childrens,BOULTON TRAVEL LIMITED,11/07/2017,"2,500.00",52000-WITH DRIVER-HIRE OF VEHICLES,SCHOOL TRANSPORT,Transport,Revenue
Walsall Council,http://opendatacommunities.org/id/metropolitan-district-council/walsall,WC82-538,31/07/2017,Adult Social Care,BOWDEN DERRA PARK,04/07/2017,"10,502.82",73373-RESIDENTIAL & NURSING CARE PLACEMENTS,LD COMMISSIONING,Third Party Payments,Revenue
Walsall Council,http://opendatacommunities.org/id/metropolitan-district-council/walsall,WC82-539,31/07/2017,Economy & Environment,BPH DATA LTD,21/07/2017,700,64500-PUBLICATIONS/ORGANISATIONS-SUBSCRIPTIONS,LIBRARY STOCK AND PERFORMANCE,Supplies & Services,Revenue
Walsall Council,http://opendatacommunities.org/id/metropolitan-district-council/walsall,WC82-540,31/07/2017,Change and Governance,BPP PROFESSIONAL EDUCATION,11/07/2017,744.68,30030-EXTERNAL TRAINING,FINANCE,Employees,Revenue
Walsall Council,http://opendatacommunities.org/id/metropolitan-district-council/walsall,WC82-541,31/07/2017,Economy & Environment,BRADVALE LTD T/A INSPIRE HEALTHCARE SERVICES,19/07/2017,284.98,60008-MAINTENANCE-FURNITURE & EQUIPMENT,DARLASTON LEISURE CENTRE,Supplies & Services,Revenue
Walsall Council,http://opendatacommunities.org/id/metropolitan-district-council/walsall,WC82-542,31/07/2017,Economy & Environment,BRADVALE LTD T/A INSPIRE HEALTHCARE SERVICES,10/07/2017,583.2,60500-GENERAL MATERIALS,ARBORETUM VISITOR CENTRE,Supplies & Services,Revenue
Walsall Council,http://opendatacommunities.org/id/metropolitan-district-council/walsall,WC82-543,31/07/2017,Economy & Environment,BRADVALE LTD T/A INSPIRE HEALTHCARE SERVICES,10/07/2017,907.03,63121-DISPOSAL OF WASTE-SERVICES-FEES,BLOXWICH LEISURE CENTRE,Supplies & Services,Revenue
Walsall Council,http://opendatacommunities.org/id/metropolitan-district-council/walsall,WC82-544,31/07/2017,Economy & Environment,BRAMBLE HUB LIMITED,14/07/2017,700,01044-PURCHASE OF FURNITURE & EQUIPMENT,CFR 1155 LEISURE MANAGEMENT SYSTEM,Capital,Capital
Walsall Council,http://opendatacommunities.org/id/metropolitan-district-council/walsall,WC82-545,31/07/2017,Economy & Environment,BRAMBLE HUB LIMITED,03/07/2017,"83,839.11",01044-PURCHASE OF FURNITURE & EQUIPMENT,CFR 1155 LEISURE MANAGEMENT SYSTEM,Capital,Capital
Walsall Council,http://opendatacommunities.org/id/metropolitan-district-council/walsall,WC82-546,31/07/2017,Adult Social Care,BRAMBLES RESIDENTIAL CARE HOME,11/07/2017,"2,134.58",73373-RESIDENTIAL & NURSING CARE PLACEMENTS,MH COMMISSIONING,Third Party Payments,Revenue
Walsall Council,http://opendatacommunities.org/id/metropolitan-district-council/walsall,WC82-547,31/07/2017,Childrens,BRANAS ISAF PERSONAL DEVELOPMENT CENTRE LTD,18/07/2017,"18,000.00",74036-EXTERNAL RESIDENTIAL CARE-OTH AGENCY PROVISION,INDEPENDENT RESIDENTIAL HOMES,Third Party Payments,Revenue
Walsall Council,http://opendatacommunities.org/id/metropolitan-district-council/walsall,WC82-548,31/07/2017,Economy & Environment,BRELMAYNE LTD,26/07/2017,"1,771.00",60008-MAINTENANCE-FURNITURE & EQUIPMENT,FOREST ARTS CENTRE,Supplies & Services,Revenue
Walsall Council,http://opendatacommunities.org/id/metropolitan-district-council/walsall,WC82-549,31/07/2017,Adult Social Care,REDACTED,11/07/2017,440,76422-DIRECT PAYMENTS TO SOCIAL SERVICES CLIENTS,LD COMMISSIONING,Transfer Payments,Revenue
Walsall Council,http://opendatacommunities.org/id/metropolitan-district-council/walsall,WC82-550,31/07/2017,Childrens,REDACTED,17/07/2017,9.24,60006-NEW-FURNITURE & EQUIPMENT,INTERNAL FOSTER CARE PROVISION,Supplies & Services,Revenue
Walsall Council,http://opendatacommunities.org/id/metropolitan-district-council/walsall,WC82-551,31/07/2017,Childrens,REDACTED,17/07/2017,405.16,74504-HOLIDAY/CHRISTMAS ALLOWANCE-FOSTER CARERS,INTERNAL FOSTER CARE PROVISION,Transfer Payments,Revenue
Walsall Council,http://opendatacommunities.org/id/metropolitan-district-council/walsall,WC82-552,31/07/2017,Childrens,REDACTED,17/07/2017,405.16,74504-HOLIDAY/CHRISTMAS ALLOWANCE-FOSTER CARERS,INTERNAL FOSTER CARE PROVISION,Transfer Payments,Revenue
Walsall Council,http://opendatacommunities.org/id/metropolitan-district-council/walsall,WC82-553,31/07/2017,Childrens,REDACTED,17/07/2017,810.32,74501-MAINTENANCE ALLOWANCE-FOSTER CARERS,INTERNAL FOSTER CARE PROVISION,Transfer Payments,Revenue
Walsall Council,http://opendatacommunities.org/id/metropolitan-district-council/walsall,WC82-554,31/07/2017,Childrens,REDACTED,17/07/2017,810.32,74501-MAINTENANCE ALLOWANCE-FOSTER CARERS,INTERNAL FOSTER CARE PROVISION,Transfer Payments,Revenue
Walsall Council,http://opendatacommunities.org/id/metropolitan-district-council/walsall,WC82-555,31/07/2017,Childrens,REDACTED,17/07/2017,"1,436.08",74508-INTERNAL FOSTER CARERS-CARER FEES,INTERNAL FOSTER CARE PROVISION,Transfer Payments,Revenue
Walsall Council,http://opendatacommunities.org/id/metropolitan-district-council/walsall,WC82-556,31/07/2017,Economy & Environment,BRENNTAG UK LIMITED,19/07/2017,387.5,60500-GENERAL MATERIALS,BLOXWICH LEISURE CENTRE,Supplies & Services,Revenue
Walsall Council,http://opendatacommunities.org/id/metropolitan-district-council/walsall,WC82-557,31/07/2017,Economy & Environment,BRENNTAG UK LIMITED,19/07/2017,387.5,60500-GENERAL MATERIALS,BLOXWICH LEISURE CENTRE,Supplies & Services,Revenue
Walsall Council,http://opendatacommunities.org/id/metropolitan-district-council/walsall,WC82-558,31/07/2017,Adult Social Care,REDACTED,01/07/2017,"1,337.64",73374-SUPPORTED & OTHER ACCOMMODATION,LD COMMISSIONING,Third Party Payments,Revenue
Walsall Council,http://opendatacommunities.org/id/metropolitan-district-council/walsall,WC82-559,31/07/2017,Adult Social Care,REDACTED,26/07/2017,"1,337.64",73374-SUPPORTED & OTHER ACCOMMODATION,LD COMMISSIONING,Third Party Payments,Revenue
Walsall Council,http://opendatacommunities.org/id/metropolitan-district-council/walsall,WC82-560,31/07/2017,Adult Social Care,REDACTED,01/07/2017,"1,597.60",73374-SUPPORTED & OTHER ACCOMMODATION,LD COMMISSIONING,Third Party Payments,Revenue
Walsall Council,http://opendatacommunities.org/id/metropolitan-district-council/walsall,WC82-561,31/07/2017,Adult Social Care,REDACTED,26/07/2017,"1,597.60",73374-SUPPORTED & OTHER ACCOMMODATION,LD COMMISSIONING,Third Party Payments,Revenue
Walsall Council,http://opendatacommunities.org/id/metropolitan-district-council/walsall,WC82-562,31/07/2017,Adult Social Care,REDACTED,11/07/2017,"1,726.40",76422-DIRECT PAYMENTS TO SOCIAL SERVICES CLIENTS,OP COMMISSIONING,Transfer Payments,Revenue
Walsall Council,http://opendatacommunities.org/id/metropolitan-district-council/walsall,WC82-563,31/07/2017,Adult Social Care,REDACTED,11/07/2017,738,76422-DIRECT PAYMENTS TO SOCIAL SERVICES CLIENTS,OP COMMISSIONING,Transfer Payments,Revenue
Walsall Council,http://opendatacommunities.org/id/metropolitan-district-council/walsall,WC82-564,31/07/2017,Change and Governance,BRISTOL OILSKIN & OVERALL CO,03/07/2017,10.8,55001-CARRIAGE-OUT,SCHOOL CROSSING PATROL ADMIN,Transport,Revenue
Walsall Council,http://opendatacommunities.org/id/metropolitan-district-council/walsall,WC82-565,31/07/2017,Change and Governance,BRISTOL OILSKIN & OVERALL CO,03/07/2017,885.1,60539-CLEANING MATERIALS,SCHOOL CROSSING PATROL ADMIN,Supplies & Services,Revenue
Walsall Council,http://opendatacommunities.org/id/metropolitan-district-council/walsall,WC82-566,31/07/2017,Change and Governance,BRISTOL OILSKIN & OVERALL CO,03/07/2017,"2,205.18",60539-CLEANING MATERIALS,SCHOOL CROSSING PATROL ADMIN,Supplies & Services,Revenue
Walsall Council,http://opendatacommunities.org/id/metropolitan-district-council/walsall,WC82-567,31/07/2017,Change and Governance,BRISTOW & SUTOR,11/07/2017,340.99,73014-LEGAL FEES-PRIV CONTRACTOR FEES,REVENUES,Third Party Payments,Revenue
Walsall Council,http://opendatacommunities.org/id/metropolitan-district-council/walsall,WC82-568,31/07/2017,Economy & Environment,BRITANNIA APPRENTICESHIPS LTD,26/07/2017,"1,125.00",66500-GRANTS TO OTHER ORGS,RES-WALSALL WORKS,Third Party Payments,Revenue
Walsall Council,http://opendatacommunities.org/id/metropolitan-district-council/walsall,WC82-569,31/07/2017,Change and Governance,BRITISH BIDS,06/07/2017,"1,665.00",30030-EXTERNAL TRAINING,AREA PARTNERSHIPS,Employees,Revenue
Walsall Council,http://opendatacommunities.org/id/metropolitan-district-council/walsall,WC82-570,31/07/2017,Change and Governance,BRITISH GAS BUSINESS,18/07/2017,"-25,654.90",42000-GAS-ENERGY COSTS,CENTRALISED ENERGY,Premises,Revenue
Walsall Council,http://opendatacommunities.org/id/metropolitan-district-council/walsall,WC82-571,31/07/2017,Change and Governance,BRITISH GAS BUSINESS,18/07/2017,"-16,341.53",42000-GAS-ENERGY COSTS,CENTRALISED ENERGY,Premises,Revenue
Walsall Council,http://opendatacommunities.org/id/metropolitan-district-council/walsall,WC82-572,31/07/2017,Change and Governance,BRITISH GAS BUSINESS,18/07/2017,"-14,855.38",42000-GAS-ENERGY COSTS,CENTRALISED ENERGY,Premises,Revenue
Walsall Council,http://opendatacommunities.org/id/metropolitan-district-council/walsall,WC82-573,31/07/2017,Change and Governance,BRITISH GAS BUSINESS,18/07/2017,"-14,855.38",42000-GAS-ENERGY COSTS,CENTRALISED ENERGY,Premises,Revenue
Walsall Council,http://opendatacommunities.org/id/metropolitan-district-council/walsall,WC82-574,31/07/2017,Change and Governance,BRITISH GAS BUSINESS,18/07/2017,"-12,970.66",42000-GAS-ENERGY COSTS,CENTRALISED ENERGY,Premises,Revenue
Walsall Council,http://opendatacommunities.org/id/metropolitan-district-council/walsall,WC82-575,31/07/2017,Change and Governance,BRITISH GAS BUSINESS,18/07/2017,"-11,681.07",42000-GAS-ENERGY COSTS,CENTRALISED ENERGY,Premises,Revenue
Walsall Council,http://opendatacommunities.org/id/metropolitan-district-council/walsall,WC82-576,31/07/2017,Change and Governance,BRITISH GAS BUSINESS,18/07/2017,"-11,177.63",42000-GAS-ENERGY COSTS,CENTRALISED ENERGY,Premises,Revenue
Walsall Council,http://opendatacommunities.org/id/metropolitan-district-council/walsall,WC82-577,31/07/2017,Change and Governance,BRITISH GAS BUSINESS,18/07/2017,"-8,763.00",42000-GAS-ENERGY COSTS,CENTRALISED ENERGY,Premises,Revenue
Walsall Council,http://opendatacommunities.org/id/metropolitan-district-council/walsall,WC82-578,31/07/2017,Change and Governance,BRITISH GAS BUSINESS,18/07/2017,"-8,206.65",42000-GAS-ENERGY COSTS,CENTRALISED ENERGY,Premises,Revenue
Walsall Council,http://opendatacommunities.org/id/metropolitan-district-council/walsall,WC82-579,31/07/2017,Change and Governance,BRITISH GAS BUSINESS,17/07/2017,"-6,698.63",42000-GAS-ENERGY COSTS,CENTRALISED ENERGY,Premises,Revenue
Walsall Council,http://opendatacommunities.org/id/metropolitan-district-council/walsall,WC82-580,31/07/2017,Change and Governance,BRITISH GAS BUSINESS,17/07/2017,"-5,465.60",42000-GAS-ENERGY COSTS,CENTRALISED ENERGY,Premises,Revenue
Walsall Council,http://opendatacommunities.org/id/metropolitan-district-council/walsall,WC82-581,31/07/2017,Change and Governance,BRITISH GAS BUSINESS,17/07/2017,"-4,915.43",42000-GAS-ENERGY COSTS,RECHARGEABLE UTILITIES,Premises,Revenue
Walsall Council,http://opendatacommunities.org/id/metropolitan-district-council/walsall,WC82-582,31/07/2017,Change and Governance,BRITISH GAS BUSINESS,18/07/2017,"-4,819.03",42000-GAS-ENERGY COSTS,CENTRALISED ENERGY,Premises,Revenue
Walsall Council,http://opendatacommunities.org/id/metropolitan-district-council/walsall,WC82-583,31/07/2017,Change and Governance,BRITISH GAS BUSINESS,17/07/2017,"-4,377.11",42000-GAS-ENERGY COSTS,RECHARGEABLE UTILITIES,Premises,Revenue
Walsall Council,http://opendatacommunities.org/id/metropolitan-district-council/walsall,WC82-584,31/07/2017,Change and Governance,BRITISH GAS BUSINESS,18/07/2017,"-4,360.35",42000-GAS-ENERGY COSTS,CENTRALISED ENERGY,Premises,Revenue
Walsall Council,http://opendatacommunities.org/id/metropolitan-district-council/walsall,WC82-585,31/07/2017,Change and Governance,BRITISH GAS BUSINESS,18/07/2017,"-4,285.83",42000-GAS-ENERGY COSTS,CENTRALISED ENERGY,Premises,Revenue
Walsall Council,http://opendatacommunities.org/id/metropolitan-district-council/walsall,WC82-586,31/07/2017,Change and Governance,BRITISH GAS BUSINESS,17/07/2017,"-4,173.82",42000-GAS-ENERGY COSTS,RECHARGEABLE UTILITIES,Premises,Revenue
Walsall Council,http://opendatacommunities.org/id/metropolitan-district-council/walsall,WC82-587,31/07/2017,Change and Governance,BRITISH GAS BUSINESS,17/07/2017,"-4,149.80",42000-GAS-ENERGY COSTS,CENTRALISED ENERGY,Premises,Revenue
Walsall Council,http://opendatacommunities.org/id/metropolitan-district-council/walsall,WC82-588,31/07/2017,Change and Governance,BRITISH GAS BUSINESS,18/07/2017,"-4,014.08",42000-GAS-ENERGY COSTS,CENTRALISED ENERGY,Premises,Revenue
Walsall Council,http://opendatacommunities.org/id/metropolitan-district-council/walsall,WC82-589,31/07/2017,Change and Governance,BRITISH GAS BUSINESS,18/07/2017,"-3,779.38",42000-GAS-ENERGY COSTS,REDUNDANT BUILDINGS,Premises,Revenue
Walsall Council,http://opendatacommunities.org/id/metropolitan-district-council/walsall,WC82-590,31/07/2017,Change and Governance,BRITISH GAS BUSINESS,17/07/2017,"-3,638.57",42000-GAS-ENERGY COSTS,WALSALL TOWN HALL,Premises,Revenue
Walsall Council,http://opendatacommunities.org/id/metropolitan-district-council/walsall,WC82-591,31/07/2017,Change and Governance,BRITISH GAS BUSINESS,18/07/2017,"-3,471.81",42000-GAS-ENERGY COSTS,CENTRALISED ENERGY,Premises,Revenue
Walsall Council,http://opendatacommunities.org/id/metropolitan-district-council/walsall,WC82-592,31/07/2017,Change and Governance,BRITISH GAS BUSINESS,18/07/2017,"-3,328.61",42000-GAS-ENERGY COSTS,CENTRALISED ENERGY,Premises,Revenue
Walsall Council,http://opendatacommunities.org/id/metropolitan-district-council/walsall,WC82-593,31/07/2017,Change and Governance,BRITISH GAS BUSINESS,18/07/2017,"-3,158.71",42000-GAS-ENERGY COSTS,REDUNDANT BUILDINGS,Premises,Revenue
Walsall Council,http://opendatacommunities.org/id/metropolitan-district-council/walsall,WC82-594,31/07/2017,Change and Governance,BRITISH GAS BUSINESS,18/07/2017,"-2,988.72",42000-GAS-ENERGY COSTS,CENTRALISED ENERGY,Premises,Revenue
Walsall Council,http://opendatacommunities.org/id/metropolitan-district-council/walsall,WC82-595,31/07/2017,Change and Governance,BRITISH GAS BUSINESS,18/07/2017,"-2,970.72",42000-GAS-ENERGY COSTS,CENTRALISED ENERGY,Premises,Revenue
Walsall Council,http://opendatacommunities.org/id/metropolitan-district-council/walsall,WC82-596,31/07/2017,Change and Governance,BRITISH GAS BUSINESS,18/07/2017,"-2,927.46",42000-GAS-ENERGY COSTS,RECHARGEABLE UTILITIES,Premises,Revenue
Walsall Council,http://opendatacommunities.org/id/metropolitan-district-council/walsall,WC82-597,31/07/2017,Change and Governance,BRITISH GAS BUSINESS,18/07/2017,"-2,870.57",42000-GAS-ENERGY COSTS,CENTRALISED ENERGY,Premises,Revenue
Walsall Council,http://opendatacommunities.org/id/metropolitan-district-council/walsall,WC82-598,31/07/2017,Change and Governance,BRITISH GAS BUSINESS,18/07/2017,"-2,660.42",42000-GAS-ENERGY COSTS,RECHARGEABLE UTILITIES,Premises,Revenue
Walsall Council,http://opendatacommunities.org/id/metropolitan-district-council/walsall,WC82-599,31/07/2017,Change and Governance,BRITISH GAS BUSINESS,18/07/2017,"-2,339.65",42000-GAS-ENERGY COSTS,CENTRALISED ENERGY,Premises,Revenue
Walsall Council,http://opendatacommunities.org/id/metropolitan-district-council/walsall,WC82-600,31/07/2017,Change and Governance,BRITISH GAS BUSINESS,18/07/2017,"-2,092.42",42000-GAS-ENERGY COSTS,CENTRALISED ENERGY,Premises,Revenue
Walsall Council,http://opendatacommunities.org/id/metropolitan-district-council/walsall,WC82-601,31/07/2017,Change and Governance,BRITISH GAS BUSINESS,18/07/2017,"-2,003.03",42000-GAS-ENERGY COSTS,CENTRALISED ENERGY,Premises,Revenue
Walsall Council,http://opendatacommunities.org/id/metropolitan-district-council/walsall,WC82-602,31/07/2017,Change and Governance,BRITISH GAS BUSINESS,18/07/2017,"-1,800.55",42000-GAS-ENERGY COSTS,RECHARGEABLE UTILITIES,Premises,Revenue
Walsall Council,http://opendatacommunities.org/id/metropolitan-district-council/walsall,WC82-603,31/07/2017,Change and Governance,BRITISH GAS BUSINESS,17/07/2017,"-1,580.57",42000-GAS-ENERGY COSTS,CENTRALISED ENERGY,Premises,Revenue
Walsall Council,http://opendatacommunities.org/id/metropolitan-district-council/walsall,WC82-604,31/07/2017,Change and Governance,BRITISH GAS BUSINESS,18/07/2017,"-1,491.73",42000-GAS-ENERGY COSTS,CENTRALISED ENERGY,Premises,Revenue
Walsall Council,http://opendatacommunities.org/id/metropolitan-district-council/walsall,WC82-605,31/07/2017,Change and Governance,BRITISH GAS BUSINESS,17/07/2017,"-1,390.68",42000-GAS-ENERGY COSTS,CENTRALISED ENERGY,Premises,Revenue
Walsall Council,http://opendatacommunities.org/id/metropolitan-district-council/walsall,WC82-606,31/07/2017,Change and Governance,BRITISH GAS BUSINESS,18/07/2017,"-1,334.88",42000-GAS-ENERGY COSTS,CENTRALISED ENERGY,Premises,Revenue
Walsall Council,http://opendatacommunities.org/id/metropolitan-district-council/walsall,WC82-607,31/07/2017,Change and Governance,BRITISH GAS BUSINESS,17/07/2017,"-1,307.67",42000-GAS-ENERGY COSTS,CENTRALISED ENERGY,Premises,Revenue
Walsall Council,http://opendatacommunities.org/id/metropolitan-district-council/walsall,WC82-608,31/07/2017,Change and Governance,BRITISH GAS BUSINESS,18/07/2017,"-1,240.95",42000-GAS-ENERGY COSTS,CENTRALISED ENERGY,Premises,Revenue
Walsall Council,http://opendatacommunities.org/id/metropolitan-district-council/walsall,WC82-609,31/07/2017,Change and Governance,BRITISH GAS BUSINESS,18/07/2017,"-1,227.27",42000-GAS-ENERGY COSTS,RECHARGEABLE UTILITIES,Premises,Revenue
Walsall Council,http://opendatacommunities.org/id/metropolitan-district-council/walsall,WC82-610,31/07/2017,Change and Governance,BRITISH GAS BUSINESS,17/07/2017,"-1,167.68",42000-GAS-ENERGY COSTS,CENTRALISED ENERGY,Premises,Revenue
Walsall Council,http://opendatacommunities.org/id/metropolitan-district-council/walsall,WC82-611,31/07/2017,Change and Governance,BRITISH GAS BUSINESS,18/07/2017,"-1,163.92",42000-GAS-ENERGY COSTS,CENTRALISED ENERGY,Premises,Revenue
Walsall Council,http://opendatacommunities.org/id/metropolitan-district-council/walsall,WC82-612,31/07/2017,Change and Governance,BRITISH GAS BUSINESS,17/07/2017,"-1,136.25",42000-GAS-ENERGY COSTS,RECHARGEABLE UTILITIES,Premises,Revenue
Walsall Council,http://opendatacommunities.org/id/metropolitan-district-council/walsall,WC82-613,31/07/2017,Change and Governance,BRITISH GAS BUSINESS,17/07/2017,"-1,063.62",42000-GAS-ENERGY COSTS,CENTRALISED ENERGY,Premises,Revenue
Walsall Council,http://opendatacommunities.org/id/metropolitan-district-council/walsall,WC82-614,31/07/2017,Change and Governance,BRITISH GAS BUSINESS,17/07/2017,"-1,031.18",42000-GAS-ENERGY COSTS,DARLASTON TOWN HALL,Premises,Revenue
Walsall Council,http://opendatacommunities.org/id/metropolitan-district-council/walsall,WC82-615,31/07/2017,Change and Governance,BRITISH GAS BUSINESS,18/07/2017,-975.68,42000-GAS-ENERGY COSTS,CENTRALISED ENERGY,Premises,Revenue
Walsall Council,http://opendatacommunities.org/id/metropolitan-district-council/walsall,WC82-616,31/07/2017,Change and Governance,BRITISH GAS BUSINESS,17/07/2017,-968.08,42000-GAS-ENERGY COSTS,CENTRALISED ENERGY,Premises,Revenue
Walsall Council,http://opendatacommunities.org/id/metropolitan-district-council/walsall,WC82-617,31/07/2017,Change and Governance,BRITISH GAS BUSINESS,18/07/2017,-962.93,42000-GAS-ENERGY COSTS,CENTRALISED ENERGY,Premises,Revenue
Walsall Council,http://opendatacommunities.org/id/metropolitan-district-council/walsall,WC82-618,31/07/2017,Change and Governance,BRITISH GAS BUSINESS,18/07/2017,-961.03,42000-GAS-ENERGY COSTS,CENTRALISED ENERGY,Premises,Revenue
Walsall Council,http://opendatacommunities.org/id/metropolitan-district-council/walsall,WC82-619,31/07/2017,Change and Governance,BRITISH GAS BUSINESS,17/07/2017,-960.77,42000-GAS-ENERGY COSTS,RECHARGEABLE UTILITIES,Premises,Revenue
Walsall Council,http://opendatacommunities.org/id/metropolitan-district-council/walsall,WC82-620,31/07/2017,Change and Governance,BRITISH GAS BUSINESS,17/07/2017,-948.13,42000-GAS-ENERGY COSTS,RECHARGEABLE UTILITIES,Premises,Revenue
Walsall Council,http://opendatacommunities.org/id/metropolitan-district-council/walsall,WC82-621,31/07/2017,Change and Governance,BRITISH GAS BUSINESS,17/07/2017,-904.43,42000-GAS-ENERGY COSTS,DARLASTON TOWN HALL,Premises,Revenue
Walsall Council,http://opendatacommunities.org/id/metropolitan-district-council/walsall,WC82-622,31/07/2017,Change and Governance,BRITISH GAS BUSINESS,18/07/2017,-888.13,42000-GAS-ENERGY COSTS,CHALLENGE BUILDING,Premises,Revenue
Walsall Council,http://opendatacommunities.org/id/metropolitan-district-council/walsall,WC82-623,31/07/2017,Change and Governance,BRITISH GAS BUSINESS,17/07/2017,-881.55,42000-GAS-ENERGY COSTS,RECHARGEABLE UTILITIES,Premises,Revenue
Walsall Council,http://opendatacommunities.org/id/metropolitan-district-council/walsall,WC82-624,31/07/2017,Change and Governance,BRITISH GAS BUSINESS,18/07/2017,-765.09,42000-GAS-ENERGY COSTS,CENTRALISED ENERGY,Premises,Revenue
Walsall Council,http://opendatacommunities.org/id/metropolitan-district-council/walsall,WC82-625,31/07/2017,Change and Governance,BRITISH GAS BUSINESS,18/07/2017,-736.68,42000-GAS-ENERGY COSTS,RECHARGEABLE UTILITIES,Premises,Revenue
Walsall Council,http://opendatacommunities.org/id/metropolitan-district-council/walsall,WC82-626,31/07/2017,Change and Governance,BRITISH GAS BUSINESS,18/07/2017,-736.65,42000-GAS-ENERGY COSTS,CENTRALISED ENERGY,Premises,Revenue
Walsall Council,http://opendatacommunities.org/id/metropolitan-district-council/walsall,WC82-627,31/07/2017,Change and Governance,BRITISH GAS BUSINESS,18/07/2017,-732.3,42000-GAS-ENERGY COSTS,CENTRALISED ENERGY,Premises,Revenue
Walsall Council,http://opendatacommunities.org/id/metropolitan-district-council/walsall,WC82-628,31/07/2017,Change and Governance,BRITISH GAS BUSINESS,18/07/2017,-727.51,42000-GAS-ENERGY COSTS,CENTRALISED ENERGY,Premises,Revenue
Walsall Council,http://opendatacommunities.org/id/metropolitan-district-council/walsall,WC82-629,31/07/2017,Change and Governance,BRITISH GAS BUSINESS,18/07/2017,-695.32,42000-GAS-ENERGY COSTS,CENTRALISED ENERGY,Premises,Revenue
Walsall Council,http://opendatacommunities.org/id/metropolitan-district-council/walsall,WC82-630,31/07/2017,Change and Governance,BRITISH GAS BUSINESS,18/07/2017,-689.37,42000-GAS-ENERGY COSTS,CENTRALISED ENERGY,Premises,Revenue
Walsall Council,http://opendatacommunities.org/id/metropolitan-district-council/walsall,WC82-631,31/07/2017,Change and Governance,BRITISH GAS BUSINESS,18/07/2017,-598.92,42000-GAS-ENERGY COSTS,CENTRALISED ENERGY,Premises,Revenue
Walsall Council,http://opendatacommunities.org/id/metropolitan-district-council/walsall,WC82-632,31/07/2017,Change and Governance,BRITISH GAS BUSINESS,18/07/2017,-567.38,42000-GAS-ENERGY COSTS,CENTRALISED ENERGY,Premises,Revenue
Walsall Council,http://opendatacommunities.org/id/metropolitan-district-council/walsall,WC82-633,31/07/2017,Change and Governance,BRITISH GAS BUSINESS,18/07/2017,-516.82,42000-GAS-ENERGY COSTS,CENTRALISED ENERGY,Premises,Revenue
Walsall Council,http://opendatacommunities.org/id/metropolitan-district-council/walsall,WC82-634,31/07/2017,Change and Governance,BRITISH GAS BUSINESS,18/07/2017,-512.23,42000-GAS-ENERGY COSTS,RECHARGEABLE UTILITIES,Premises,Revenue
Walsall Council,http://opendatacommunities.org/id/metropolitan-district-council/walsall,WC82-635,31/07/2017,Change and Governance,BRITISH GAS BUSINESS,18/07/2017,-477.18,42000-GAS-ENERGY COSTS,CENTRALISED ENERGY,Premises,Revenue
Walsall Council,http://opendatacommunities.org/id/metropolitan-district-council/walsall,WC82-636,31/07/2017,Change and Governance,BRITISH GAS BUSINESS,18/07/2017,-461.3,42000-GAS-ENERGY COSTS,RECHARGEABLE UTILITIES,Premises,Revenue
Walsall Council,http://opendatacommunities.org/id/metropolitan-district-council/walsall,WC82-637,31/07/2017,Change and Governance,BRITISH GAS BUSINESS,17/07/2017,-448.41,42000-GAS-ENERGY COSTS,CENTRALISED ENERGY,Premises,Revenue
Walsall Council,http://opendatacommunities.org/id/metropolitan-district-council/walsall,WC82-638,31/07/2017,Change and Governance,BRITISH GAS BUSINESS,18/07/2017,-432.36,42000-GAS-ENERGY COSTS,DARLASTON TOWN HALL,Premises,Revenue
Walsall Council,http://opendatacommunities.org/id/metropolitan-district-council/walsall,WC82-639,31/07/2017,Change and Governance,BRITISH GAS BUSINESS,17/07/2017,-419.38,42000-GAS-ENERGY COSTS,CENTRALISED ENERGY,Premises,Revenue
Walsall Council,http://opendatacommunities.org/id/metropolitan-district-council/walsall,WC82-640,31/07/2017,Change and Governance,BRITISH GAS BUSINESS,18/07/2017,-396.4,42000-GAS-ENERGY COSTS,CENTRALISED ENERGY,Premises,Revenue
Walsall Council,http://opendatacommunities.org/id/metropolitan-district-council/walsall,WC82-641,31/07/2017,Change and Governance,BRITISH GAS BUSINESS,18/07/2017,-395.95,42000-GAS-ENERGY COSTS,CENTRALISED ENERGY,Premises,Revenue
Walsall Council,http://opendatacommunities.org/id/metropolitan-district-council/walsall,WC82-642,31/07/2017,Change and Governance,BRITISH GAS BUSINESS,18/07/2017,-395.16,42000-GAS-ENERGY COSTS,CENTRALISED ENERGY,Premises,Revenue
Walsall Council,http://opendatacommunities.org/id/metropolitan-district-council/walsall,WC82-643,31/07/2017,Change and Governance,BRITISH GAS BUSINESS,18/07/2017,-384.26,42000-GAS-ENERGY COSTS,CENTRALISED ENERGY,Premises,Revenue
Walsall Council,http://opendatacommunities.org/id/metropolitan-district-council/walsall,WC82-644,31/07/2017,Change and Governance,BRITISH GAS BUSINESS,17/07/2017,-372.8,42000-GAS-ENERGY COSTS,CENTRALISED ENERGY,Premises,Revenue
Walsall Council,http://opendatacommunities.org/id/metropolitan-district-council/walsall,WC82-645,31/07/2017,Change and Governance,BRITISH GAS BUSINESS,17/07/2017,-360.12,42000-GAS-ENERGY COSTS,CENTRALISED ENERGY,Premises,Revenue
Walsall Council,http://opendatacommunities.org/id/metropolitan-district-council/walsall,WC82-646,31/07/2017,Change and Governance,BRITISH GAS BUSINESS,18/07/2017,-355.61,42000-GAS-ENERGY COSTS,CENTRALISED ENERGY,Premises,Revenue
Walsall Council,http://opendatacommunities.org/id/metropolitan-district-council/walsall,WC82-647,31/07/2017,Change and Governance,BRITISH GAS BUSINESS,18/07/2017,-350.33,42000-GAS-ENERGY COSTS,CENTRALISED ENERGY,Premises,Revenue
Walsall Council,http://opendatacommunities.org/id/metropolitan-district-council/walsall,WC82-648,31/07/2017,Change and Governance,BRITISH GAS BUSINESS,17/07/2017,-339.93,42000-GAS-ENERGY COSTS,CENTRALISED ENERGY,Premises,Revenue
Walsall Council,http://opendatacommunities.org/id/metropolitan-district-council/walsall,WC82-649,31/07/2017,Change and Governance,BRITISH GAS BUSINESS,18/07/2017,-330.23,42000-GAS-ENERGY COSTS,CENTRALISED ENERGY,Premises,Revenue
Walsall Council,http://opendatacommunities.org/id/metropolitan-district-council/walsall,WC82-650,31/07/2017,Change and Governance,BRITISH GAS BUSINESS,17/07/2017,-327.88,42000-GAS-ENERGY COSTS,CENTRALISED ENERGY,Premises,Revenue
Walsall Council,http://opendatacommunities.org/id/metropolitan-district-council/walsall,WC82-651,31/07/2017,Change and Governance,BRITISH GAS BUSINESS,18/07/2017,-325.7,42000-GAS-ENERGY COSTS,REDUNDANT BUILDINGS,Premises,Revenue
Walsall Council,http://opendatacommunities.org/id/metropolitan-district-council/walsall,WC82-652,31/07/2017,Change and Governance,BRITISH GAS BUSINESS,17/07/2017,-314.58,42000-GAS-ENERGY COSTS,CENTRALISED ENERGY,Premises,Revenue
Walsall Council,http://opendatacommunities.org/id/metropolitan-district-council/walsall,WC82-653,31/07/2017,Change and Governance,BRITISH GAS BUSINESS,18/07/2017,-304.11,42000-GAS-ENERGY COSTS,CENTRALISED ENERGY,Premises,Revenue
Walsall Council,http://opendatacommunities.org/id/metropolitan-district-council/walsall,WC82-654,31/07/2017,Change and Governance,BRITISH GAS BUSINESS,18/07/2017,-303.2,42000-GAS-ENERGY COSTS,CENTRALISED ENERGY,Premises,Revenue
Walsall Council,http://opendatacommunities.org/id/metropolitan-district-council/walsall,WC82-655,31/07/2017,Change and Governance,BRITISH GAS BUSINESS,18/07/2017,-300.07,42000-GAS-ENERGY COSTS,CENTRALISED ENERGY,Premises,Revenue
Walsall Council,http://opendatacommunities.org/id/metropolitan-district-council/walsall,WC82-656,31/07/2017,Change and Governance,BRITISH GAS BUSINESS,18/07/2017,-290.18,42000-GAS-ENERGY COSTS,CENTRALISED ENERGY,Premises,Revenue
Walsall Council,http://opendatacommunities.org/id/metropolitan-district-council/walsall,WC82-657,31/07/2017,Change and Governance,BRITISH GAS BUSINESS,18/07/2017,-282.75,42000-GAS-ENERGY COSTS,CENTRALISED ENERGY,Premises,Revenue
Walsall Council,http://opendatacommunities.org/id/metropolitan-district-council/walsall,WC82-658,31/07/2017,Change and Governance,BRITISH GAS BUSINESS,18/07/2017,-277.97,42000-GAS-ENERGY COSTS,CENTRALISED ENERGY,Premises,Revenue
Walsall Council,http://opendatacommunities.org/id/metropolitan-district-council/walsall,WC82-659,31/07/2017,Change and Governance,BRITISH GAS BUSINESS,18/07/2017,-276.73,42000-GAS-ENERGY COSTS,CENTRALISED ENERGY,Premises,Revenue
Walsall Council,http://opendatacommunities.org/id/metropolitan-district-council/walsall,WC82-660,31/07/2017,Change and Governance,BRITISH GAS BUSINESS,17/07/2017,-275.33,42000-GAS-ENERGY COSTS,CENTRALISED ENERGY,Premises,Revenue
Walsall Council,http://opendatacommunities.org/id/metropolitan-district-council/walsall,WC82-661,31/07/2017,Change and Governance,BRITISH GAS BUSINESS,17/07/2017,-275.08,42000-GAS-ENERGY COSTS,CENTRALISED ENERGY,Premises,Revenue
Walsall Council,http://opendatacommunities.org/id/metropolitan-district-council/walsall,WC82-662,31/07/2017,Change and Governance,BRITISH GAS BUSINESS,17/07/2017,-274.68,42000-GAS-ENERGY COSTS,RECHARGEABLE UTILITIES,Premises,Revenue
Walsall Council,http://opendatacommunities.org/id/metropolitan-district-council/walsall,WC82-663,31/07/2017,Change and Governance,BRITISH GAS BUSINESS,18/07/2017,-269.03,42000-GAS-ENERGY COSTS,CENTRALISED ENERGY,Premises,Revenue
Walsall Council,http://opendatacommunities.org/id/metropolitan-district-council/walsall,WC82-664,31/07/2017,Change and Governance,BRITISH GAS BUSINESS,18/07/2017,-261.21,42000-GAS-ENERGY COSTS,REDUNDANT BUILDINGS,Premises,Revenue
Walsall Council,http://opendatacommunities.org/id/metropolitan-district-council/walsall,WC82-665,31/07/2017,Change and Governance,BRITISH GAS BUSINESS,18/07/2017,-258.41,42000-GAS-ENERGY COSTS,CENTRALISED ENERGY,Premises,Revenue
Walsall Council,http://opendatacommunities.org/id/metropolitan-district-council/walsall,WC82-666,31/07/2017,Change and Governance,BRITISH GAS BUSINESS,18/07/2017,-250.46,42000-GAS-ENERGY COSTS,CENTRALISED ENERGY,Premises,Revenue
Walsall Council,http://opendatacommunities.org/id/metropolitan-district-council/walsall,WC82-667,31/07/2017,Change and Governance,BRITISH GAS BUSINESS,18/07/2017,-247.93,42000-GAS-ENERGY COSTS,CENTRALISED ENERGY,Premises,Revenue
Walsall Council,http://opendatacommunities.org/id/metropolitan-district-council/walsall,WC82-668,31/07/2017,Change and Governance,BRITISH GAS BUSINESS,17/07/2017,-247.72,42000-GAS-ENERGY COSTS,CENTRALISED ENERGY,Premises,Revenue
Walsall Council,http://opendatacommunities.org/id/metropolitan-district-council/walsall,WC82-669,31/07/2017,Change and Governance,BRITISH GAS BUSINESS,18/07/2017,-246.08,42000-GAS-ENERGY COSTS,REDUNDANT BUILDINGS,Premises,Revenue
Walsall Council,http://opendatacommunities.org/id/metropolitan-district-council/walsall,WC82-670,31/07/2017,Change and Governance,BRITISH GAS BUSINESS,18/07/2017,-245.46,42000-GAS-ENERGY COSTS,CENTRALISED ENERGY,Premises,Revenue
Walsall Council,http://opendatacommunities.org/id/metropolitan-district-council/walsall,WC82-671,31/07/2017,Change and Governance,BRITISH GAS BUSINESS,17/07/2017,-244.16,42000-GAS-ENERGY COSTS,REDUNDANT BUILDINGS,Premises,Revenue
Walsall Council,http://opendatacommunities.org/id/metropolitan-district-council/walsall,WC82-672,31/07/2017,Change and Governance,BRITISH GAS BUSINESS,18/07/2017,-244.16,42000-GAS-ENERGY COSTS,CENTRALISED ENERGY,Premises,Revenue
Walsall Council,http://opendatacommunities.org/id/metropolitan-district-council/walsall,WC82-673,31/07/2017,Change and Governance,BRITISH GAS BUSINESS,18/07/2017,-235.26,42000-GAS-ENERGY COSTS,CENTRALISED ENERGY,Premises,Revenue
Walsall Council,http://opendatacommunities.org/id/metropolitan-district-council/walsall,WC82-674,31/07/2017,Change and Governance,BRITISH GAS BUSINESS,18/07/2017,-235.08,42000-GAS-ENERGY COSTS,CENTRALISED ENERGY,Premises,Revenue
Walsall Council,http://opendatacommunities.org/id/metropolitan-district-council/walsall,WC82-675,31/07/2017,Change and Governance,BRITISH GAS BUSINESS,18/07/2017,-230.78,42000-GAS-ENERGY COSTS,CENTRALISED ENERGY,Premises,Revenue
Walsall Council,http://opendatacommunities.org/id/metropolitan-district-council/walsall,WC82-676,31/07/2017,Change and Governance,BRITISH GAS BUSINESS,17/07/2017,-228.03,42000-GAS-ENERGY COSTS,CENTRALISED ENERGY,Premises,Revenue
Walsall Council,http://opendatacommunities.org/id/metropolitan-district-council/walsall,WC82-677,31/07/2017,Change and Governance,BRITISH GAS BUSINESS,18/07/2017,-224.37,42000-GAS-ENERGY COSTS,CENTRALISED ENERGY,Premises,Revenue
Walsall Council,http://opendatacommunities.org/id/metropolitan-district-council/walsall,WC82-678,31/07/2017,Change and Governance,BRITISH GAS BUSINESS,18/07/2017,-221.51,42000-GAS-ENERGY COSTS,REDUNDANT BUILDINGS,Premises,Revenue
Walsall Council,http://opendatacommunities.org/id/metropolitan-district-council/walsall,WC82-679,31/07/2017,Change and Governance,BRITISH GAS BUSINESS,18/07/2017,-215.46,42000-GAS-ENERGY COSTS,CENTRALISED ENERGY,Premises,Revenue
Walsall Council,http://opendatacommunities.org/id/metropolitan-district-council/walsall,WC82-680,31/07/2017,Change and Governance,BRITISH GAS BUSINESS,18/07/2017,-214.02,42000-GAS-ENERGY COSTS,CENTRALISED ENERGY,Premises,Revenue
Walsall Council,http://opendatacommunities.org/id/metropolitan-district-council/walsall,WC82-681,31/07/2017,Change and Governance,BRITISH GAS BUSINESS,18/07/2017,-213.96,42000-GAS-ENERGY COSTS,CENTRALISED ENERGY,Premises,Revenue
Walsall Council,http://opendatacommunities.org/id/metropolitan-district-council/walsall,WC82-682,31/07/2017,Change and Governance,BRITISH GAS BUSINESS,18/07/2017,-213.57,42000-GAS-ENERGY COSTS,CENTRALISED ENERGY,Premises,Revenue
Walsall Council,http://opendatacommunities.org/id/metropolitan-district-council/walsall,WC82-683,31/07/2017,Change and Governance,BRITISH GAS BUSINESS,18/07/2017,-211.02,42000-GAS-ENERGY COSTS,CENTRALISED ENERGY,Premises,Revenue
Walsall Council,http://opendatacommunities.org/id/metropolitan-district-council/walsall,WC82-684,31/07/2017,Change and Governance,BRITISH GAS BUSINESS,18/07/2017,211.02,42000-GAS-ENERGY COSTS,CENTRALISED ENERGY,Premises,Revenue
Walsall Council,http://opendatacommunities.org/id/metropolitan-district-council/walsall,WC82-685,31/07/2017,Change and Governance,BRITISH GAS BUSINESS,17/07/2017,212.52,42000-GAS-ENERGY COSTS,CENTRALISED ENERGY,Premises,Revenue
Walsall Council,http://opendatacommunities.org/id/metropolitan-district-council/walsall,WC82-686,31/07/2017,Change and Governance,BRITISH GAS BUSINESS,18/07/2017,213.96,42000-GAS-ENERGY COSTS,CENTRALISED ENERGY,Premises,Revenue
Walsall Council,http://opendatacommunities.org/id/metropolitan-district-council/walsall,WC82-687,31/07/2017,Change and Governance,BRITISH GAS BUSINESS,18/07/2017,215.46,42000-GAS-ENERGY COSTS,CENTRALISED ENERGY,Premises,Revenue
Walsall Council,http://opendatacommunities.org/id/metropolitan-district-council/walsall,WC82-688,31/07/2017,Change and Governance,BRITISH GAS BUSINESS,17/07/2017,217.72,42000-GAS-ENERGY COSTS,CENTRALISED ENERGY,Premises,Revenue
Walsall Council,http://opendatacommunities.org/id/metropolitan-district-council/walsall,WC82-689,31/07/2017,Change and Governance,BRITISH GAS BUSINESS,17/07/2017,220.01,42000-GAS-ENERGY COSTS,REDUNDANT BUILDINGS,Premises,Revenue
Walsall Council,http://opendatacommunities.org/id/metropolitan-district-council/walsall,WC82-690,31/07/2017,Change and Governance,BRITISH GAS BUSINESS,17/07/2017,220.41,42000-GAS-ENERGY COSTS,CENTRALISED ENERGY,Premises,Revenue
Walsall Council,http://opendatacommunities.org/id/metropolitan-district-council/walsall,WC82-691,31/07/2017,Change and Governance,BRITISH GAS BUSINESS,14/07/2017,221.23,42000-GAS-ENERGY COSTS,REDUNDANT BUILDINGS,Premises,Revenue
Walsall Council,http://opendatacommunities.org/id/metropolitan-district-council/walsall,WC82-692,31/07/2017,Change and Governance,BRITISH GAS BUSINESS,18/07/2017,221.51,42000-GAS-ENERGY COSTS,REDUNDANT BUILDINGS,Premises,Revenue
Walsall Council,http://opendatacommunities.org/id/metropolitan-district-council/walsall,WC82-693,31/07/2017,Change and Governance,BRITISH GAS BUSINESS,17/07/2017,228.03,42000-GAS-ENERGY COSTS,CENTRALISED ENERGY,Premises,Revenue
Walsall Council,http://opendatacommunities.org/id/metropolitan-district-council/walsall,WC82-694,31/07/2017,Change and Governance,BRITISH GAS BUSINESS,18/07/2017,235.08,42000-GAS-ENERGY COSTS,CENTRALISED ENERGY,Premises,Revenue
Walsall Council,http://opendatacommunities.org/id/metropolitan-district-council/walsall,WC82-695,31/07/2017,Change and Governance,BRITISH GAS BUSINESS,18/07/2017,235.26,42000-GAS-ENERGY COSTS,CENTRALISED ENERGY,Premises,Revenue
Walsall Council,http://opendatacommunities.org/id/metropolitan-district-council/walsall,WC82-696,31/07/2017,Change and Governance,BRITISH GAS BUSINESS,17/07/2017,237.86,42000-GAS-ENERGY COSTS,CENTRALISED ENERGY,Premises,Revenue
Walsall Council,http://opendatacommunities.org/id/metropolitan-district-council/walsall,WC82-697,31/07/2017,Change and Governance,BRITISH GAS BUSINESS,17/07/2017,238.23,42000-GAS-ENERGY COSTS,CENTRALISED ENERGY,Premises,Revenue
Walsall Council,http://opendatacommunities.org/id/metropolitan-district-council/walsall,WC82-698,31/07/2017,Change and Governance,BRITISH GAS BUSINESS,17/07/2017,242.12,42000-GAS-ENERGY COSTS,REDUNDANT BUILDINGS,Premises,Revenue
Walsall Council,http://opendatacommunities.org/id/metropolitan-district-council/walsall,WC82-699,31/07/2017,Change and Governance,BRITISH GAS BUSINESS,18/07/2017,246.08,42000-GAS-ENERGY COSTS,REDUNDANT BUILDINGS,Premises,Revenue
Walsall Council,http://opendatacommunities.org/id/metropolitan-district-council/walsall,WC82-700,31/07/2017,Change and Governance,BRITISH GAS BUSINESS,17/07/2017,247.72,42000-GAS-ENERGY COSTS,CENTRALISED ENERGY,Premises,Revenue
Walsall Council,http://opendatacommunities.org/id/metropolitan-district-council/walsall,WC82-701,31/07/2017,Change and Governance,BRITISH GAS BUSINESS,18/07/2017,247.93,42000-GAS-ENERGY COSTS,CENTRALISED ENERGY,Premises,Revenue
Walsall Council,http://opendatacommunities.org/id/metropolitan-district-council/walsall,WC82-702,31/07/2017,Change and Governance,BRITISH GAS BUSINESS,18/07/2017,250.46,42000-GAS-ENERGY COSTS,CENTRALISED ENERGY,Premises,Revenue
Walsall Council,http://opendatacommunities.org/id/metropolitan-district-council/walsall,WC82-703,31/07/2017,Change and Governance,BRITISH GAS BUSINESS,17/07/2017,256.86,42000-GAS-ENERGY COSTS,CENTRALISED ENERGY,Premises,Revenue
Walsall Council,http://opendatacommunities.org/id/metropolitan-district-council/walsall,WC82-704,31/07/2017,Change and Governance,BRITISH GAS BUSINESS,18/07/2017,258.41,42000-GAS-ENERGY COSTS,CENTRALISED ENERGY,Premises,Revenue
Walsall Council,http://opendatacommunities.org/id/metropolitan-district-council/walsall,WC82-705,31/07/2017,Change and Governance,BRITISH GAS BUSINESS,18/07/2017,259.98,42000-GAS-ENERGY COSTS,CENTRALISED ENERGY,Premises,Revenue
Walsall Council,http://opendatacommunities.org/id/metropolitan-district-council/walsall,WC82-706,31/07/2017,Change and Governance,BRITISH GAS BUSINESS,18/07/2017,261.21,42000-GAS-ENERGY COSTS,REDUNDANT BUILDINGS,Premises,Revenue
Walsall Council,http://opendatacommunities.org/id/metropolitan-district-council/walsall,WC82-707,31/07/2017,Change and Governance,BRITISH GAS BUSINESS,17/07/2017,262.48,42000-GAS-ENERGY COSTS,REDUNDANT BUILDINGS,Premises,Revenue
Walsall Council,http://opendatacommunities.org/id/metropolitan-district-council/walsall,WC82-708,31/07/2017,Change and Governance,BRITISH GAS BUSINESS,18/07/2017,266.3,42000-GAS-ENERGY COSTS,CENTRALISED ENERGY,Premises,Revenue
Walsall Council,http://opendatacommunities.org/id/metropolitan-district-council/walsall,WC82-709,31/07/2017,Change and Governance,BRITISH GAS BUSINESS,17/07/2017,268.36,42000-GAS-ENERGY COSTS,CENTRALISED ENERGY,Premises,Revenue
Walsall Council,http://opendatacommunities.org/id/metropolitan-district-council/walsall,WC82-710,31/07/2017,Change and Governance,BRITISH GAS BUSINESS,18/07/2017,269.03,42000-GAS-ENERGY COSTS,CENTRALISED ENERGY,Premises,Revenue
Walsall Council,http://opendatacommunities.org/id/metropolitan-district-council/walsall,WC82-711,31/07/2017,Change and Governance,BRITISH GAS BUSINESS,17/07/2017,274.68,42000-GAS-ENERGY COSTS,RECHARGEABLE UTILITIES,Premises,Revenue
Walsall Council,http://opendatacommunities.org/id/metropolitan-district-council/walsall,WC82-712,31/07/2017,Change and Governance,BRITISH GAS BUSINESS,17/07/2017,275.08,42000-GAS-ENERGY COSTS,CENTRALISED ENERGY,Premises,Revenue
Walsall Council,http://opendatacommunities.org/id/metropolitan-district-council/walsall,WC82-713,31/07/2017,Change and Governance,BRITISH GAS BUSINESS,17/07/2017,275.33,42000-GAS-ENERGY COSTS,CENTRALISED ENERGY,Premises,Revenue
Walsall Council,http://opendatacommunities.org/id/metropolitan-district-council/walsall,WC82-714,31/07/2017,Change and Governance,BRITISH GAS BUSINESS,18/07/2017,276.73,42000-GAS-ENERGY COSTS,CENTRALISED ENERGY,Premises,Revenue
Walsall Council,http://opendatacommunities.org/id/metropolitan-district-council/walsall,WC82-715,31/07/2017,Childrens,BRITISH GAS BUSINESS,06/07/2017,279.1,42000-GAS-ENERGY COSTS,LOCALITY FAMILY SUPPORT-NORTH,Premises,Revenue
Walsall Council,http://opendatacommunities.org/id/metropolitan-district-council/walsall,WC82-716,31/07/2017,Change and Governance,BRITISH GAS BUSINESS,17/07/2017,279.4,42000-GAS-ENERGY COSTS,CENTRALISED ENERGY,Premises,Revenue
Walsall Council,http://opendatacommunities.org/id/metropolitan-district-council/walsall,WC82-717,31/07/2017,Change and Governance,BRITISH GAS BUSINESS,17/07/2017,280.56,42000-GAS-ENERGY COSTS,CENTRALISED ENERGY,Premises,Revenue
Walsall Council,http://opendatacommunities.org/id/metropolitan-district-council/walsall,WC82-718,31/07/2017,Change and Governance,BRITISH GAS BUSINESS,18/07/2017,282.75,42000-GAS-ENERGY COSTS,CENTRALISED ENERGY,Premises,Revenue
Walsall Council,http://opendatacommunities.org/id/metropolitan-district-council/walsall,WC82-719,31/07/2017,Change and Governance,BRITISH GAS BUSINESS,17/07/2017,286.51,42000-GAS-ENERGY COSTS,CENTRALISED ENERGY,Premises,Revenue
Walsall Council,http://opendatacommunities.org/id/metropolitan-district-council/walsall,WC82-720,31/07/2017,Change and Governance,BRITISH GAS BUSINESS,17/07/2017,294.98,42000-GAS-ENERGY COSTS,RECHARGEABLE UTILITIES,Premises,Revenue
Walsall Council,http://opendatacommunities.org/id/metropolitan-district-council/walsall,WC82-721,31/07/2017,Change and Governance,BRITISH GAS BUSINESS,18/07/2017,300.07,42000-GAS-ENERGY COSTS,CENTRALISED ENERGY,Premises,Revenue
Walsall Council,http://opendatacommunities.org/id/metropolitan-district-council/walsall,WC82-722,31/07/2017,Change and Governance,BRITISH GAS BUSINESS,18/07/2017,303.2,42000-GAS-ENERGY COSTS,CENTRALISED ENERGY,Premises,Revenue
Walsall Council,http://opendatacommunities.org/id/metropolitan-district-council/walsall,WC82-723,31/07/2017,Change and Governance,BRITISH GAS BUSINESS,18/07/2017,304.11,42000-GAS-ENERGY COSTS,CENTRALISED ENERGY,Premises,Revenue
Walsall Council,http://opendatacommunities.org/id/metropolitan-district-council/walsall,WC82-724,31/07/2017,Change and Governance,BRITISH GAS BUSINESS,17/07/2017,314.58,42000-GAS-ENERGY COSTS,CENTRALISED ENERGY,Premises,Revenue
Walsall Council,http://opendatacommunities.org/id/metropolitan-district-council/walsall,WC82-725,31/07/2017,Childrens,BRITISH GAS BUSINESS,07/07/2017,326.05,42000-GAS-ENERGY COSTS,LOCALITY FAMILY SUPPORT-WEST,Premises,Revenue
Walsall Council,http://opendatacommunities.org/id/metropolitan-district-council/walsall,WC82-726,31/07/2017,Change and Governance,BRITISH GAS BUSINESS,17/07/2017,329.27,42000-GAS-ENERGY COSTS,CENTRALISED ENERGY,Premises,Revenue
Walsall Council,http://opendatacommunities.org/id/metropolitan-district-council/walsall,WC82-727,31/07/2017,Change and Governance,BRITISH GAS BUSINESS,18/07/2017,330.23,42000-GAS-ENERGY COSTS,CENTRALISED ENERGY,Premises,Revenue
Walsall Council,http://opendatacommunities.org/id/metropolitan-district-council/walsall,WC82-728,31/07/2017,Change and Governance,BRITISH GAS BUSINESS,17/07/2017,339.12,42000-GAS-ENERGY COSTS,CENTRALISED ENERGY,Premises,Revenue
Walsall Council,http://opendatacommunities.org/id/metropolitan-district-council/walsall,WC82-729,31/07/2017,Change and Governance,BRITISH GAS BUSINESS,17/07/2017,339.68,42000-GAS-ENERGY COSTS,CENTRALISED ENERGY,Premises,Revenue
Walsall Council,http://opendatacommunities.org/id/metropolitan-district-council/walsall,WC82-730,31/07/2017,Change and Governance,BRITISH GAS BUSINESS,17/07/2017,339.93,42000-GAS-ENERGY COSTS,CENTRALISED ENERGY,Premises,Revenue
Walsall Council,http://opendatacommunities.org/id/metropolitan-district-council/walsall,WC82-731,31/07/2017,Change and Governance,BRITISH GAS BUSINESS,18/07/2017,344.68,42000-GAS-ENERGY COSTS,CENTRALISED ENERGY,Premises,Revenue
Walsall Council,http://opendatacommunities.org/id/metropolitan-district-council/walsall,WC82-732,31/07/2017,Change and Governance,BRITISH GAS BUSINESS,18/07/2017,350.33,42000-GAS-ENERGY COSTS,CENTRALISED ENERGY,Premises,Revenue
Walsall Council,http://opendatacommunities.org/id/metropolitan-district-council/walsall,WC82-733,31/07/2017,Change and Governance,BRITISH GAS BUSINESS,18/07/2017,355.61,42000-GAS-ENERGY COSTS,CENTRALISED ENERGY,Premises,Revenue
Walsall Council,http://opendatacommunities.org/id/metropolitan-district-council/walsall,WC82-734,31/07/2017,Change and Governance,BRITISH GAS BUSINESS,17/07/2017,360.12,42000-GAS-ENERGY COSTS,CENTRALISED ENERGY,Premises,Revenue
Walsall Council,http://opendatacommunities.org/id/metropolitan-district-council/walsall,WC82-735,31/07/2017,Change and Governance,BRITISH GAS BUSINESS,17/07/2017,360.55,42000-GAS-ENERGY COSTS,CENTRALISED ENERGY,Premises,Revenue
Walsall Council,http://opendatacommunities.org/id/metropolitan-district-council/walsall,WC82-736,31/07/2017,Change and Governance,BRITISH GAS BUSINESS,17/07/2017,369.56,42000-GAS-ENERGY COSTS,CENTRALISED ENERGY,Premises,Revenue
Walsall Council,http://opendatacommunities.org/id/metropolitan-district-council/walsall,WC82-737,31/07/2017,Childrens,BRITISH GAS BUSINESS,01/07/2017,370.66,42000-GAS-ENERGY COSTS,LOCALITY FAMILY SUPPORT-NORTH,Premises,Revenue
Walsall Council,http://opendatacommunities.org/id/metropolitan-district-council/walsall,WC82-738,31/07/2017,Change and Governance,BRITISH GAS BUSINESS,17/07/2017,372.23,42000-GAS-ENERGY COSTS,CENTRALISED ENERGY,Premises,Revenue
Walsall Council,http://opendatacommunities.org/id/metropolitan-district-council/walsall,WC82-739,31/07/2017,Change and Governance,BRITISH GAS BUSINESS,17/07/2017,372.43,42000-GAS-ENERGY COSTS,CENTRALISED ENERGY,Premises,Revenue
Walsall Council,http://opendatacommunities.org/id/metropolitan-district-council/walsall,WC82-740,31/07/2017,Change and Governance,BRITISH GAS BUSINESS,17/07/2017,372.8,42000-GAS-ENERGY COSTS,CENTRALISED ENERGY,Premises,Revenue
Walsall Council,http://opendatacommunities.org/id/metropolitan-district-council/walsall,WC82-741,31/07/2017,Change and Governance,BRITISH GAS BUSINESS,17/07/2017,380.22,42000-GAS-ENERGY COSTS,CENTRALISED ENERGY,Premises,Revenue
Walsall Council,http://opendatacommunities.org/id/metropolitan-district-council/walsall,WC82-742,31/07/2017,Change and Governance,BRITISH GAS BUSINESS,18/07/2017,384.26,42000-GAS-ENERGY COSTS,CENTRALISED ENERGY,Premises,Revenue
Walsall Council,http://opendatacommunities.org/id/metropolitan-district-council/walsall,WC82-743,31/07/2017,Change and Governance,BRITISH GAS BUSINESS,14/07/2017,388.92,42000-GAS-ENERGY COSTS,REDUNDANT BUILDINGS,Premises,Revenue
Walsall Council,http://opendatacommunities.org/id/metropolitan-district-council/walsall,WC82-744,31/07/2017,Change and Governance,BRITISH GAS BUSINESS,18/07/2017,395.16,42000-GAS-ENERGY COSTS,CENTRALISED ENERGY,Premises,Revenue
Walsall Council,http://opendatacommunities.org/id/metropolitan-district-council/walsall,WC82-745,31/07/2017,Change and Governance,BRITISH GAS BUSINESS,18/07/2017,395.95,42000-GAS-ENERGY COSTS,CENTRALISED ENERGY,Premises,Revenue
Walsall Council,http://opendatacommunities.org/id/metropolitan-district-council/walsall,WC82-746,31/07/2017,Change and Governance,BRITISH GAS BUSINESS,17/07/2017,401.93,42000-GAS-ENERGY COSTS,CENTRALISED ENERGY,Premises,Revenue
Walsall Council,http://opendatacommunities.org/id/metropolitan-district-council/walsall,WC82-747,31/07/2017,Change and Governance,BRITISH GAS BUSINESS,17/07/2017,411.01,42000-GAS-ENERGY COSTS,CENTRALISED ENERGY,Premises,Revenue
Walsall Council,http://opendatacommunities.org/id/metropolitan-district-council/walsall,WC82-748,31/07/2017,Change and Governance,BRITISH GAS BUSINESS,17/07/2017,411.73,42000-GAS-ENERGY COSTS,DARLASTON TOWN HALL,Premises,Revenue
Walsall Council,http://opendatacommunities.org/id/metropolitan-district-council/walsall,WC82-749,31/07/2017,Change and Governance,BRITISH GAS BUSINESS,17/07/2017,419.38,42000-GAS-ENERGY COSTS,CENTRALISED ENERGY,Premises,Revenue
Walsall Council,http://opendatacommunities.org/id/metropolitan-district-council/walsall,WC82-750,31/07/2017,Change and Governance,BRITISH GAS BUSINESS,17/07/2017,426.66,42000-GAS-ENERGY COSTS,REDUNDANT BUILDINGS,Premises,Revenue
Walsall Council,http://opendatacommunities.org/id/metropolitan-district-council/walsall,WC82-751,31/07/2017,Change and Governance,BRITISH GAS BUSINESS,18/07/2017,427.13,42000-GAS-ENERGY COSTS,CENTRALISED ENERGY,Premises,Revenue
Walsall Council,http://opendatacommunities.org/id/metropolitan-district-council/walsall,WC82-752,31/07/2017,Change and Governance,BRITISH GAS BUSINESS,17/07/2017,429.75,42000-GAS-ENERGY COSTS,CENTRALISED ENERGY,Premises,Revenue
Walsall Council,http://opendatacommunities.org/id/metropolitan-district-council/walsall,WC82-753,31/07/2017,Change and Governance,BRITISH GAS BUSINESS,18/07/2017,432.36,42000-GAS-ENERGY COSTS,DARLASTON TOWN HALL,Premises,Revenue
Walsall Council,http://opendatacommunities.org/id/metropolitan-district-council/walsall,WC82-754,31/07/2017,Change and Governance,BRITISH GAS BUSINESS,17/07/2017,438.55,42000-GAS-ENERGY COSTS,CENTRALISED ENERGY,Premises,Revenue
Walsall Council,http://opendatacommunities.org/id/metropolitan-district-council/walsall,WC82-755,31/07/2017,Change and Governance,BRITISH GAS BUSINESS,17/07/2017,448.41,42000-GAS-ENERGY COSTS,CENTRALISED ENERGY,Premises,Revenue
Walsall Council,http://opendatacommunities.org/id/metropolitan-district-council/walsall,WC82-756,31/07/2017,Change and Governance,BRITISH GAS BUSINESS,18/07/2017,454.78,42000-GAS-ENERGY COSTS,CENTRALISED ENERGY,Premises,Revenue
Walsall Council,http://opendatacommunities.org/id/metropolitan-district-council/walsall,WC82-757,31/07/2017,Change and Governance,BRITISH GAS BUSINESS,18/07/2017,461.3,42000-GAS-ENERGY COSTS,RECHARGEABLE UTILITIES,Premises,Revenue
Walsall Council,http://opendatacommunities.org/id/metropolitan-district-council/walsall,WC82-758,31/07/2017,Change and Governance,BRITISH GAS BUSINESS,18/07/2017,477.18,42000-GAS-ENERGY COSTS,CENTRALISED ENERGY,Premises,Revenue
Walsall Council,http://opendatacommunities.org/id/metropolitan-district-council/walsall,WC82-759,31/07/2017,Change and Governance,BRITISH GAS BUSINESS,18/07/2017,496.08,42000-GAS-ENERGY COSTS,CENTRALISED ENERGY,Premises,Revenue
Walsall Council,http://opendatacommunities.org/id/metropolitan-district-council/walsall,WC82-760,31/07/2017,Change and Governance,BRITISH GAS BUSINESS,17/07/2017,502.7,42000-GAS-ENERGY COSTS,CENTRALISED ENERGY,Premises,Revenue
Walsall Council,http://opendatacommunities.org/id/metropolitan-district-council/walsall,WC82-761,31/07/2017,Change and Governance,BRITISH GAS BUSINESS,18/07/2017,512.23,42000-GAS-ENERGY COSTS,RECHARGEABLE UTILITIES,Premises,Revenue
Walsall Council,http://opendatacommunities.org/id/metropolitan-district-council/walsall,WC82-762,31/07/2017,Change and Governance,BRITISH GAS BUSINESS,17/07/2017,514.12,42000-GAS-ENERGY COSTS,CENTRALISED ENERGY,Premises,Revenue
Walsall Council,http://opendatacommunities.org/id/metropolitan-district-council/walsall,WC82-763,31/07/2017,Change and Governance,BRITISH GAS BUSINESS,18/07/2017,516.82,42000-GAS-ENERGY COSTS,CENTRALISED ENERGY,Premises,Revenue
Walsall Council,http://opendatacommunities.org/id/metropolitan-district-council/walsall,WC82-764,31/07/2017,Change and Governance,BRITISH GAS BUSINESS,17/07/2017,518.32,42000-GAS-ENERGY COSTS,CENTRALISED ENERGY,Premises,Revenue
Walsall Council,http://opendatacommunities.org/id/metropolitan-district-council/walsall,WC82-765,31/07/2017,Change and Governance,BRITISH GAS BUSINESS,17/07/2017,527.01,42000-GAS-ENERGY COSTS,CENTRALISED ENERGY,Premises,Revenue
Walsall Council,http://opendatacommunities.org/id/metropolitan-district-council/walsall,WC82-766,31/07/2017,Change and Governance,BRITISH GAS BUSINESS,18/07/2017,529.51,42000-GAS-ENERGY COSTS,RECHARGEABLE UTILITIES,Premises,Revenue
Walsall Council,http://opendatacommunities.org/id/metropolitan-district-council/walsall,WC82-767,31/07/2017,Change and Governance,BRITISH GAS BUSINESS,17/07/2017,542.71,42000-GAS-ENERGY COSTS,CENTRALISED ENERGY,Premises,Revenue
Walsall Council,http://opendatacommunities.org/id/metropolitan-district-council/walsall,WC82-768,31/07/2017,Change and Governance,BRITISH GAS BUSINESS,18/07/2017,551.52,42000-GAS-ENERGY COSTS,RECHARGEABLE UTILITIES,Premises,Revenue
Walsall Council,http://opendatacommunities.org/id/metropolitan-district-council/walsall,WC82-769,31/07/2017,Change and Governance,BRITISH GAS BUSINESS,18/07/2017,567.38,42000-GAS-ENERGY COSTS,CENTRALISED ENERGY,Premises,Revenue
Walsall Council,http://opendatacommunities.org/id/metropolitan-district-council/walsall,WC82-770,31/07/2017,Change and Governance,BRITISH GAS BUSINESS,18/07/2017,598.92,42000-GAS-ENERGY COSTS,CENTRALISED ENERGY,Premises,Revenue
Walsall Council,http://opendatacommunities.org/id/metropolitan-district-council/walsall,WC82-771,31/07/2017,Change and Governance,BRITISH GAS BUSINESS,17/07/2017,610.18,42000-GAS-ENERGY COSTS,CENTRALISED ENERGY,Premises,Revenue
Walsall Council,http://opendatacommunities.org/id/metropolitan-district-council/walsall,WC82-772,31/07/2017,Change and Governance,BRITISH GAS BUSINESS,17/07/2017,615.91,42000-GAS-ENERGY COSTS,CENTRALISED ENERGY,Premises,Revenue
Walsall Council,http://opendatacommunities.org/id/metropolitan-district-council/walsall,WC82-773,31/07/2017,Change and Governance,BRITISH GAS BUSINESS,18/07/2017,633.25,42000-GAS-ENERGY COSTS,CENTRALISED ENERGY,Premises,Revenue
Walsall Council,http://opendatacommunities.org/id/metropolitan-district-council/walsall,WC82-774,31/07/2017,Change and Governance,BRITISH GAS BUSINESS,18/07/2017,644.78,42000-GAS-ENERGY COSTS,CENTRALISED ENERGY,Premises,Revenue
Walsall Council,http://opendatacommunities.org/id/metropolitan-district-council/walsall,WC82-775,31/07/2017,Change and Governance,BRITISH GAS BUSINESS,18/07/2017,657.38,42000-GAS-ENERGY COSTS,CENTRALISED ENERGY,Premises,Revenue
Walsall Council,http://opendatacommunities.org/id/metropolitan-district-council/walsall,WC82-776,31/07/2017,Change and Governance,BRITISH GAS BUSINESS,17/07/2017,665.09,42000-GAS-ENERGY COSTS,CENTRALISED ENERGY,Premises,Revenue
Walsall Council,http://opendatacommunities.org/id/metropolitan-district-council/walsall,WC82-777,31/07/2017,Change and Governance,BRITISH GAS BUSINESS,18/07/2017,672.27,42000-GAS-ENERGY COSTS,RECHARGEABLE UTILITIES,Premises,Revenue
Walsall Council,http://opendatacommunities.org/id/metropolitan-district-council/walsall,WC82-778,31/07/2017,Change and Governance,BRITISH GAS BUSINESS,18/07/2017,695.32,42000-GAS-ENERGY COSTS,CENTRALISED ENERGY,Premises,Revenue
Walsall Council,http://opendatacommunities.org/id/metropolitan-district-council/walsall,WC82-779,31/07/2017,Change and Governance,BRITISH GAS BUSINESS,18/07/2017,700.63,42000-GAS-ENERGY COSTS,CENTRALISED ENERGY,Premises,Revenue
Walsall Council,http://opendatacommunities.org/id/metropolitan-district-council/walsall,WC82-780,31/07/2017,Change and Governance,BRITISH GAS BUSINESS,17/07/2017,722.78,42000-GAS-ENERGY COSTS,CENTRALISED ENERGY,Premises,Revenue
Walsall Council,http://opendatacommunities.org/id/metropolitan-district-council/walsall,WC82-781,31/07/2017,Change and Governance,BRITISH GAS BUSINESS,18/07/2017,727.51,42000-GAS-ENERGY COSTS,CENTRALISED ENERGY,Premises,Revenue
Walsall Council,http://opendatacommunities.org/id/metropolitan-district-council/walsall,WC82-782,31/07/2017,Change and Governance,BRITISH GAS BUSINESS,18/07/2017,732.3,42000-GAS-ENERGY COSTS,CENTRALISED ENERGY,Premises,Revenue
Walsall Council,http://opendatacommunities.org/id/metropolitan-district-council/walsall,WC82-783,31/07/2017,Change and Governance,BRITISH GAS BUSINESS,18/07/2017,736.65,42000-GAS-ENERGY COSTS,CENTRALISED ENERGY,Premises,Revenue
Walsall Council,http://opendatacommunities.org/id/metropolitan-district-council/walsall,WC82-784,31/07/2017,Change and Governance,BRITISH GAS BUSINESS,18/07/2017,736.71,42000-GAS-ENERGY COSTS,CENTRALISED ENERGY,Premises,Revenue
Walsall Council,http://opendatacommunities.org/id/metropolitan-district-council/walsall,WC82-785,31/07/2017,Change and Governance,BRITISH GAS BUSINESS,17/07/2017,748.05,42000-GAS-ENERGY COSTS,REDUNDANT BUILDINGS,Premises,Revenue
Walsall Council,http://opendatacommunities.org/id/metropolitan-district-council/walsall,WC82-786,31/07/2017,Change and Governance,BRITISH GAS BUSINESS,17/07/2017,763.16,42000-GAS-ENERGY COSTS,CENTRALISED ENERGY,Premises,Revenue
Walsall Council,http://opendatacommunities.org/id/metropolitan-district-council/walsall,WC82-787,31/07/2017,Change and Governance,BRITISH GAS BUSINESS,18/07/2017,765.09,42000-GAS-ENERGY COSTS,CENTRALISED ENERGY,Premises,Revenue
Walsall Council,http://opendatacommunities.org/id/metropolitan-district-council/walsall,WC82-788,31/07/2017,Change and Governance,BRITISH GAS BUSINESS,17/07/2017,772.98,42000-GAS-ENERGY COSTS,REDUNDANT BUILDINGS,Premises,Revenue
Walsall Council,http://opendatacommunities.org/id/metropolitan-district-council/walsall,WC82-789,31/07/2017,Change and Governance,BRITISH GAS BUSINESS,17/07/2017,772.98,42000-GAS-ENERGY COSTS,REDUNDANT BUILDINGS,Premises,Revenue
Walsall Council,http://opendatacommunities.org/id/metropolitan-district-council/walsall,WC82-790,31/07/2017,Change and Governance,BRITISH GAS BUSINESS,18/07/2017,861.28,42000-GAS-ENERGY COSTS,RECHARGEABLE UTILITIES,Premises,Revenue
Walsall Council,http://opendatacommunities.org/id/metropolitan-district-council/walsall,WC82-791,31/07/2017,Change and Governance,BRITISH GAS BUSINESS,17/07/2017,881.55,42000-GAS-ENERGY COSTS,RECHARGEABLE UTILITIES,Premises,Revenue
Walsall Council,http://opendatacommunities.org/id/metropolitan-district-council/walsall,WC82-792,31/07/2017,Change and Governance,BRITISH GAS BUSINESS,18/07/2017,888.13,42000-GAS-ENERGY COSTS,CHALLENGE BUILDING,Premises,Revenue
Walsall Council,http://opendatacommunities.org/id/metropolitan-district-council/walsall,WC82-793,31/07/2017,Change and Governance,BRITISH GAS BUSINESS,18/07/2017,898.63,42000-GAS-ENERGY COSTS,DARLASTON TOWN HALL,Premises,Revenue
Walsall Council,http://opendatacommunities.org/id/metropolitan-district-council/walsall,WC82-794,31/07/2017,Change and Governance,BRITISH GAS BUSINESS,17/07/2017,904.43,42000-GAS-ENERGY COSTS,DARLASTON TOWN HALL,Premises,Revenue
Walsall Council,http://opendatacommunities.org/id/metropolitan-district-council/walsall,WC82-795,31/07/2017,Change and Governance,BRITISH GAS BUSINESS,17/07/2017,932.33,42000-GAS-ENERGY COSTS,CENTRALISED ENERGY,Premises,Revenue
Walsall Council,http://opendatacommunities.org/id/metropolitan-district-council/walsall,WC82-796,31/07/2017,Change and Governance,BRITISH GAS BUSINESS,17/07/2017,943.88,42000-GAS-ENERGY COSTS,CENTRALISED ENERGY,Premises,Revenue
Walsall Council,http://opendatacommunities.org/id/metropolitan-district-council/walsall,WC82-797,31/07/2017,Change and Governance,BRITISH GAS BUSINESS,17/07/2017,948.13,42000-GAS-ENERGY COSTS,RECHARGEABLE UTILITIES,Premises,Revenue
Walsall Council,http://opendatacommunities.org/id/metropolitan-district-council/walsall,WC82-798,31/07/2017,Change and Governance,BRITISH GAS BUSINESS,17/07/2017,959.76,42000-GAS-ENERGY COSTS,DARLASTON TOWN HALL,Premises,Revenue
Walsall Council,http://opendatacommunities.org/id/metropolitan-district-council/walsall,WC82-799,31/07/2017,Change and Governance,BRITISH GAS BUSINESS,18/07/2017,961.03,42000-GAS-ENERGY COSTS,CENTRALISED ENERGY,Premises,Revenue
Walsall Council,http://opendatacommunities.org/id/metropolitan-district-council/walsall,WC82-800,31/07/2017,Change and Governance,BRITISH GAS BUSINESS,18/07/2017,962.93,42000-GAS-ENERGY COSTS,CENTRALISED ENERGY,Premises,Revenue
Walsall Council,http://opendatacommunities.org/id/metropolitan-district-council/walsall,WC82-801,31/07/2017,Change and Governance,BRITISH GAS BUSINESS,18/07/2017,974.6,42000-GAS-ENERGY COSTS,RECHARGEABLE UTILITIES,Premises,Revenue
Walsall Council,http://opendatacommunities.org/id/metropolitan-district-council/walsall,WC82-802,31/07/2017,Change and Governance,BRITISH GAS BUSINESS,18/07/2017,975.68,42000-GAS-ENERGY COSTS,CENTRALISED ENERGY,Premises,Revenue
Walsall Council,http://opendatacommunities.org/id/metropolitan-district-council/walsall,WC82-803,31/07/2017,Change and Governance,BRITISH GAS BUSINESS,18/07/2017,"1,015.33",42000-GAS-ENERGY COSTS,RECHARGEABLE UTILITIES,Premises,Revenue
Walsall Council,http://opendatacommunities.org/id/metropolitan-district-council/walsall,WC82-804,31/07/2017,Change and Governance,BRITISH GAS BUSINESS,17/07/2017,"1,025.97",42000-GAS-ENERGY COSTS,CENTRALISED ENERGY,Premises,Revenue
Walsall Council,http://opendatacommunities.org/id/metropolitan-district-council/walsall,WC82-805,31/07/2017,Change and Governance,BRITISH GAS BUSINESS,17/07/2017,"1,031.18",42000-GAS-ENERGY COSTS,DARLASTON TOWN HALL,Premises,Revenue
Walsall Council,http://opendatacommunities.org/id/metropolitan-district-council/walsall,WC82-806,31/07/2017,Change and Governance,BRITISH GAS BUSINESS,17/07/2017,"1,032.83",42000-GAS-ENERGY COSTS,RECHARGEABLE UTILITIES,Premises,Revenue
Walsall Council,http://opendatacommunities.org/id/metropolitan-district-council/walsall,WC82-807,31/07/2017,Change and Governance,BRITISH GAS BUSINESS,17/07/2017,"1,074.78",42000-GAS-ENERGY COSTS,RECHARGEABLE UTILITIES,Premises,Revenue
Walsall Council,http://opendatacommunities.org/id/metropolitan-district-council/walsall,WC82-808,31/07/2017,Change and Governance,BRITISH GAS BUSINESS,17/07/2017,"1,078.43",42000-GAS-ENERGY COSTS,CENTRALISED ENERGY,Premises,Revenue
Walsall Council,http://opendatacommunities.org/id/metropolitan-district-council/walsall,WC82-809,31/07/2017,Change and Governance,BRITISH GAS BUSINESS,18/07/2017,"1,111.96",42000-GAS-ENERGY COSTS,CHALLENGE BUILDING,Premises,Revenue
